Workbook

Sheet Cover (hidden)
A11: ePMP System Release 1.0
A12: Link Budget Planning Results
A16: Cambium Confidential Proprietary - for Engineering Use Only
A17: pmp-0436 "ePMP System Release 1.0 Link Budget Planning Results"

Sheet Revision history (hidden)
A1: Version | B1: Date | C1: Description
A2: 0.1 | B2: 2013-08-23 | C2: Initial version covering R1.0
A3: 0.2 | B3: 2013-09-06 | C3: Updated sensitivity values. Included Avenger throughput calculator.
A4: 0.3 | B4: 2013-09-25 | C4: Added CINR information and interference input; number of STAs up to 120; included updates to throughput calculator; added scheduling latency; updated antenna gains
A5: 0.4 | B5: 2013-09-26 | C5: Changed STA antenna gain to 13 dBi and password protected spreadsheet
A6: 0.5 | B6: 2013-09-26 | C6: This version shows only parameters available in release 1.
A7: 0.6 | B7: 2013-09-30 | C7: Updated frequency range, max center frequency and max power values for each band

Sheet LINK BUDGET
B2: ePMP LINK BUDGET CALCULATOR
B3: Cambium Networks confidential, not commercially binding
B4: SYSTEM CONFIGURATION
B5: Country | C5: Others
B6: Frequency band | C6: 5.7/5.8 | D6: [GHz] | F6: Lower frequency | I6: =Figures!B2*1000 -> 5725 | J6: [MHz]
B7: Fade Margin | C7: 0 | D7: [dB] | F7: Upper frequency | I7: =Figures!B3*1000 -> 5875 | J7: [MHz]
B8: Channel Bandwidth | C8: 20 | D8: [MHz] | G8: AP EIRP limit | I8: =Figures!B5 -> - | J8: [dBm] | K8: =IF(I8="-","-",ROUND((POWER(10,(I8/10)))/1000,1)) -> - | L8: [Watts]
B9: AP antenna system | C9: 90° sector | G9: Max AP Tx Power | I9: =Figures!B4 -> 23 | J9: [dBm] | K9: =ROUND(POWER(10,(I9/10)),1) -> 199.5 | L9: [mWatts]
B10: Environment | C10: rural | G10: STA EIRP limit | I10: =Figures!B6 -> - | J10: [dBm] | K10: =IF(I10="-","-",ROUND((POWER(10,(I10/10)))/1000,1)) -> - | L10: [Watts]
B11: Max range | C11: 5 | D11: [miles] | G11: Max STA Tx Power | I11: =Figures!B4 -> 23 | J11: [dBm] | K11: =ROUND(POWER(10,(I11/10)),1) -> 199.5 | L11: [mWatts]
B12: Max range limit | C12: =E60 -> 15.91226429 | D12: [miles]
B13: Frame duration | C13: 5 | D13: [ms]
B14: Number of STAs/sector | C14: 20
B15: Duty cycle | C15: 50/50
B16: UDP payload size | C16: 1472 | D16: [bytes]
B17: Interference level | C17: 0 | D17: [dBm]
B18: DOWNLINK BUDGET (AP to STA) | G18: UPLINK BUDGET (STA to AP)
B19: AP Tx Power per chain | C19: =MIN(IF(I8="-",20,MIN(20,I8-C21+C20-3)),I9-3) -> 20 | D19: [dBm] | E19: =(POWER(10,(C19/10)))/1000 -> 0.1 | F19: [Watts] | G19: STA Tx Power per chain | I19: =MIN(IF(I10="-",20,MIN(20,I10-I21-3)),I11-3) -> 20 | J19: [dBm] | K19: =(POWER(10,(I19/10)))/1000 -> 0.1 | L19: [Watts]
B20: Cable Loss | C20: 1 | D20: [dB] | E20: =(POWER(10,(C20/10)))/1000 -> 0.001258925412 | F20: [Watts]
B21: AP Antenna Gain | C21: =IF(C9="90° sector",15,14) -> 15 | D21: [dBi] | E21: =C9 -> 90° sector | G21: STA Antenna Gain | I21: =C39 -> 13 | J21: [dBi] | K21: Internal SM antenna
B22: AP EIRP | C22: =C19+3-C20+C21 -> 37 | D22: [dBm] | E22: =(POWER(10,(C22/10)))/1000 -> 5.011872336 | F22: [Watts] | G22: STA EIRP | I22: =I19+3+I21 -> 36 | J22: [dBm] | K22: =10^((I22-30)/10) -> 3.981071706 | L22: [Watts]
B23: STA Rx Sensitivity | C23: =Figures!I41 -> -68 | D23: [dBm] | E23: 64QAM 5/6 | F23: MCS15 | G23: AP Rx Sensitivity | I23: =Figures!H41 -> -70 | J23: [dBm] | K23: 64QAM 5/6 | L23: MCS15
C24: =Figures!I42 -> -70 | D24: [dBm] | E24: 64QAM 3/4 | F24: MCS14 | I24: =Figures!H42 -> -71 | J24: [dBm] | K24: 64QAM 3/4 | L24: MCS14
C25: =Figures!I43 -> -73 | D25: [dBm] | E25: 64QAM 2/3 | F25: MCS13 | I25: =Figures!H43 -> -73 | J25: [dBm] | K25: 64QAM 2/3 | L25: MCS13
C26: =Figures!I44 -> -77 | D26: [dBm] | E26: 16QAM 3/4 | F26: MCS12 | I26: =Figures!H44 -> -78 | J26: [dBm] | K26: 16QAM 3/4 | L26: MCS12
C27: =Figures!I45 -> -82 | D27: [dBm] | E27: 16QAM 1/2 | F27: MCS11 | I27: =Figures!H45 -> -81 | J27: [dBm] | K27: 16QAM 1/2 | L27: MCS11
C28: =Figures!I46 -> -83 | D28: [dBm] | E28: QPSK 3/4 | F28: MCS10 | I28: =Figures!H46 -> -84 | J28: [dBm] | K28: QPSK 3/4 | L28: MCS10
C29: =Figures!I47 -> -87 | D29: [dBm] | E29: QPSK 1/2 | F29: MCS9 | I29: =Figures!H47 -> -86 | J29: [dBm] | K29: QPSK 1/2 | L29: MCS9
C30: =Figures!I48 -> -90 | D30: [dBm] | E30: QPSK 1/2 SS | F30: MCS1 | I30: =Figures!H48 -> -89 | J30: [dBm] | K30: QPSK 1/2 SS | L30: MCS1
B31: STA CINR | C31: =IF($C$8=20,Figures!D41,Figures!E41)-3+98-10*LOG($C$8/20,10) -> 28 | D31: [dB] | E31: 64QAM 5/6 | F31: MCS15 | G31: AP CINR | I31: =IF($C$8=20,Figures!B41,Figures!C41)-3+98-10*LOG($C$8/20,10) -> 30 | J31: [dB] | K31: 64QAM 5/6 | L31: MCS15
C32: =IF($C$8=20,Figures!D42,Figures!E42)-3+98-10*LOG($C$8/20,10) -> 27 | D32: [dB] | E32: 64QAM 3/4 | F32: MCS14 | I32: =IF($C$8=20,Figures!B42,Figures!C42)-3+98-10*LOG($C$8/20,10) -> 28 | J32: [dB] | K32: 64QAM 3/4 | L32: MCS14
C33: =IF($C$8=20,Figures!D43,Figures!E43)-3+98-10*LOG($C$8/20,10) -> 25 | D33: [dB] | E33: 64QAM 2/3 | F33: MCS13 | I33: =IF($C$8=20,Figures!B43,Figures!C43)-3+98-10*LOG($C$8/20,10) -> 25 | J33: [dB] | K33: 64QAM 2/3 | L33: MCS13
C34: =IF($C$8=20,Figures!D44,Figures!E44)-3+98-10*LOG($C$8/20,10) -> 20 | D34: [dB] | E34: 16QAM 3/4 | F34: MCS12 | I34: =IF($C$8=20,Figures!B44,Figures!C44)-3+98-10*LOG($C$8/20,10) -> 21 | J34: [dB] | K34: 16QAM 3/4 | L34: MCS12
C35: =IF($C$8=20,Figures!D45,Figures!E45)-3+98-10*LOG($C$8/20,10) -> 17 | D35: [dB] | E35: 16QAM 1/2 | F35: MCS11 | I35: =IF($C$8=20,Figures!B45,Figures!C45)-3+98-10*LOG($C$8/20,10) -> 16 | J35: [dB] | K35: 16QAM 1/2 | L35: MCS11
C36: =IF($C$8=20,Figures!D46,Figures!E46)-3+98-10*LOG($C$8/20,10) -> 14 | D36: [dB] | E36: QPSK 3/4 | F36: MCS10 | I36: =IF($C$8=20,Figures!B46,Figures!C46)-3+98-10*LOG($C$8/20,10) -> 15 | J36: [dB] | K36: QPSK 3/4 | L36: MCS10
C37: =IF($C$8=20,Figures!D47,Figures!E47)-3+98-10*LOG($C$8/20,10) -> 12 | D37: [dB] | E37: QPSK 1/2 | F37: MCS9 | I37: =IF($C$8=20,Figures!B47,Figures!C47)-3+98-10*LOG($C$8/20,10) -> 11 | J37: [dB] | K37: QPSK 1/2 | L37: MCS9
C38: =IF($C$8=20,Figures!D48,Figures!E48)-3+98-10*LOG($C$8/20,10) -> 9 | D38: [dB] | E38: QPSK 1/2 SS | F38: MCS1 | I38: =IF($C$8=20,Figures!B48,Figures!C48)-3+98-10*LOG($C$8/20,10) -> 8 | J38: [dB] | K38: QPSK 1/2 SS | L38: MCS1
B39: STA Antenna Gain | C39: 13 | D39: [dBi] | E39: Internal SM antenna | G39: Cable Loss | I39: 1 | J39: [dB] | K39: =(POWER(10,(I39/10)))/1000 -> 0.001258925412 | L39: [Watts]
G40: AP Antenna Gain | I40: =C21 -> 15 | J40: [dBi] | K40: =C9 -> 90° sector
B41: Total DL Gain (MCS15) = | C41: =$C$19-$C$20+$C$21-C23+$C$39 -> 115 | D41: [dB] | E41: Total UL Gain (MCS15) = | G41: =$I$19+$I$21-I23-$I$39+$I$40 -> 117 | H41: [dB]
B42: Total DL Gain (MCS14) = | C42: 117 | D42: [dB] | E42: Total UL Gain (MCS14) = | G42: 118 | H42: [dB]
B43: Total DL Gain (MCS13) = | C43: 120 | D43: [dB] | E43: Total UL Gain (MCS13) = | G43: 120 | H43: [dB]
B44: Total DL Gain (MCS12) = | C44: 124 | D44: [dB] | E44: Total UL Gain (MCS12) = | G44: 125 | H44: [dB]
B45: Total DL Gain (MCS11) = | C45: 129 | D45: [dB] | E45: Total UL Gain (MCS11) = | G45: 128 | H45: [dB]
B46: Total DL Gain (MCS10) = | C46: 130 | D46: [dB] | E46: Total UL Gain (MCS10) = | G46: 131 | H46: [dB]
B47: Total DL Gain (MCS9) = | C47: 134 | D47: [dB] | E47: Total UL Gain (MCS9) = | G47: 133 | H47: [dB]
B48: Total DL Gain (MCS1) = | C48: 137 | D48: [dB] | E48: Total UL Gain (MCS1) = | G48: 136 | H48: [dB]
B50: The link is | C50: =IF(ROUND(C48,0)=ROUND(G48,0), "balanced",IF(ROUND(C48,0)>ROUND(G48,0),"uplink","downlink")) -> uplink | D50: =IF(ROUND(C48,0)=ROUND(G48,0),"","limited by") -> limited by | E50: =IF(ROUND(C48,0)=ROUND(G48,0),"",IF(ROUND(C48,0)>ROUND(G48,0),ROUNDUP(C48-G48,0),ROUNDUP(G48-C48,0))) -> 1 | F50: =IF(ROUND(C48,0)=ROUND(G48,0),"","dB") -> dB
B51: COVERAGE AND CAPACITY
B52: Modulation | C52: System Gain | E52: Potential Range | I52: Max DL Throughput | K52: Max UL Throughput | M52: Max Total Throughput | O52: Capacity (Mbps)
B53: 64QAM 5/6 MCS15 | C53: =MIN(C41,G41) -> 115 | D53: dB | E53: =Range!F10 -> 1.418182048 | F53: mi | G53: =E53*1.60934 -> 2.282337097 | H53: km | I53: =Figures!B52 -> 43.2 | J53: Mbps | K53: =Figures!C52 -> 30.4 | L53: Mbps | M53: =I53+K53 -> 73.6 | N53: Mbps | O53: DL | P53: =IF(SUM(I62:J69)=0,0,1/SUM(I62:J69)) -> 22.54153154
B54: 64QAM 3/4 MCS14 | C54: 117 | D54: dB | E54: =Range!F11 -> 1.785385419 | F54: mi | G54: =E54*1.60934 -> 2.87329217 | H54: km | I54: =Figures!B53 -> 37.8 | J54: Mbps | K54: =Figures!C53 -> 26.2 | L54: Mbps | M54: =I54+K54 -> 64 | N54: Mbps | O54: UL | P54: =IF(SUM(K62:L69)=0,0,1/SUM(K62:L69)) -> 16.5543638
B55: 64QAM 2/3 MCS13 | C55: 120 | D55: dB | E55: =Range!F12 -> 2.521923935 | F55: mi | G55: 4.058633066 | H55: km | I55: =Figures!B54 -> 34.2 | J55: Mbps | K55: =Figures!C54 -> 24.2 | L55: Mbps | M55: =I55+K55 -> 58.4 | N55: Mbps | O55: Total | P55: =P53+P54 -> 39.09589534
B56: 16QAM 3/4 MCS12 | C56: 124 | D56: dB | E56: =Range!F13 -> 3.996980077 | F56: mi | G56: 6.432499918 | H56: km | I56: =Figures!B55 -> 25.2 | J56: Mbps | K56: =Figures!C55 -> 18.2 | L56: Mbps | M56: =I56+K56 -> 43.4 | N56: Mbps
B57: 16QAM 1/2 MCS11 | C57: 128 | D57: dB | E57: =Range!F14 -> 6.334786515 | F57: mi | G57: 10.19482533 | H57: km | I57: =Figures!B56 -> 16.2 | J57: Mbps | K57: =Figures!C56 -> 12.2 | L57: Mbps | M57: 28.4 | N57: Mbps | O57: Scheduling latency (ms)
B58: QPSK 3/4 MCS10 | C58: 130 | D58: dB | E58: =Range!F15 -> 7.975023722 | F58: mi | G58: 12.83452468 | H58: km | I58: =Figures!B57 -> 12.6 | J58: Mbps | K58: =Figures!C57 -> 8 | L58: Mbps | M58: 20.6 | N58: Mbps | O58: DL | P58: =HLOOKUP('LINK BUDGET'!C14,'UDP traffic'!B35:DQ77,41) -> 17.5
B59: QPSK 1/2 MCS9 | C59: 133 | D59: dB | E59: =Range!F16 -> 11.26502043 | F59: mi | G59: 18.12924797 | H59: km | I59: =Figures!B58 -> 9 | J59: Mbps | K59: =Figures!C58 -> 6 | L59: Mbps | M59: 15 | N59: Mbps | O59: UL | P59: =HLOOKUP('LINK BUDGET'!C14,'UDP traffic'!B35:DQ77,42) -> 16.11111111
B60: QPSK 1/2 SS MCS1 | C60: 136 | D60: dB | E60: =Range!F17 -> 15.91226429 | F60: mi | G60: 25.60824342 | H60: km | I60: =Figures!B59 -> 3.6 | J60: Mbps | K60: =Figures!C59 -> 2 | L60: Mbps | M60: 5.6 | N60: Mbps | O60: Total | P60: =P58+P59 -> 33.61111111
C61: Actual range | E61: Area (sq mi) | G61: % Area | I61: DL Time | K61: UL Time
B62: 64QAM 5/6 | C62: =MIN(E53,$C$11) -> 1.418182048 | D62: mi | E62: =C62^2*3.14 -> 6.315294608 | G62: =E62/SUM($E$62:$F$69) -> 0.08044961284 | I62: =IF(I53=0,0,G62/I53) -> 0.001862259557 | K62: =IF(K53=0,0,G62/K53) -> 0.002646368843
B63: 64QAM 3/4 | C63: =MIN(E54,$C$11) -> 1.785385419 | D63: mi | E63: =C63^2*3.14-C62^2*3.14 -> 3.693772825 | G63: 0.04705443089 | I63: =IF(I54=0,0,G63/I54) -> 0.001244826214 | K63: =IF(K54=0,0,G63/K54) -> 0.001795970645
B64: 64QAM 2/3 | C64: 2.521923935 | D64: mi | E64: =C64^2*3.14-C63^2*3.14 -> 9.961647624 | G64: 0.1268999697 | I64: 0.003710525431 | K64: 0.005243800402
B65: 16QAM 3/4 | C65: 3.996980077 | D65: mi | E65: 30.19345312 | G65: 0.3846299761 | I65: 0.01526309429 | K65: 0.02113351517
B66: 16QAM 1/2 | C66: 5 | D66: mi | E66: 28.33583182 | G66: 0.3609660105 | I66: 0.0222818525 | K66: 0.02958737791
B67: QPSK 3/4 | C67: 5 | D67: mi | E67: 0 | G67: 0 | I67: 0 | K67: 0
B68: QPSK 1/2 | C68: 5 | D68: mi | E68: 0 | G68: 0 | I68: 0 | K68: 0
B69: QPSK 1/2 SS | C69: 5 | D69: mi | E69: 0 | G69: 0 | I69: 0 | K69: 0

Sheet Figures (hidden)
A1: OUTPUTS | D1: Frequency band | E1: Lower frequency | F1: Upper frequency | G1: Max center frequency | H1: MAX Tx power FCC | I1: MAX Tx power ETSI | J1: MAX Tx power Others
A2: Lower Frequency: | B2: =VLOOKUP('LINK BUDGET'!C6,Figures!D2:F8,2) -> 5.725 | D2: 2.4 | E2: 2.412 | F2: 2.472 | G2: 2460 (TBD) | H2: 23 (TBD) | I2: (TBD) | J2: 23 (TBD)
A3: Upper Frequency: | B3: =VLOOKUP('LINK BUDGET'!C6,Figures!D2:F8,3) -> 5.875 | D3: 5.1 | E3: 5.15 | F3: 5.25 | G3: =IF('LINK BUDGET'!C8=20,5240,5230) -> 5240 | H3: X | I3: X | J3: 18
A4: Max Tx power: | B4: =IF('LINK BUDGET'!C5="Others",VLOOKUP('LINK BUDGET'!C6,Figures!D2:J8,7),IF('LINK BUDGET'!C5="FCC",VLOOKUP('LINK BUDGET'!C6,Figures!D2:J8,5),VLOOKUP('LINK BUDGET'!C6,Figures!D2:J8,6))) -> 23 | D4: 5.2 | E4: 5.25 | F4: 5.35 | G4: =IF('LINK BUDGET'!C5="FCC",5320,5340)-IF('LINK BUDGET'!C8=20,0,10) -> 5340 | H4: =IF('LINK BUDGET'!C8=20,12,13) -> 12 | I4: X | J4: 18
A5: AP EIRP limit: | B5: =VLOOKUP('LINK BUDGET'!C6,Figures!A21:H27,IF('LINK BUDGET'!C5="FCC",4,IF('LINK BUDGET'!C5="ETSI",7,8))) -> - | D5: 5.4 lower | E5: 5.47 | F5: 5.55 | G5: =IF('LINK BUDGET'!C8=20,5540,5530) -> 5540 | H5: 10 | I5: X | J5: X
A6: STA EIRP limit: | B6: =VLOOKUP('LINK BUDGET'!C6,Figures!A31:H37,IF('LINK BUDGET'!C5="FCC",4,IF('LINK BUDGET'!C5="ETSI",7,8))) -> - | D6: 5.4 upper | E6: 5.55 | F6: 5.725 | G6: =IF('LINK BUDGET'!C8=20,5705,5695) -> 5705 | H6: 13 | I6: X | J6: X
A7: Max center freq: | B7: =IF('LINK BUDGET'!C8=20,VLOOKUP('LINK BUDGET'!C6,Figures!D2:J8,4),VLOOKUP('LINK BUDGET'!C6,Figures!D2:J8,4)-10) -> 5865 | D7: 5.4 | E7: 5.47 | F7: 5.725 | G7: =IF('LINK BUDGET'!C8=20,5715,5705) -> 5715 | H7: X | I7: 15 | J7: 19
D8: 5.7/5.8 | E8: 5.725 | F8: =IF('LINK BUDGET'!C5="FCC",5.85,5.875) -> 5.875 | G8: =IF('LINK BUDGET'!C5="FCC",5835,5865)-IF('LINK BUDGET'!C8=20,0,10) -> 5865 | H8: 23 | I8: 23 | J8: 23
A11: Supported bands
A12: FCC | B12: ETSI | C12: Others
A13: 2.4 | B13: 2.4 | C13: 2.4
A14: 5.2 | B14: 5.4 | C14: 5.1
A15: 5.4 lower | B15: 5.7/5.8 | C15: 5.2
A16: 5.4 upper | C16: 5.4
A17: 5.7/5.8 | C17: 5.7/5.8
A19: AP EIRP limits | B19: FCC | E19: ETSI | H19: Others
A20: Band | B20: max EIRP | C20: max density | D20: EIRP limit | E20: max EIRP | F20: max density | G20: EIRP limit | H20: EIRP limit
A21: 2.4 | B21: 36 | C21: 23 | D21: =IF(B21="X","X",MIN(B21,C21+10*LOG10('LINK BUDGET'!$C$8))) -> 36 | E21: 20 | F21: 7 | G21: =IF(E21="X","X",MIN(E21,F21+10*LOG10('LINK BUDGET'!$C$8))) -> 20 | H21: -
A22: 5.1 | B22: X | C22: X | D22: =IF(B22="X","X",MIN(B22,C22+10*LOG10('LINK BUDGET'!$C$8))) -> X | E22: X | F22: X | G22: =IF(E22="X","X",MIN(E22,F22+10*LOG10('LINK BUDGET'!$C$8))) -> X | H22: -
A23: 5.2 | B23: 30 | C23: 10 | D23: =IF(B23="X","X",MIN(B23,C23+10*LOG10('LINK BUDGET'!$C$8))) -> 23.01029996 | E23: X | F23: X | G23: =IF(E23="X","X",MIN(E23,F23+10*LOG10('LINK BUDGET'!$C$8))) -> X | H23: -
A24: 5.4 | B24: X | C24: X | D24: =IF(B24="X","X",MIN(B24,C24+10*LOG10('LINK BUDGET'!$C$8))) -> X | E24: 30 | F24: 17 | G24: =IF(E24="X","X",MIN(E24,F24+10*LOG10('LINK BUDGET'!$C$8))) -> 30 | H24: -
A25: 5.4 lower | B25: 30 | C25: 17 | D25: =IF(B25="X","X",MIN(B25,C25+10*LOG10('LINK BUDGET'!$C$8))) -> 30 | E25: X | F25: X | G25: =IF(E25="X","X",MIN(E25,F25+10*LOG10('LINK BUDGET'!$C$8))) -> X | H25: -
A26: 5.4 upper | B26: 30 | C26: 17 | D26: =IF(B26="X","X",MIN(B26,C26+10*LOG10('LINK BUDGET'!$C$8))) -> 30 | E26: X | F26: X | G26: =IF(E26="X","X",MIN(E26,F26+10*LOG10('LINK BUDGET'!$C$8))) -> X | H26: -
A27: 5.7/5.8 | B27: 36 | C27: 23 | D27: =IF(B27="X","X",MIN(B27,C27+10*LOG10('LINK BUDGET'!$C$8))) -> 36 | E27: 36 | F27: 23 | G27: =IF(E27="X","X",MIN(E27,F27+10*LOG10('LINK BUDGET'!$C$8))) -> 36 | H27: -
A29: STA EIRP limits | B29: FCC | E29: ETSI | H29: Others
A30: Band | B30: max EIRP | C30: max density | D30: EIRP limit | E30: max EIRP | F30: max density | G30: EIRP limit | H30: EIRP limit
A31: 2.4 | B31: - | C31: - | D31: =30+6+('LINK BUDGET'!I21-6)/3 -> 38.33333333 | E31: 20 | F31: 7 | G31: =IF(E31="X","X",MIN(E31,F31+10*LOG10('LINK BUDGET'!$C$8))) -> 20 | H31: -
A32: 5.1 | B32: X | C32: X | D32: =IF(B32="X","X",MIN(B32,C32+10*LOG10('LINK BUDGET'!$C$8))) -> X | E32: X | F32: X | G32: =IF(E32="X","X",MIN(E32,F32+10*LOG10('LINK BUDGET'!$C$8))) -> X | H32: -
A33: 5.2 | B33: 30 | C33: 10 | D33: =IF(B33="X","X",MIN(B33,C33+10*LOG10('LINK BUDGET'!$C$8))) -> 23.01029996 | E33: X | F33: X | G33: =IF(E33="X","X",MIN(E33,F33+10*LOG10('LINK BUDGET'!$C$8))) -> X | H33: -
A34: 5.4 | B34: X | C34: X | D34: =IF(B34="X","X",MIN(B34,C34+10*LOG10('LINK BUDGET'!$C$8))) -> X | E34: 30 | F34: 17 | G34: =IF(E34="X","X",MIN(E34,F34+10*LOG10('LINK BUDGET'!$C$8))) -> 30 | H34: -
A35: 5.4 lower | B35: 30 | C35: 17 | D35: =IF(B35="X","X",MIN(B35,C35+10*LOG10('LINK BUDGET'!$C$8))) -> 30 | E35: X | F35: X | G35: =IF(E35="X","X",MIN(E35,F35+10*LOG10('LINK BUDGET'!$C$8))) -> X | H35: -
A36: 5.4 upper | B36: 30 | C36: 17 | D36: =IF(B36="X","X",MIN(B36,C36+10*LOG10('LINK BUDGET'!$C$8))) -> 30 | E36: X | F36: X | G36: =IF(E36="X","X",MIN(E36,F36+10*LOG10('LINK BUDGET'!$C$8))) -> X | H36: -
A37: 5.7/5.8 | B37: - | C37: - | D37: - | E37: 36 | F37: 23 | G37: =IF(E37="X","X",MIN(E37,F37+10*LOG10('LINK BUDGET'!$C$8))) -> 36 | H37: -
A39: SENSITIVITY (Combined) | G39: SENSITIVITY (Output)
A40: Modulation | B40: AP sens 20MHz | C40: AP sens 40MHz | D40: STA sens 20MHz | E40: STA sens 40MHz | G40: Modulation | H40: AP | I40: STA
A41: 64QAM 5/6 | B41: -65 | C41: =B41+3 -> -62 | D41: -67 | E41: =C41 -> -62 | G41: 64QAM 5/6 | H41: =$H$55+'LINK BUDGET'!C31 -> -70 | I41: =$H$55+'LINK BUDGET'!I31 -> -68
A42: 64QAM 3/4 | B42: -67 | C42: =B42+3 -> -64 | D42: -68 | E42: =C42 -> -64 | G42: 64QAM 3/4 | H42: =$H$55+'LINK BUDGET'!C32 -> -71 | I42: =$H$55+'LINK BUDGET'!I32 -> -70
A43: 64QAM 2/3 | B43: -70 | C43: -67 | D43: -70 | E43: -67 | G43: 64QAM 2/3 | H43: =$H$55+'LINK BUDGET'!C33 -> -73 | I43: =$H$55+'LINK BUDGET'!I33 -> -73
A44: 16QAM 3/4 | B44: -74 | C44: -71 | D44: -75 | E44: -71 | G44: 16QAM 3/4 | H44: =$H$55+'LINK BUDGET'!C34 -> -78 | I44: =$H$55+'LINK BUDGET'!I34 -> -77
A45: 16QAM 1/2 | B45: -79 | C45: -76 | D45: -78 | E45: -76 | G45: 16QAM 1/2 | H45: =$H$55+'LINK BUDGET'!C35 -> -81 | I45: =$H$55+'LINK BUDGET'!I35 -> -82
A46: QPSK 3/4 | B46: -80 | C46: -77 | D46: -81 | E46: -77 | G46: QPSK 3/4 | H46: =$H$55+'LINK BUDGET'!C36 -> -84 | I46: =$H$55+'LINK BUDGET'!I36 -> -83
A47: QPSK 1/2 | B47: -84 | C47: -81 | D47: -83 | E47: -81 | G47: QPSK 1/2 | H47: =$H$55+'LINK BUDGET'!C37 -> -86 | I47: =$H$55+'LINK BUDGET'!I37 -> -87
A48: QPSK 1/2 SS | B48: -87 | C48: -84 | D48: -86 | E48: -84 | G48: QPSK 1/2 SS | H48: =$H$55+'LINK BUDGET'!C38 -> -89 | I48: =$H$55+'LINK BUDGET'!I38 -> -90
A50: THROUGHPUT | G50: Interference (dBm) | H50: ='LINK BUDGET'!C17 -> 0
A51: Modulation | B51: DL | C51: UL | G51: Interference (linear) | H51: =IF(H50=0,0,10^(H50/10)) -> 0
A52: MCS15 | B52: 43.2 | C52: 30.4 | G52: Noise floor (dBm) | H52: =-98+10*LOG('LINK BUDGET'!C8/20,10) -> -98
A53: MCS14 | B53: 37.8 | C53: 26.2 | G53: Noise floor (linear) | H53: =10^(H52/10) -> 1.584893192e-10
A54: MCS13 | B54: 34.2 | C54: 24.2 | G54: New noise floor (linear) | H54: =H51+H53 -> 1.584893192e-10
A55: MCS12 | B55: 25.2 | C55: 18.2 | G55: New noise floor (dB) | H55: =10*LOG10(H54) -> -98
A56: MCS11 | B56: 16.2 | C56: 12.2 | G56: Delta noise floor (dB) | H56: =H52-H55 -> 0
A57: MCS10 | B57: 12.6 | C57: 8
A58: MCS9 | B58: 9 | C58: 6
A59: MCS1 | B59: 3.6 | C59: 2

Sheet Range (hidden)
A1: Frequency (MHz) | B1: ='LINK BUDGET'!C6 -> 5.7/5.8
A2: Max center freq (MHz) | B2: =Figures!B7 -> 5865
A3: Fade Margin (dB) | B3: ='LINK BUDGET'!C7 -> 0
A4: Environment | B4: ='LINK BUDGET'!C10 -> rural
A6: Free space path loss | B6: Gain | C6: Rural | D6: Suburban | E6: Urban | F6: Output
B7: dB | C7: Range (miles) | D7: Range (miles) | E7: Range (miles) | F7: Range (miles)
A8: Exponent | C8: 2 | D8: 2.5 | E8: 3
A10: Gain MCS15 (dB) | B10: ='LINK BUDGET'!C53 -> 115 | C10: =10^((B10-(20*LOG($B$2))-36.6-$B$3)/(10*$C$8)) -> 1.418182048 | D10: =10^((B10-(20*LOG($B$2))-36.6-$B$3)/(10*$D$8)) -> 1.322469263 | E10: =10^((B10-(20*LOG($B$2))-36.6-$B$3)/(10*$E$8)) -> 1.262276961 | F10: =IF($B$4="rural",C10,IF($B$4="suburban",D10,E10)) -> 1.418182048
A11: Gain MCS14 (dB) | B11: ='LINK BUDGET'!C54 -> 117 | C11: =10^((B11-(20*LOG($B$2))-36.6-$B$3)/(10*$C$8)) -> 1.785385419 | D11: =10^((B11-(20*LOG($B$2))-36.6-$B$3)/(10*$D$8)) -> 1.589957761 | E11: =10^((B11-(20*LOG($B$2))-36.6-$B$3)/(10*$E$8)) -> 1.471706888 | F11: =IF($B$4="rural",C11,IF($B$4="suburban",D11,E11)) -> 1.785385419
A12: Gain MCS13 (dB) | B12: ='LINK BUDGET'!C55 -> 120 | C12: 2.521923935 | D12: 2.095972532 | E12: 1.852769199 | F12: 2.521923935
A13: Gain MCS12 (dB) | B13: ='LINK BUDGET'!C56 -> 124 | C13: 3.996980077 | D13: 3.029602056 | E13: 2.518573652 | F13: 3.996980077
A14: Gain MCS11 (dB) | B14: ='LINK BUDGET'!C57 -> 128 | C14: 6.334786515 | D14: 4.379107301 | E14: 3.42363919 | F14: 6.334786515
A15: Gain MCS10 (dB) | B15: ='LINK BUDGET'!C58 -> 130 | C15: 7.975023722 | D15: 5.264844964 | E15: 3.991670236 | F15: 7.975023722
A16: Gain MCS9 (dB) | B16: ='LINK BUDGET'!C59 -> 133 | C16: 11.26502043 | D16: 6.940417351 | E16: 5.025215095 | F16: 11.26502043
A17: Gain MCS8 (dB) | B17: ='LINK BUDGET'!C60 -> 136 | C17: 15.91226429 | D17: 9.149251941 | E17: 6.326370983 | F17: 15.91226429

Sheet Input (hidden)
A1: Frame duration (msec) | B1: ='LINK BUDGET'!C13 -> 5 | C1: ←◊
A2: TDD Ratio | B2: ='LINK BUDGET'!C15 -> 50/50 | C2: ←◊
A3: Channel Bandwdith (MHz) | B3: ='LINK BUDGET'!C8 -> 20 | C3: ←◊
A4: Cell Radius (miles) | B4: ='LINK BUDGET'!C11 -> 5 | C4: ←◊
A5: Overall CPU PPF (Packet Per Frame) Limit | B5: =VLOOKUP(B1,LookupTab!I27:K29,3,FALSE) -> 200
A6: CPU PPF (Packet Per Frame) Limit (DL based on TDD Ratio) | B6: =ROUNDUP(VLOOKUP(B2,LookupTab!D10:G18,2,FALSE)*Input!B5,0) -> 100
A7: CPU PPF (Packet Per Frame) Limit (UL based on TDD Ratio) | B7: =B5-B6 -> 100
A8: MAX_CONTROL_OH | B8: 0.15 | C8: ←◊
A9: DL Users Scheduled / frame | B9: =ROUNDDOWN(B8*B45/(B14+B28),0) -> 8
A10: UL Users Scheduled / frame | B10: =VLOOKUP(B2,LookupTab!M10:P18,IF(Input!B1=2.5,2,IF(Input!B1=5,3,4)),FALSE) -> 9
A12: MCS | B12: MCS1 | C12: ←◊
A14: Data Peamble Time (usec) | B14: 36
A15: Control Preamble Time (usec) | B15: 32
A16: Frames / Sec | B16: =1000/B1 -> 200
A17: Ethernet Header (Bytes) | B17: 18
A18: IP Header (Bytes) | B18: 20
A19: UDP Header (Bytes) | B19: 8
A20: UDP/IP/Ethernet Header length (Bytes) | B20: =SUM(B17:B19) -> 46
A21: UDP Payload Size (Bytes) | B21: ='LINK BUDGET'!C16 -> 1472 | C21: ←◊
A22: Ethernet Packet Size (Bytes) | B22: =B21+B20 -> 1518
A23: MAC MPDU Header Length (Bytes) | B23: 40
A24: DL PHY/MAC/IP/TCP Overhead | B24: =(B23+B20)/B21 -> 0.05842391304
A26: STA's Time between consecutive MPDUs in A-MPDU (usec) | B26: 0
A27: AP's Time between consecutive MPDUs in A-MPDU (usec) | B27: 0
A28: DL Inter STA Transmission Time (usec) | B28: 8
A30: AP Jitter (Gated-Beacon Jitter) (usec) (Jap) | B30: 10
A31: HW Transmission Delay (usec) | B31: 0 | D31: Not Used compensated for in the "AP Jitter"
A32: UL Inter STA Transmission Time (usec) | B32: =B30+B31 -> 10
A33: Clock drift between GPS Synced APs in 1 PPS (usec) (SyncShift) | B33: 10
A34: 1PPS Stabilizer Error (Estab) | B34: 1.2
A36: Transmit to Receive switch time (usec) (ttr) | B36: 4
A37: Receive to Transmit switch time (usec) (rtot) | B37: 4
A39: MAX MPDUs ACKed in ACK Cycle (3 frames) (for UL ACK STA --> AP) | B39: =3*B6 -> 300
A40: MAC Management/Contol Header Size (Bytes) | B40: 28
A41: UL ACK Frame Ies size (w/o ACK BITMAP) (Bytes) | B41: 9
A42: ARQ ACK Frame Size Including MAC Header (STA --> AP) (Bytes) | B42: =B40+B41+ROUNDUP(B39/8,0) -> 75
A43: ARQ ACK Frame Time (usec) | B43: =ROUND(B15+(B42*8/(IF(B3=20,52,108)))*4,0) -> 78
A45: DL Useable duration (usec) | B45: =IF(B1=2.5,VLOOKUP(B2,LookupTab!D9:G18,3,FALSE),IF(B1=5,VLOOKUP(B2,LookupTab!D24:G33,3,FALSE),VLOOKUP(B2,LookupTab!D38:G47,3,FALSE))) -> 2463
A46: UL Useable duration (usec) | B46: =IF(B1=2.5,VLOOKUP(B2,LookupTab!D9:G18,4,FALSE),IF(B1=5,VLOOKUP(B2,LookupTab!D24:G33,4,FALSE),VLOOKUP(B2,LookupTab!D38:G47,4,FALSE))) -> 2409
A47: MCS (b/sym) | B47: =IF(B3=20,VLOOKUP(B12,LookupTab!I9:K22,2,FALSE),VLOOKUP(B12,LookupTab!I9:K22,3,FALSE)) -> 52
A48: Max DL data/frame (KB) | B48: =($B$47/8) * ((B45-($B$14*B9))/4)/1024 -> 3.451538086
A49: Max UL data/frame (KB) | B49: =($B$47/8) * ((B46-($B$14*B10))/4)/1024 -> 3.30871582
A52: Roundtrip Delay (usec) (PD(cs)) | B52: =2*B4*1000000 /186282.397 -> 53.68193754
A53: TTRG (usec) | B53: =ROUNDUP(B30 + 2*B33+2*B34+B36+B52,0) -> 91
A54: RTTG (usec) | B54: =ROUNDUP(B30+2*B33+2*B34+B37,0) -> 37
A56: Maximum Cell Size (miles) | B56: =IF(2*B4<10, 10, 40) -> 40
A57: PD(mcs) | B57: =B56*1000000 /186282.397 -> 214.7277501
A59: STA Jitter | B59: 12
A60: UL IFS | B60: 8
A61: INAR Duration + Preamble | B61: 72
A62: CW duration (usec) | B62: =ROUNDUP(B59+B60+B61+2*B57-B52,0) -> 468

Sheet UDP traffic (hidden)
A1: Frame duration (msec) | B1: =Input!B1 -> 5 | D1: Do not update …. Refer to "Input" Tab
A2: TDD Ratio | B2: =Input!B2 -> 50/50
A3: CPU PPF (Packet Per Frame) Limit (DL based on TDD Ratio) | B3: =Input!B6 -> 100
A4: CPU PPF (Packet Per Frame) Limit (UL based on TDD Ratio) | B4: =Input!B7 -> 100
A5: DL Users Scheduled / frame | B5: =Input!B9 -> 8
A6: UL Users Scheduled / frame | B6: =Input!B10 -> 9
A8: Peamble Time (usec) | B8: =Input!B14 -> 36
A9: Frames / Sec | B9: =Input!B16 -> 200
A10: Ethernet Header (Bytes) | B10: =Input!B17 -> 18
A11: IP Header (Bytes) | B11: =Input!B18 -> 20
A12: UDP Header (Bytes) | B12: =Input!B19 -> 8
A13: UDP/IP/Ethernet Header length (Bytes) | B13: =Input!B20 -> 46
A14: UDP Payload Size (Bytes) | B14: =Input!B21 -> 1472
A15: MAC MPDU Header Length (Bytes) | B15: =Input!B23 -> 40
A16: DL PHY/MAC/IP/TCP Overhead | B16: =Input!B24 -> 0.05842391304
A18: STA's Time between consecutive MPDUs in A-MPDU (usec) | B18: =Input!B26 -> 0
A19: AP's Time between consecutive MPDUs in A-MPDU (usec) | B19: =Input!B27 -> 0
A20: DL Inter STA Transmission Time (usec) | B20: =Input!B28 -> 8
A21: UL Inter STA Transmission Time (usec) | B21: =Input!B32 -> 10
A24: DL Useable duration (usec) | B24: =Input!B45 -> 2463
A25: UL Useable duration (usec) | B25: =Input!B46 -> 2409
A26: MCS (b/sym) | B26: =Input!B47 -> 52
A27: Max DL data/frame (KB) | B27: =Input!B48 -> 3.451538086
A29: ARQ ACK (STA --> AP) Time (usec) | B29: =Input!B43 + B19 -> 78
A32: Packet Transmission Time (usec) | B32: =(SUM(B13:B15)*8/B26)*4 -> 958.7692308
A33: MAC MPDU Header Transmission time (usec) | B33: =ROUND(B15*8/B26*4,1) -> 24.6
A35: Number STAs in the system | B35: 1 | C35: 2 | D35: 3 | E35: 4 | F35: 5 | G35: 6 | H35: 7 | I35: 8 | J35: 9 | K35: 10 | L35: 11 | M35: 12 | N35: 13 | O35: 14 | P35: 15 | Q35: 16 | R35: 17 | S35: 18 | T35: 19 | U35: 20 | V35: 21 | W35: 22 | X35: 23 | Y35: 24 | Z35: 25 | AA35: 26 | AB35: 27 | AC35: 28 | AD35: 29 | AE35: 30 | AF35: 31 | AG35: 32 | AH35: 33 | AI35: 34 | AJ35: 35 | AK35: 36 | AL35: 37 | AM35: 38 | AN35: 39 | AO35: 40 | AP35: 41 | AQ35: 42 | AR35: 43 | AS35: 44 | AT35: 45 | AU35: 46 | AV35: 47 | AW35: 48 | AX35: 49 | AY35: 50 | AZ35: 51 | BA35: 52 | BB35: 53 | BC35: 54 | BD35: 55 | BE35: 56 | BF35: 57 | BG35: 58 | BH35: 59 | BI35: 60 | BJ35: 61 | BK35: 62 | BL35: 63 | BM35: 64 | BN35: 65 | BO35: 66 | BP35: 67 | BQ35: 68 | BR35: 69 | BS35: 70 | BT35: 71 | BU35: 72 | BV35: 73 | BW35: 74 | BX35: 75 | BY35: 76 | BZ35: 77 | CA35: 78 | CB35: 79 | CC35: 80 | CD35: 81 | CE35: 82 | CF35: 83 | CG35: 84 | CH35: 85 | CI35: 86 | CJ35: 87 | CK35: 88 | CL35: 89 | CM35: 90 | CN35: 91 | CO35: 92 | CP35: 93 | CQ35: 94 | CR35: 95 | CS35: 96 | CT35: 97 | CU35: 98 | CV35: 99 | CW35: 100 | CX35: 101 | CY35: 102 | CZ35: 103 | DA35: 104 | DB35: 105 | DC35: 106 | DD35: 107 | DE35: 108 | DF35: 109 | DG35: 110 | DH35: 111 | DI35: 112 | DJ35: 113 | DK35: 114 | DL35: 115 | DM35: 116 | DN35: 117 | DO35: 118 | DP35: 119 | DQ35: 120
A36: DL Active STAs (With Data to Transmit) | B36: =VLOOKUP(B35,'User Traffic Profile 1'!$A$9:$F$128,3,FALSE) -> 1 | C36: =VLOOKUP(C35,'User Traffic Profile 1'!$A$9:$F$128,3,FALSE) -> 2 | D36: =VLOOKUP(D35,'User Traffic Profile 1'!$A$9:$F$128,3,FALSE) -> 3 | E36: =VLOOKUP(E35,'User Traffic Profile 1'!$A$9:$F$128,3,FALSE) -> 4 | F36: =VLOOKUP(F35,'User Traffic Profile 1'!$A$9:$F$128,3,FALSE) -> 5 | G36: =VLOOKUP(G35,'User Traffic Profile 1'!$A$9:$F$128,3,FALSE) -> 6 | H36: =VLOOKUP(H35,'User Traffic Profile 1'!$A$9:$F$128,3,FALSE) -> 7 | I36: =VLOOKUP(I35,'User Traffic Profile 1'!$A$9:$F$128,3,FALSE) -> 8 | J36: =VLOOKUP(J35,'User Traffic Profile 1'!$A$9:$F$128,3,FALSE) -> 9 | K36: =VLOOKUP(K35,'User Traffic Profile 1'!$A$9:$F$128,3,FALSE) -> 10 | L36: =VLOOKUP(L35,'User Traffic Profile 1'!$A$9:$F$128,3,FALSE) -> 11 | M36: =VLOOKUP(M35,'User Traffic Profile 1'!$A$9:$F$128,3,FALSE) -> 12 | N36: =VLOOKUP(N35,'User Traffic Profile 1'!$A$9:$F$128,3,FALSE) -> 13 | O36: =VLOOKUP(O35,'User Traffic Profile 1'!$A$9:$F$128,3,FALSE) -> 14 | P36: =VLOOKUP(P35,'User Traffic Profile 1'!$A$9:$F$128,3,FALSE) -> 15 | Q36: =VLOOKUP(Q35,'User Traffic Profile 1'!$A$9:$F$128,3,FALSE) -> 16 | R36: =VLOOKUP(R35,'User Traffic Profile 1'!$A$9:$F$128,3,FALSE) -> 17 | S36: =VLOOKUP(S35,'User Traffic Profile 1'!$A$9:$F$128,3,FALSE) -> 18 | T36: =VLOOKUP(T35,'User Traffic Profile 1'!$A$9:$F$128,3,FALSE) -> 19 | U36: =VLOOKUP(U35,'User Traffic Profile 1'!$A$9:$F$128,3,FALSE) -> 20 | V36: =VLOOKUP(V35,'User Traffic Profile 1'!$A$9:$F$128,3,FALSE) -> 21 | W36: =VLOOKUP(W35,'User Traffic Profile 1'!$A$9:$F$128,3,FALSE) -> 22 | X36: =VLOOKUP(X35,'User Traffic Profile 1'!$A$9:$F$128,3,FALSE) -> 23 | Y36: =VLOOKUP(Y35,'User Traffic Profile 1'!$A$9:$F$128,3,FALSE) -> 24 | Z36: =VLOOKUP(Z35,'User Traffic Profile 1'!$A$9:$F$128,3,FALSE) -> 25 | AA36: =VLOOKUP(AA35,'User Traffic Profile 1'!$A$9:$F$128,3,FALSE) -> 26 | AB36: =VLOOKUP(AB35,'User Traffic Profile 1'!$A$9:$F$128,3,FALSE) -> 27 | AC36: =VLOOKUP(AC35,'User Traffic Profile 1'!$A$9:$F$128,3,FALSE) -> 28 | AD36: =VLOOKUP(AD35,'User Traffic Profile 1'!$A$9:$F$128,3,FALSE) -> 29 | AE36: =VLOOKUP(AE35,'User Traffic Profile 1'!$A$9:$F$128,3,FALSE) -> 30 | AF36: =VLOOKUP(AF35,'User Traffic Profile 1'!$A$9:$F$128,3,FALSE) -> 31 | AG36: =VLOOKUP(AG35,'User Traffic Profile 1'!$A$9:$F$128,3,FALSE) -> 32 | AH36: =VLOOKUP(AH35,'User Traffic Profile 1'!$A$9:$F$128,3,FALSE) -> 33 | AI36: =VLOOKUP(AI35,'User Traffic Profile 1'!$A$9:$F$128,3,FALSE) -> 34 | AJ36: =VLOOKUP(AJ35,'User Traffic Profile 1'!$A$9:$F$128,3,FALSE) -> 35 | AK36: =VLOOKUP(AK35,'User Traffic Profile 1'!$A$9:$F$128,3,FALSE) -> 36 | AL36: =VLOOKUP(AL35,'User Traffic Profile 1'!$A$9:$F$128,3,FALSE) -> 37 | AM36: =VLOOKUP(AM35,'User Traffic Profile 1'!$A$9:$F$128,3,FALSE) -> 38 | AN36: =VLOOKUP(AN35,'User Traffic Profile 1'!$A$9:$F$128,3,FALSE) -> 39 | AO36: =VLOOKUP(AO35,'User Traffic Profile 1'!$A$9:$F$128,3,FALSE) -> 40 | AP36: =VLOOKUP(AP35,'User Traffic Profile 1'!$A$9:$F$128,3,FALSE) -> 41 | AQ36: =VLOOKUP(AQ35,'User Traffic Profile 1'!$A$9:$F$128,3,FALSE) -> 42 | AR36: =VLOOKUP(AR35,'User Traffic Profile 1'!$A$9:$F$128,3,FALSE) -> 43 | AS36: =VLOOKUP(AS35,'User Traffic Profile 1'!$A$9:$F$128,3,FALSE) -> 44 | AT36: =VLOOKUP(AT35,'User Traffic Profile 1'!$A$9:$F$128,3,FALSE) -> 45 | AU36: =VLOOKUP(AU35,'User Traffic Profile 1'!$A$9:$F$128,3,FALSE) -> 46 | AV36: =VLOOKUP(AV35,'User Traffic Profile 1'!$A$9:$F$128,3,FALSE) -> 47 | AW36: =VLOOKUP(AW35,'User Traffic Profile 1'!$A$9:$F$128,3,FALSE) -> 48 | AX36: =VLOOKUP(AX35,'User Traffic Profile 1'!$A$9:$F$128,3,FALSE) -> 49 | AY36: =VLOOKUP(AY35,'User Traffic Profile 1'!$A$9:$F$128,3,FALSE) -> 50 | AZ36: =VLOOKUP(AZ35,'User Traffic Profile 1'!$A$9:$F$128,3,FALSE) -> 51 | BA36: =VLOOKUP(BA35,'User Traffic Profile 1'!$A$9:$F$128,3,FALSE) -> 52 | BB36: =VLOOKUP(BB35,'User Traffic Profile 1'!$A$9:$F$128,3,FALSE) -> 53 | BC36: =VLOOKUP(BC35,'User Traffic Profile 1'!$A$9:$F$128,3,FALSE) -> 54 | BD36: =VLOOKUP(BD35,'User Traffic Profile 1'!$A$9:$F$128,3,FALSE) -> 55 | BE36: =VLOOKUP(BE35,'User Traffic Profile 1'!$A$9:$F$128,3,FALSE) -> 56 | BF36: =VLOOKUP(BF35,'User Traffic Profile 1'!$A$9:$F$128,3,FALSE) -> 57 | BG36: =VLOOKUP(BG35,'User Traffic Profile 1'!$A$9:$F$128,3,FALSE) -> 58 | BH36: =VLOOKUP(BH35,'User Traffic Profile 1'!$A$9:$F$128,3,FALSE) -> 59 | BI36: =VLOOKUP(BI35,'User Traffic Profile 1'!$A$9:$F$128,3,FALSE) -> 60 | BJ36: =VLOOKUP(BJ35,'User Traffic Profile 1'!$A$9:$F$128,3,FALSE) -> 61 | BK36: =VLOOKUP(BK35,'User Traffic Profile 1'!$A$9:$F$128,3,FALSE) -> 62 | BL36: =VLOOKUP(BL35,'User Traffic Profile 1'!$A$9:$F$128,3,FALSE) -> 63 | BM36: =VLOOKUP(BM35,'User Traffic Profile 1'!$A$9:$F$128,3,FALSE) -> 64 | BN36: =VLOOKUP(BN35,'User Traffic Profile 1'!$A$9:$F$128,3,FALSE) -> 65 | BO36: =VLOOKUP(BO35,'User Traffic Profile 1'!$A$9:$F$128,3,FALSE) -> 66 | BP36: =VLOOKUP(BP35,'User Traffic Profile 1'!$A$9:$F$128,3,FALSE) -> 67 | BQ36: =VLOOKUP(BQ35,'User Traffic Profile 1'!$A$9:$F$128,3,FALSE) -> 68 | BR36: =VLOOKUP(BR35,'User Traffic Profile 1'!$A$9:$F$128,3,FALSE) -> 69 | BS36: =VLOOKUP(BS35,'User Traffic Profile 1'!$A$9:$F$128,3,FALSE) -> 70 | BT36: =VLOOKUP(BT35,'User Traffic Profile 1'!$A$9:$F$128,3,FALSE) -> 71 | BU36: =VLOOKUP(BU35,'User Traffic Profile 1'!$A$9:$F$128,3,FALSE) -> 72 | BV36: =VLOOKUP(BV35,'User Traffic Profile 1'!$A$9:$F$128,3,FALSE) -> 73 | BW36: =VLOOKUP(BW35,'User Traffic Profile 1'!$A$9:$F$128,3,FALSE) -> 74 | BX36: =VLOOKUP(BX35,'User Traffic Profile 1'!$A$9:$F$128,3,FALSE) -> 75 | BY36: =VLOOKUP(BY35,'User Traffic Profile 1'!$A$9:$F$128,3,FALSE) -> 76 | BZ36: =VLOOKUP(BZ35,'User Traffic Profile 1'!$A$9:$F$128,3,FALSE) -> 77 | CA36: =VLOOKUP(CA35,'User Traffic Profile 1'!$A$9:$F$128,3,FALSE) -> 78 | CB36: =VLOOKUP(CB35,'User Traffic Profile 1'!$A$9:$F$128,3,FALSE) -> 79 | CC36: =VLOOKUP(CC35,'User Traffic Profile 1'!$A$9:$F$128,3,FALSE) -> 80 | CD36: =VLOOKUP(CD35,'User Traffic Profile 1'!$A$9:$F$128,3,FALSE) -> 81 | CE36: =VLOOKUP(CE35,'User Traffic Profile 1'!$A$9:$F$128,3,FALSE) -> 82 | CF36: =VLOOKUP(CF35,'User Traffic Profile 1'!$A$9:$F$128,3,FALSE) -> 83 | CG36: =VLOOKUP(CG35,'User Traffic Profile 1'!$A$9:$F$128,3,FALSE) -> 84 | CH36: =VLOOKUP(CH35,'User Traffic Profile 1'!$A$9:$F$128,3,FALSE) -> 85 | CI36: =VLOOKUP(CI35,'User Traffic Profile 1'!$A$9:$F$128,3,FALSE) -> 86 | CJ36: =VLOOKUP(CJ35,'User Traffic Profile 1'!$A$9:$F$128,3,FALSE) -> 87 | CK36: =VLOOKUP(CK35,'User Traffic Profile 1'!$A$9:$F$128,3,FALSE) -> 88 | CL36: =VLOOKUP(CL35,'User Traffic Profile 1'!$A$9:$F$128,3,FALSE) -> 89 | CM36: =VLOOKUP(CM35,'User Traffic Profile 1'!$A$9:$F$128,3,FALSE) -> 90 | CN36: =VLOOKUP(CN35,'User Traffic Profile 1'!$A$9:$F$128,3,FALSE) -> 91 | CO36: =VLOOKUP(CO35,'User Traffic Profile 1'!$A$9:$F$128,3,FALSE) -> 92 | CP36: =VLOOKUP(CP35,'User Traffic Profile 1'!$A$9:$F$128,3,FALSE) -> 93 | CQ36: =VLOOKUP(CQ35,'User Traffic Profile 1'!$A$9:$F$128,3,FALSE) -> 94 | CR36: =VLOOKUP(CR35,'User Traffic Profile 1'!$A$9:$F$128,3,FALSE) -> 95 | CS36: =VLOOKUP(CS35,'User Traffic Profile 1'!$A$9:$F$128,3,FALSE) -> 96 | CT36: =VLOOKUP(CT35,'User Traffic Profile 1'!$A$9:$F$128,3,FALSE) -> 97 | CU36: =VLOOKUP(CU35,'User Traffic Profile 1'!$A$9:$F$128,3,FALSE) -> 98 | CV36: =VLOOKUP(CV35,'User Traffic Profile 1'!$A$9:$F$128,3,FALSE) -> 99 | CW36: =VLOOKUP(CW35,'User Traffic Profile 1'!$A$9:$F$128,3,FALSE) -> 100 | CX36: =VLOOKUP(CX35,'User Traffic Profile 1'!$A$9:$F$128,3,FALSE) -> 101 | CY36: =VLOOKUP(CY35,'User Traffic Profile 1'!$A$9:$F$128,3,FALSE) -> 102 | CZ36: =VLOOKUP(CZ35,'User Traffic Profile 1'!$A$9:$F$128,3,FALSE) -> 103 | DA36: =VLOOKUP(DA35,'User Traffic Profile 1'!$A$9:$F$128,3,FALSE) -> 104 | DB36: =VLOOKUP(DB35,'User Traffic Profile 1'!$A$9:$F$128,3,FALSE) -> 105 | DC36: =VLOOKUP(DC35,'User Traffic Profile 1'!$A$9:$F$128,3,FALSE) -> 106 | DD36: =VLOOKUP(DD35,'User Traffic Profile 1'!$A$9:$F$128,3,FALSE) -> 107 | DE36: =VLOOKUP(DE35,'User Traffic Profile 1'!$A$9:$F$128,3,FALSE) -> 108 | DF36: =VLOOKUP(DF35,'User Traffic Profile 1'!$A$9:$F$128,3,FALSE) -> 109 | DG36: =VLOOKUP(DG35,'User Traffic Profile 1'!$A$9:$F$128,3,FALSE) -> 110 | DH36: =VLOOKUP(DH35,'User Traffic Profile 1'!$A$9:$F$128,3,FALSE) -> 111 | DI36: =VLOOKUP(DI35,'User Traffic Profile 1'!$A$9:$F$128,3,FALSE) -> 112 | DJ36: =VLOOKUP(DJ35,'User Traffic Profile 1'!$A$9:$F$128,3,FALSE) -> 113 | DK36: =VLOOKUP(DK35,'User Traffic Profile 1'!$A$9:$F$128,3,FALSE) -> 114 | DL36: =VLOOKUP(DL35,'User Traffic Profile 1'!$A$9:$F$128,3,FALSE) -> 115 | DM36: =VLOOKUP(DM35,'User Traffic Profile 1'!$A$9:$F$128,3,FALSE) -> 116 | DN36: =VLOOKUP(DN35,'User Traffic Profile 1'!$A$9:$F$128,3,FALSE) -> 117 | DO36: =VLOOKUP(DO35,'User Traffic Profile 1'!$A$9:$F$128,3,FALSE) -> 118 | DP36: =VLOOKUP(DP35,'User Traffic Profile 1'!$A$9:$F$128,3,FALSE) -> 119 | DQ36: =VLOOKUP(DQ35,'User Traffic Profile 1'!$A$9:$F$128,3,FALSE) -> 120
A37: UL Active STAs (With Data to Transmit) | B37: =VLOOKUP(B35,'User Traffic Profile 1'!$A$9:$F$128,5,FALSE) -> 1 | C37: =VLOOKUP(C35,'User Traffic Profile 1'!$A$9:$F$128,5,FALSE) -> 2 | D37: =VLOOKUP(D35,'User Traffic Profile 1'!$A$9:$F$128,5,FALSE) -> 3 | E37: =VLOOKUP(E35,'User Traffic Profile 1'!$A$9:$F$128,5,FALSE) -> 4 | F37: =VLOOKUP(F35,'User Traffic Profile 1'!$A$9:$F$128,5,FALSE) -> 5 | G37: =VLOOKUP(G35,'User Traffic Profile 1'!$A$9:$F$128,5,FALSE) -> 6 | H37: =VLOOKUP(H35,'User Traffic Profile 1'!$A$9:$F$128,5,FALSE) -> 7 | I37: =VLOOKUP(I35,'User Traffic Profile 1'!$A$9:$F$128,5,FALSE) -> 8 | J37: =VLOOKUP(J35,'User Traffic Profile 1'!$A$9:$F$128,5,FALSE) -> 9 | K37: =VLOOKUP(K35,'User Traffic Profile 1'!$A$9:$F$128,5,FALSE) -> 10 | L37: =VLOOKUP(L35,'User Traffic Profile 1'!$A$9:$F$128,5,FALSE) -> 11 | M37: =VLOOKUP(M35,'User Traffic Profile 1'!$A$9:$F$128,5,FALSE) -> 12 | N37: =VLOOKUP(N35,'User Traffic Profile 1'!$A$9:$F$128,5,FALSE) -> 13 | O37: =VLOOKUP(O35,'User Traffic Profile 1'!$A$9:$F$128,5,FALSE) -> 14 | P37: =VLOOKUP(P35,'User Traffic Profile 1'!$A$9:$F$128,5,FALSE) -> 15 | Q37: =VLOOKUP(Q35,'User Traffic Profile 1'!$A$9:$F$128,5,FALSE) -> 16 | R37: =VLOOKUP(R35,'User Traffic Profile 1'!$A$9:$F$128,5,FALSE) -> 17 | S37: =VLOOKUP(S35,'User Traffic Profile 1'!$A$9:$F$128,5,FALSE) -> 18 | T37: =VLOOKUP(T35,'User Traffic Profile 1'!$A$9:$F$128,5,FALSE) -> 19 | U37: =VLOOKUP(U35,'User Traffic Profile 1'!$A$9:$F$128,5,FALSE) -> 20 | V37: =VLOOKUP(V35,'User Traffic Profile 1'!$A$9:$F$128,5,FALSE) -> 21 | W37: =VLOOKUP(W35,'User Traffic Profile 1'!$A$9:$F$128,5,FALSE) -> 22 | X37: =VLOOKUP(X35,'User Traffic Profile 1'!$A$9:$F$128,5,FALSE) -> 23 | Y37: =VLOOKUP(Y35,'User Traffic Profile 1'!$A$9:$F$128,5,FALSE) -> 24 | Z37: =VLOOKUP(Z35,'User Traffic Profile 1'!$A$9:$F$128,5,FALSE) -> 25 | AA37: =VLOOKUP(AA35,'User Traffic Profile 1'!$A$9:$F$128,5,FALSE) -> 26 | AB37: =VLOOKUP(AB35,'User Traffic Profile 1'!$A$9:$F$128,5,FALSE) -> 27 | AC37: =VLOOKUP(AC35,'User Traffic Profile 1'!$A$9:$F$128,5,FALSE) -> 28 | AD37: =VLOOKUP(AD35,'User Traffic Profile 1'!$A$9:$F$128,5,FALSE) -> 29 | AE37: =VLOOKUP(AE35,'User Traffic Profile 1'!$A$9:$F$128,5,FALSE) -> 30 | AF37: =VLOOKUP(AF35,'User Traffic Profile 1'!$A$9:$F$128,5,FALSE) -> 31 | AG37: =VLOOKUP(AG35,'User Traffic Profile 1'!$A$9:$F$128,5,FALSE) -> 32 | AH37: =VLOOKUP(AH35,'User Traffic Profile 1'!$A$9:$F$128,5,FALSE) -> 33 | AI37: =VLOOKUP(AI35,'User Traffic Profile 1'!$A$9:$F$128,5,FALSE) -> 34 | AJ37: =VLOOKUP(AJ35,'User Traffic Profile 1'!$A$9:$F$128,5,FALSE) -> 35 | AK37: =VLOOKUP(AK35,'User Traffic Profile 1'!$A$9:$F$128,5,FALSE) -> 36 | AL37: =VLOOKUP(AL35,'User Traffic Profile 1'!$A$9:$F$128,5,FALSE) -> 37 | AM37: =VLOOKUP(AM35,'User Traffic Profile 1'!$A$9:$F$128,5,FALSE) -> 38 | AN37: =VLOOKUP(AN35,'User Traffic Profile 1'!$A$9:$F$128,5,FALSE) -> 39 | AO37: =VLOOKUP(AO35,'User Traffic Profile 1'!$A$9:$F$128,5,FALSE) -> 40 | AP37: =VLOOKUP(AP35,'User Traffic Profile 1'!$A$9:$F$128,5,FALSE) -> 41 | AQ37: =VLOOKUP(AQ35,'User Traffic Profile 1'!$A$9:$F$128,5,FALSE) -> 42 | AR37: =VLOOKUP(AR35,'User Traffic Profile 1'!$A$9:$F$128,5,FALSE) -> 43 | AS37: =VLOOKUP(AS35,'User Traffic Profile 1'!$A$9:$F$128,5,FALSE) -> 44 | AT37: =VLOOKUP(AT35,'User Traffic Profile 1'!$A$9:$F$128,5,FALSE) -> 45 | AU37: =VLOOKUP(AU35,'User Traffic Profile 1'!$A$9:$F$128,5,FALSE) -> 46 | AV37: =VLOOKUP(AV35,'User Traffic Profile 1'!$A$9:$F$128,5,FALSE) -> 47 | AW37: =VLOOKUP(AW35,'User Traffic Profile 1'!$A$9:$F$128,5,FALSE) -> 48 | AX37: =VLOOKUP(AX35,'User Traffic Profile 1'!$A$9:$F$128,5,FALSE) -> 49 | AY37: =VLOOKUP(AY35,'User Traffic Profile 1'!$A$9:$F$128,5,FALSE) -> 50 | AZ37: =VLOOKUP(AZ35,'User Traffic Profile 1'!$A$9:$F$128,5,FALSE) -> 51 | BA37: =VLOOKUP(BA35,'User Traffic Profile 1'!$A$9:$F$128,5,FALSE) -> 52 | BB37: =VLOOKUP(BB35,'User Traffic Profile 1'!$A$9:$F$128,5,FALSE) -> 53 | BC37: =VLOOKUP(BC35,'User Traffic Profile 1'!$A$9:$F$128,5,FALSE) -> 54 | BD37: =VLOOKUP(BD35,'User Traffic Profile 1'!$A$9:$F$128,5,FALSE) -> 55 | BE37: =VLOOKUP(BE35,'User Traffic Profile 1'!$A$9:$F$128,5,FALSE) -> 56 | BF37: =VLOOKUP(BF35,'User Traffic Profile 1'!$A$9:$F$128,5,FALSE) -> 57 | BG37: =VLOOKUP(BG35,'User Traffic Profile 1'!$A$9:$F$128,5,FALSE) -> 58 | BH37: =VLOOKUP(BH35,'User Traffic Profile 1'!$A$9:$F$128,5,FALSE) -> 59 | BI37: =VLOOKUP(BI35,'User Traffic Profile 1'!$A$9:$F$128,5,FALSE) -> 60 | BJ37: =VLOOKUP(BJ35,'User Traffic Profile 1'!$A$9:$F$128,5,FALSE) -> 61 | BK37: =VLOOKUP(BK35,'User Traffic Profile 1'!$A$9:$F$128,5,FALSE) -> 62 | BL37: =VLOOKUP(BL35,'User Traffic Profile 1'!$A$9:$F$128,5,FALSE) -> 63 | BM37: =VLOOKUP(BM35,'User Traffic Profile 1'!$A$9:$F$128,5,FALSE) -> 64 | BN37: =VLOOKUP(BN35,'User Traffic Profile 1'!$A$9:$F$128,5,FALSE) -> 65 | BO37: =VLOOKUP(BO35,'User Traffic Profile 1'!$A$9:$F$128,5,FALSE) -> 66 | BP37: =VLOOKUP(BP35,'User Traffic Profile 1'!$A$9:$F$128,5,FALSE) -> 67 | BQ37: =VLOOKUP(BQ35,'User Traffic Profile 1'!$A$9:$F$128,5,FALSE) -> 68 | BR37: =VLOOKUP(BR35,'User Traffic Profile 1'!$A$9:$F$128,5,FALSE) -> 69 | BS37: =VLOOKUP(BS35,'User Traffic Profile 1'!$A$9:$F$128,5,FALSE) -> 70 | BT37: =VLOOKUP(BT35,'User Traffic Profile 1'!$A$9:$F$128,5,FALSE) -> 71 | BU37: =VLOOKUP(BU35,'User Traffic Profile 1'!$A$9:$F$128,5,FALSE) -> 72 | BV37: =VLOOKUP(BV35,'User Traffic Profile 1'!$A$9:$F$128,5,FALSE) -> 73 | BW37: =VLOOKUP(BW35,'User Traffic Profile 1'!$A$9:$F$128,5,FALSE) -> 74 | BX37: =VLOOKUP(BX35,'User Traffic Profile 1'!$A$9:$F$128,5,FALSE) -> 75 | BY37: =VLOOKUP(BY35,'User Traffic Profile 1'!$A$9:$F$128,5,FALSE) -> 76 | BZ37: =VLOOKUP(BZ35,'User Traffic Profile 1'!$A$9:$F$128,5,FALSE) -> 77 | CA37: =VLOOKUP(CA35,'User Traffic Profile 1'!$A$9:$F$128,5,FALSE) -> 78 | CB37: =VLOOKUP(CB35,'User Traffic Profile 1'!$A$9:$F$128,5,FALSE) -> 79 | CC37: =VLOOKUP(CC35,'User Traffic Profile 1'!$A$9:$F$128,5,FALSE) -> 80 | CD37: =VLOOKUP(CD35,'User Traffic Profile 1'!$A$9:$F$128,5,FALSE) -> 81 | CE37: =VLOOKUP(CE35,'User Traffic Profile 1'!$A$9:$F$128,5,FALSE) -> 82 | CF37: =VLOOKUP(CF35,'User Traffic Profile 1'!$A$9:$F$128,5,FALSE) -> 83 | CG37: =VLOOKUP(CG35,'User Traffic Profile 1'!$A$9:$F$128,5,FALSE) -> 84 | CH37: =VLOOKUP(CH35,'User Traffic Profile 1'!$A$9:$F$128,5,FALSE) -> 85 | CI37: =VLOOKUP(CI35,'User Traffic Profile 1'!$A$9:$F$128,5,FALSE) -> 86 | CJ37: =VLOOKUP(CJ35,'User Traffic Profile 1'!$A$9:$F$128,5,FALSE) -> 87 | CK37: =VLOOKUP(CK35,'User Traffic Profile 1'!$A$9:$F$128,5,FALSE) -> 88 | CL37: =VLOOKUP(CL35,'User Traffic Profile 1'!$A$9:$F$128,5,FALSE) -> 89 | CM37: =VLOOKUP(CM35,'User Traffic Profile 1'!$A$9:$F$128,5,FALSE) -> 90 | CN37: =VLOOKUP(CN35,'User Traffic Profile 1'!$A$9:$F$128,5,FALSE) -> 91 | CO37: =VLOOKUP(CO35,'User Traffic Profile 1'!$A$9:$F$128,5,FALSE) -> 92 | CP37: =VLOOKUP(CP35,'User Traffic Profile 1'!$A$9:$F$128,5,FALSE) -> 93 | CQ37: =VLOOKUP(CQ35,'User Traffic Profile 1'!$A$9:$F$128,5,FALSE) -> 94 | CR37: =VLOOKUP(CR35,'User Traffic Profile 1'!$A$9:$F$128,5,FALSE) -> 95 | CS37: =VLOOKUP(CS35,'User Traffic Profile 1'!$A$9:$F$128,5,FALSE) -> 96 | CT37: =VLOOKUP(CT35,'User Traffic Profile 1'!$A$9:$F$128,5,FALSE) -> 97 | CU37: =VLOOKUP(CU35,'User Traffic Profile 1'!$A$9:$F$128,5,FALSE) -> 98 | CV37: =VLOOKUP(CV35,'User Traffic Profile 1'!$A$9:$F$128,5,FALSE) -> 99 | CW37: =VLOOKUP(CW35,'User Traffic Profile 1'!$A$9:$F$128,5,FALSE) -> 100 | CX37: =VLOOKUP(CX35,'User Traffic Profile 1'!$A$9:$F$128,5,FALSE) -> 101 | CY37: =VLOOKUP(CY35,'User Traffic Profile 1'!$A$9:$F$128,5,FALSE) -> 102 | CZ37: =VLOOKUP(CZ35,'User Traffic Profile 1'!$A$9:$F$128,5,FALSE) -> 103 | DA37: =VLOOKUP(DA35,'User Traffic Profile 1'!$A$9:$F$128,5,FALSE) -> 104 | DB37: =VLOOKUP(DB35,'User Traffic Profile 1'!$A$9:$F$128,5,FALSE) -> 105 | DC37: =VLOOKUP(DC35,'User Traffic Profile 1'!$A$9:$F$128,5,FALSE) -> 106 | DD37: =VLOOKUP(DD35,'User Traffic Profile 1'!$A$9:$F$128,5,FALSE) -> 107 | DE37: =VLOOKUP(DE35,'User Traffic Profile 1'!$A$9:$F$128,5,FALSE) -> 108 | DF37: =VLOOKUP(DF35,'User Traffic Profile 1'!$A$9:$F$128,5,FALSE) -> 109 | DG37: =VLOOKUP(DG35,'User Traffic Profile 1'!$A$9:$F$128,5,FALSE) -> 110 | DH37: =VLOOKUP(DH35,'User Traffic Profile 1'!$A$9:$F$128,5,FALSE) -> 111 | DI37: =VLOOKUP(DI35,'User Traffic Profile 1'!$A$9:$F$128,5,FALSE) -> 112 | DJ37: =VLOOKUP(DJ35,'User Traffic Profile 1'!$A$9:$F$128,5,FALSE) -> 113 | DK37: =VLOOKUP(DK35,'User Traffic Profile 1'!$A$9:$F$128,5,FALSE) -> 114 | DL37: =VLOOKUP(DL35,'User Traffic Profile 1'!$A$9:$F$128,5,FALSE) -> 115 | DM37: =VLOOKUP(DM35,'User Traffic Profile 1'!$A$9:$F$128,5,FALSE) -> 116 | DN37: =VLOOKUP(DN35,'User Traffic Profile 1'!$A$9:$F$128,5,FALSE) -> 117 | DO37: =VLOOKUP(DO35,'User Traffic Profile 1'!$A$9:$F$128,5,FALSE) -> 118 | DP37: =VLOOKUP(DP35,'User Traffic Profile 1'!$A$9:$F$128,5,FALSE) -> 119 | DQ37: =VLOOKUP(DQ35,'User Traffic Profile 1'!$A$9:$F$128,5,FALSE) -> 120
A38: UL Idle STAs (To Be Polled) | B38: =VLOOKUP(B35,'User Traffic Profile 1'!$A$9:$F$128,6,FALSE) -> 0 | C38: =VLOOKUP(C35,'User Traffic Profile 1'!$A$9:$F$128,6,FALSE) -> 0 | D38: =VLOOKUP(D35,'User Traffic Profile 1'!$A$9:$F$128,6,FALSE) -> 0 | E38: =VLOOKUP(E35,'User Traffic Profile 1'!$A$9:$F$128,6,FALSE) -> 0 | F38: =VLOOKUP(F35,'User Traffic Profile 1'!$A$9:$F$128,6,FALSE) -> 0 | G38: =VLOOKUP(G35,'User Traffic Profile 1'!$A$9:$F$128,6,FALSE) -> 0 | H38: =VLOOKUP(H35,'User Traffic Profile 1'!$A$9:$F$128,6,FALSE) -> 0 | I38: =VLOOKUP(I35,'User Traffic Profile 1'!$A$9:$F$128,6,FALSE) -> 0 | J38: =VLOOKUP(J35,'User Traffic Profile 1'!$A$9:$F$128,6,FALSE) -> 0 | K38: =VLOOKUP(K35,'User Traffic Profile 1'!$A$9:$F$128,6,FALSE) -> 0 | L38: =VLOOKUP(L35,'User Traffic Profile 1'!$A$9:$F$128,6,FALSE) -> 0 | M38: =VLOOKUP(M35,'User Traffic Profile 1'!$A$9:$F$128,6,FALSE) -> 0 | N38: =VLOOKUP(N35,'User Traffic Profile 1'!$A$9:$F$128,6,FALSE) -> 0 | O38: =VLOOKUP(O35,'User Traffic Profile 1'!$A$9:$F$128,6,FALSE) -> 0 | P38: =VLOOKUP(P35,'User Traffic Profile 1'!$A$9:$F$128,6,FALSE) -> 0 | Q38: =VLOOKUP(Q35,'User Traffic Profile 1'!$A$9:$F$128,6,FALSE) -> 0 | R38: =VLOOKUP(R35,'User Traffic Profile 1'!$A$9:$F$128,6,FALSE) -> 0 | S38: =VLOOKUP(S35,'User Traffic Profile 1'!$A$9:$F$128,6,FALSE) -> 0 | T38: =VLOOKUP(T35,'User Traffic Profile 1'!$A$9:$F$128,6,FALSE) -> 0 | U38: =VLOOKUP(U35,'User Traffic Profile 1'!$A$9:$F$128,6,FALSE) -> 0 | V38: =VLOOKUP(V35,'User Traffic Profile 1'!$A$9:$F$128,6,FALSE) -> 0 | W38: =VLOOKUP(W35,'User Traffic Profile 1'!$A$9:$F$128,6,FALSE) -> 0 | X38: =VLOOKUP(X35,'User Traffic Profile 1'!$A$9:$F$128,6,FALSE) -> 0 | Y38: =VLOOKUP(Y35,'User Traffic Profile 1'!$A$9:$F$128,6,FALSE) -> 0 | Z38: =VLOOKUP(Z35,'User Traffic Profile 1'!$A$9:$F$128,6,FALSE) -> 0 | AA38: =VLOOKUP(AA35,'User Traffic Profile 1'!$A$9:$F$128,6,FALSE) -> 0 | AB38: =VLOOKUP(AB35,'User Traffic Profile 1'!$A$9:$F$128,6,FALSE) -> 0 | AC38: =VLOOKUP(AC35,'User Traffic Profile 1'!$A$9:$F$128,6,FALSE) -> 0 | AD38: =VLOOKUP(AD35,'User Traffic Profile 1'!$A$9:$F$128,6,FALSE) -> 0 | AE38: =VLOOKUP(AE35,'User Traffic Profile 1'!$A$9:$F$128,6,FALSE) -> 0 | AF38: =VLOOKUP(AF35,'User Traffic Profile 1'!$A$9:$F$128,6,FALSE) -> 0 | AG38: =VLOOKUP(AG35,'User Traffic Profile 1'!$A$9:$F$128,6,FALSE) -> 0 | AH38: =VLOOKUP(AH35,'User Traffic Profile 1'!$A$9:$F$128,6,FALSE) -> 0 | AI38: =VLOOKUP(AI35,'User Traffic Profile 1'!$A$9:$F$128,6,FALSE) -> 0 | AJ38: =VLOOKUP(AJ35,'User Traffic Profile 1'!$A$9:$F$128,6,FALSE) -> 0 | AK38: =VLOOKUP(AK35,'User Traffic Profile 1'!$A$9:$F$128,6,FALSE) -> 0 | AL38: =VLOOKUP(AL35,'User Traffic Profile 1'!$A$9:$F$128,6,FALSE) -> 0 | AM38: =VLOOKUP(AM35,'User Traffic Profile 1'!$A$9:$F$128,6,FALSE) -> 0 | AN38: =VLOOKUP(AN35,'User Traffic Profile 1'!$A$9:$F$128,6,FALSE) -> 0 | AO38: =VLOOKUP(AO35,'User Traffic Profile 1'!$A$9:$F$128,6,FALSE) -> 0 | AP38: =VLOOKUP(AP35,'User Traffic Profile 1'!$A$9:$F$128,6,FALSE) -> 0 | AQ38: =VLOOKUP(AQ35,'User Traffic Profile 1'!$A$9:$F$128,6,FALSE) -> 0 | AR38: =VLOOKUP(AR35,'User Traffic Profile 1'!$A$9:$F$128,6,FALSE) -> 0 | AS38: =VLOOKUP(AS35,'User Traffic Profile 1'!$A$9:$F$128,6,FALSE) -> 0 | AT38: =VLOOKUP(AT35,'User Traffic Profile 1'!$A$9:$F$128,6,FALSE) -> 0 | AU38: =VLOOKUP(AU35,'User Traffic Profile 1'!$A$9:$F$128,6,FALSE) -> 0 | AV38: =VLOOKUP(AV35,'User Traffic Profile 1'!$A$9:$F$128,6,FALSE) -> 0 | AW38: =VLOOKUP(AW35,'User Traffic Profile 1'!$A$9:$F$128,6,FALSE) -> 0 | AX38: =VLOOKUP(AX35,'User Traffic Profile 1'!$A$9:$F$128,6,FALSE) -> 0 | AY38: =VLOOKUP(AY35,'User Traffic Profile 1'!$A$9:$F$128,6,FALSE) -> 0 | AZ38: =VLOOKUP(AZ35,'User Traffic Profile 1'!$A$9:$F$128,6,FALSE) -> 0 | BA38: =VLOOKUP(BA35,'User Traffic Profile 1'!$A$9:$F$128,6,FALSE) -> 0 | BB38: =VLOOKUP(BB35,'User Traffic Profile 1'!$A$9:$F$128,6,FALSE) -> 0 | BC38: =VLOOKUP(BC35,'User Traffic Profile 1'!$A$9:$F$128,6,FALSE) -> 0 | BD38: =VLOOKUP(BD35,'User Traffic Profile 1'!$A$9:$F$128,6,FALSE) -> 0 | BE38: =VLOOKUP(BE35,'User Traffic Profile 1'!$A$9:$F$128,6,FALSE) -> 0 | BF38: =VLOOKUP(BF35,'User Traffic Profile 1'!$A$9:$F$128,6,FALSE) -> 0 | BG38: =VLOOKUP(BG35,'User Traffic Profile 1'!$A$9:$F$128,6,FALSE) -> 0 | BH38: =VLOOKUP(BH35,'User Traffic Profile 1'!$A$9:$F$128,6,FALSE) -> 0 | BI38: =VLOOKUP(BI35,'User Traffic Profile 1'!$A$9:$F$128,6,FALSE) -> 0 | BJ38: =VLOOKUP(BJ35,'User Traffic Profile 1'!$A$9:$F$128,6,FALSE) -> 0 | BK38: =VLOOKUP(BK35,'User Traffic Profile 1'!$A$9:$F$128,6,FALSE) -> 0 | BL38: =VLOOKUP(BL35,'User Traffic Profile 1'!$A$9:$F$128,6,FALSE) -> 0 | BM38: =VLOOKUP(BM35,'User Traffic Profile 1'!$A$9:$F$128,6,FALSE) -> 0 | BN38: =VLOOKUP(BN35,'User Traffic Profile 1'!$A$9:$F$128,6,FALSE) -> 0 | BO38: =VLOOKUP(BO35,'User Traffic Profile 1'!$A$9:$F$128,6,FALSE) -> 0 | BP38: =VLOOKUP(BP35,'User Traffic Profile 1'!$A$9:$F$128,6,FALSE) -> 0 | BQ38: =VLOOKUP(BQ35,'User Traffic Profile 1'!$A$9:$F$128,6,FALSE) -> 0 | BR38: =VLOOKUP(BR35,'User Traffic Profile 1'!$A$9:$F$128,6,FALSE) -> 0 | BS38: =VLOOKUP(BS35,'User Traffic Profile 1'!$A$9:$F$128,6,FALSE) -> 0 | BT38: =VLOOKUP(BT35,'User Traffic Profile 1'!$A$9:$F$128,6,FALSE) -> 0 | BU38: =VLOOKUP(BU35,'User Traffic Profile 1'!$A$9:$F$128,6,FALSE) -> 0 | BV38: =VLOOKUP(BV35,'User Traffic Profile 1'!$A$9:$F$128,6,FALSE) -> 0 | BW38: =VLOOKUP(BW35,'User Traffic Profile 1'!$A$9:$F$128,6,FALSE) -> 0 | BX38: =VLOOKUP(BX35,'User Traffic Profile 1'!$A$9:$F$128,6,FALSE) -> 0 | BY38: =VLOOKUP(BY35,'User Traffic Profile 1'!$A$9:$F$128,6,FALSE) -> 0 | BZ38: =VLOOKUP(BZ35,'User Traffic Profile 1'!$A$9:$F$128,6,FALSE) -> 0 | CA38: =VLOOKUP(CA35,'User Traffic Profile 1'!$A$9:$F$128,6,FALSE) -> 0 | CB38: =VLOOKUP(CB35,'User Traffic Profile 1'!$A$9:$F$128,6,FALSE) -> 0 | CC38: =VLOOKUP(CC35,'User Traffic Profile 1'!$A$9:$F$128,6,FALSE) -> 0 | CD38: =VLOOKUP(CD35,'User Traffic Profile 1'!$A$9:$F$128,6,FALSE) -> 0 | CE38: =VLOOKUP(CE35,'User Traffic Profile 1'!$A$9:$F$128,6,FALSE) -> 0 | CF38: =VLOOKUP(CF35,'User Traffic Profile 1'!$A$9:$F$128,6,FALSE) -> 0 | CG38: =VLOOKUP(CG35,'User Traffic Profile 1'!$A$9:$F$128,6,FALSE) -> 0 | CH38: =VLOOKUP(CH35,'User Traffic Profile 1'!$A$9:$F$128,6,FALSE) -> 0 | CI38: =VLOOKUP(CI35,'User Traffic Profile 1'!$A$9:$F$128,6,FALSE) -> 0 | CJ38: =VLOOKUP(CJ35,'User Traffic Profile 1'!$A$9:$F$128,6,FALSE) -> 0 | CK38: =VLOOKUP(CK35,'User Traffic Profile 1'!$A$9:$F$128,6,FALSE) -> 0 | CL38: =VLOOKUP(CL35,'User Traffic Profile 1'!$A$9:$F$128,6,FALSE) -> 0 | CM38: =VLOOKUP(CM35,'User Traffic Profile 1'!$A$9:$F$128,6,FALSE) -> 0 | CN38: =VLOOKUP(CN35,'User Traffic Profile 1'!$A$9:$F$128,6,FALSE) -> 0 | CO38: =VLOOKUP(CO35,'User Traffic Profile 1'!$A$9:$F$128,6,FALSE) -> 0 | CP38: =VLOOKUP(CP35,'User Traffic Profile 1'!$A$9:$F$128,6,FALSE) -> 0 | CQ38: =VLOOKUP(CQ35,'User Traffic Profile 1'!$A$9:$F$128,6,FALSE) -> 0 | CR38: =VLOOKUP(CR35,'User Traffic Profile 1'!$A$9:$F$128,6,FALSE) -> 0 | CS38: =VLOOKUP(CS35,'User Traffic Profile 1'!$A$9:$F$128,6,FALSE) -> 0 | CT38: =VLOOKUP(CT35,'User Traffic Profile 1'!$A$9:$F$128,6,FALSE) -> 0 | CU38: =VLOOKUP(CU35,'User Traffic Profile 1'!$A$9:$F$128,6,FALSE) -> 0 | CV38: =VLOOKUP(CV35,'User Traffic Profile 1'!$A$9:$F$128,6,FALSE) -> 0 | CW38: =VLOOKUP(CW35,'User Traffic Profile 1'!$A$9:$F$128,6,FALSE) -> 0 | CX38: =VLOOKUP(CX35,'User Traffic Profile 1'!$A$9:$F$128,6,FALSE) -> 0 | CY38: =VLOOKUP(CY35,'User Traffic Profile 1'!$A$9:$F$128,6,FALSE) -> 0 | CZ38: =VLOOKUP(CZ35,'User Traffic Profile 1'!$A$9:$F$128,6,FALSE) -> 0 | DA38: =VLOOKUP(DA35,'User Traffic Profile 1'!$A$9:$F$128,6,FALSE) -> 0 | DB38: =VLOOKUP(DB35,'User Traffic Profile 1'!$A$9:$F$128,6,FALSE) -> 0 | DC38: =VLOOKUP(DC35,'User Traffic Profile 1'!$A$9:$F$128,6,FALSE) -> 0 | DD38: =VLOOKUP(DD35,'User Traffic Profile 1'!$A$9:$F$128,6,FALSE) -> 0 | DE38: =VLOOKUP(DE35,'User Traffic Profile 1'!$A$9:$F$128,6,FALSE) -> 0 | DF38: =VLOOKUP(DF35,'User Traffic Profile 1'!$A$9:$F$128,6,FALSE) -> 0 | DG38: =VLOOKUP(DG35,'User Traffic Profile 1'!$A$9:$F$128,6,FALSE) -> 0 | DH38: =VLOOKUP(DH35,'User Traffic Profile 1'!$A$9:$F$128,6,FALSE) -> 0 | DI38: =VLOOKUP(DI35,'User Traffic Profile 1'!$A$9:$F$128,6,FALSE) -> 0 | DJ38: =VLOOKUP(DJ35,'User Traffic Profile 1'!$A$9:$F$128,6,FALSE) -> 0 | DK38: =VLOOKUP(DK35,'User Traffic Profile 1'!$A$9:$F$128,6,FALSE) -> 0 | DL38: =VLOOKUP(DL35,'User Traffic Profile 1'!$A$9:$F$128,6,FALSE) -> 0 | DM38: =VLOOKUP(DM35,'User Traffic Profile 1'!$A$9:$F$128,6,FALSE) -> 0 | DN38: =VLOOKUP(DN35,'User Traffic Profile 1'!$A$9:$F$128,6,FALSE) -> 0 | DO38: =VLOOKUP(DO35,'User Traffic Profile 1'!$A$9:$F$128,6,FALSE) -> 0 | DP38: =VLOOKUP(DP35,'User Traffic Profile 1'!$A$9:$F$128,6,FALSE) -> 0 | DQ38: =VLOOKUP(DQ35,'User Traffic Profile 1'!$A$9:$F$128,6,FALSE) -> 0
A40: DL STAs Scheduled / Frame | B40: =IF(B36< $B$5, B36, $B$5) -> 1 | C40: =IF(C36< $B$5, C36, $B$5) -> 2 | D40: 3 | E40: 4 | F40: 5 | G40: 6 | H40: 7 | I40: 8 | J40: 8 | K40: 8 | L40: 8 | M40: 8 | N40: 8 | O40: 8 | P40: 8 | Q40: 8 | R40: 8 | S40: 8 | T40: 8 | U40: 8 | V40: 8 | W40: 8 | X40: 8 | Y40: 8 | Z40: 8 | AA40: 8 | AB40: 8 | AC40: 8 | AD40: 8 | AE40: 8 | AF40: 8 | AG40: 8 | AH40: 8 | AI40: 8 | AJ40: 8 | AK40: 8 | AL40: 8 | AM40: 8 | AN40: 8 | AO40: 8 | AP40: 8 | AQ40: 8 | AR40: 8 | AS40: 8 | AT40: 8 | AU40: 8 | AV40: 8 | AW40: 8 | AX40: 8 | AY40: 8 | AZ40: 8 | BA40: 8 | BB40: 8 | BC40: 8 | BD40: 8 | BE40: 8 | BF40: 8 | BG40: 8 | BH40: 8 | BI40: 8 | BJ40: 8 | BK40: 8 | BL40: 8 | BM40: 8 | BN40: 8 | BO40: =IF(BO36< $B$5, BO36, $B$5) -> 8 | BP40: 8 | BQ40: 8 | BR40: 8 | BS40: 8 | BT40: 8 | BU40: 8 | BV40: 8 | BW40: 8 | BX40: 8 | BY40: 8 | BZ40: 8 | CA40: 8 | CB40: 8 | CC40: 8 | CD40: 8 | CE40: 8 | CF40: 8 | CG40: 8 | CH40: 8 | CI40: 8 | CJ40: 8 | CK40: 8 | CL40: 8 | CM40: 8 | CN40: 8 | CO40: 8 | CP40: 8 | CQ40: 8 | CR40: 8 | CS40: 8 | CT40: 8 | CU40: 8 | CV40: 8 | CW40: 8 | CX40: 8 | CY40: 8 | CZ40: 8 | DA40: 8 | DB40: 8 | DC40: 8 | DD40: 8 | DE40: 8 | DF40: 8 | DG40: 8 | DH40: 8 | DI40: 8 | DJ40: 8 | DK40: 8 | DL40: 8 | DM40: 8 | DN40: 8 | DO40: 8 | DP40: 8 | DQ40: 8
A41: UL STAs Scheduled / Frame | B41: =IF(B37< $B$6, B37, $B$6) -> 1 | C41: =IF(C37< $B$6, C37, $B$6) -> 2 | D41: 3 | E41: 4 | F41: 5 | G41: 6 | H41: 7 | I41: 8 | J41: 9 | K41: 9 | L41: 9 | M41: 9 | N41: 9 | O41: 9 | P41: 9 | Q41: 9 | R41: 9 | S41: 9 | T41: 9 | U41: 9 | V41: 9 | W41: 9 | X41: 9 | Y41: 9 | Z41: 9 | AA41: 9 | AB41: 9 | AC41: 9 | AD41: 9 | AE41: 9 | AF41: 9 | AG41: 9 | AH41: 9 | AI41: 9 | AJ41: 9 | AK41: 9 | AL41: 9 | AM41: 9 | AN41: 9 | AO41: 9 | AP41: 9 | AQ41: 9 | AR41: 9 | AS41: 9 | AT41: 9 | AU41: 9 | AV41: 9 | AW41: 9 | AX41: 9 | AY41: 9 | AZ41: 9 | BA41: 9 | BB41: 9 | BC41: 9 | BD41: 9 | BE41: 9 | BF41: 9 | BG41: 9 | BH41: 9 | BI41: 9 | BJ41: 9 | BK41: 9 | BL41: 9 | BM41: 9 | BN41: 9 | BO41: =IF(BO37< $B$6, BO37, $B$6) -> 9 | BP41: 9 | BQ41: 9 | BR41: 9 | BS41: 9 | BT41: 9 | BU41: 9 | BV41: 9 | BW41: 9 | BX41: 9 | BY41: 9 | BZ41: 9 | CA41: 9 | CB41: 9 | CC41: 9 | CD41: 9 | CE41: 9 | CF41: 9 | CG41: 9 | CH41: 9 | CI41: 9 | CJ41: 9 | CK41: 9 | CL41: 9 | CM41: 9 | CN41: 9 | CO41: 9 | CP41: 9 | CQ41: 9 | CR41: 9 | CS41: 9 | CT41: 9 | CU41: 9 | CV41: 9 | CW41: 9 | CX41: 9 | CY41: 9 | CZ41: 9 | DA41: 9 | DB41: 9 | DC41: 9 | DD41: 9 | DE41: 9 | DF41: 9 | DG41: 9 | DH41: 9 | DI41: 9 | DJ41: 9 | DK41: 9 | DL41: 9 | DM41: 9 | DN41: 9 | DO41: 9 | DP41: 9 | DQ41: 9
A43: GPF Time (usec) | B43: =VLOOKUP(B40+B41,LookupTab!$H$51:$J$90,3,FALSE) -> 79 | C43: =VLOOKUP(C40+C41,LookupTab!$H$51:$J$90,3,FALSE) -> 109 | D43: =VLOOKUP(D40+D41,LookupTab!$H$51:$J$90,3,FALSE) -> 138 | E43: =VLOOKUP(E40+E41,LookupTab!$H$51:$J$90,3,FALSE) -> 168 | F43: =VLOOKUP(F40+F41,LookupTab!$H$51:$J$90,3,FALSE) -> 197 | G43: =VLOOKUP(G40+G41,LookupTab!$H$51:$J$90,3,FALSE) -> 227 | H43: =VLOOKUP(H40+H41,LookupTab!$H$51:$J$90,3,FALSE) -> 256 | I43: =VLOOKUP(I40+I41,LookupTab!$H$51:$J$90,3,FALSE) -> 286 | J43: =VLOOKUP(J40+J41,LookupTab!$H$51:$J$90,3,FALSE) -> 301 | K43: =VLOOKUP(K40+K41,LookupTab!$H$51:$J$90,3,FALSE) -> 301 | L43: =VLOOKUP(L40+L41,LookupTab!$H$51:$J$90,3,FALSE) -> 301 | M43: =VLOOKUP(M40+M41,LookupTab!$H$51:$J$90,3,FALSE) -> 301 | N43: =VLOOKUP(N40+N41,LookupTab!$H$51:$J$90,3,FALSE) -> 301 | O43: =VLOOKUP(O40+O41,LookupTab!$H$51:$J$90,3,FALSE) -> 301 | P43: =VLOOKUP(P40+P41,LookupTab!$H$51:$J$90,3,FALSE) -> 301 | Q43: =VLOOKUP(Q40+Q41,LookupTab!$H$51:$J$90,3,FALSE) -> 301 | R43: =VLOOKUP(R40+R41,LookupTab!$H$51:$J$90,3,FALSE) -> 301 | S43: =VLOOKUP(S40+S41,LookupTab!$H$51:$J$90,3,FALSE) -> 301 | T43: =VLOOKUP(T40+T41,LookupTab!$H$51:$J$90,3,FALSE) -> 301 | U43: =VLOOKUP(U40+U41,LookupTab!$H$51:$J$90,3,FALSE) -> 301 | V43: =VLOOKUP(V40+V41,LookupTab!$H$51:$J$90,3,FALSE) -> 301 | W43: =VLOOKUP(W40+W41,LookupTab!$H$51:$J$90,3,FALSE) -> 301 | X43: =VLOOKUP(X40+X41,LookupTab!$H$51:$J$90,3,FALSE) -> 301 | Y43: =VLOOKUP(Y40+Y41,LookupTab!$H$51:$J$90,3,FALSE) -> 301 | Z43: =VLOOKUP(Z40+Z41,LookupTab!$H$51:$J$90,3,FALSE) -> 301 | AA43: =VLOOKUP(AA40+AA41,LookupTab!$H$51:$J$90,3,FALSE) -> 301 | AB43: =VLOOKUP(AB40+AB41,LookupTab!$H$51:$J$90,3,FALSE) -> 301 | AC43: =VLOOKUP(AC40+AC41,LookupTab!$H$51:$J$90,3,FALSE) -> 301 | AD43: =VLOOKUP(AD40+AD41,LookupTab!$H$51:$J$90,3,FALSE) -> 301 | AE43: =VLOOKUP(AE40+AE41,LookupTab!$H$51:$J$90,3,FALSE) -> 301 | AF43: =VLOOKUP(AF40+AF41,LookupTab!$H$51:$J$90,3,FALSE) -> 301 | AG43: =VLOOKUP(AG40+AG41,LookupTab!$H$51:$J$90,3,FALSE) -> 301 | AH43: =VLOOKUP(AH40+AH41,LookupTab!$H$51:$J$90,3,FALSE) -> 301 | AI43: =VLOOKUP(AI40+AI41,LookupTab!$H$51:$J$90,3,FALSE) -> 301 | AJ43: =VLOOKUP(AJ40+AJ41,LookupTab!$H$51:$J$90,3,FALSE) -> 301 | AK43: =VLOOKUP(AK40+AK41,LookupTab!$H$51:$J$90,3,FALSE) -> 301 | AL43: =VLOOKUP(AL40+AL41,LookupTab!$H$51:$J$90,3,FALSE) -> 301 | AM43: =VLOOKUP(AM40+AM41,LookupTab!$H$51:$J$90,3,FALSE) -> 301 | AN43: =VLOOKUP(AN40+AN41,LookupTab!$H$51:$J$90,3,FALSE) -> 301 | AO43: =VLOOKUP(AO40+AO41,LookupTab!$H$51:$J$90,3,FALSE) -> 301 | AP43: =VLOOKUP(AP40+AP41,LookupTab!$H$51:$J$90,3,FALSE) -> 301 | AQ43: =VLOOKUP(AQ40+AQ41,LookupTab!$H$51:$J$90,3,FALSE) -> 301 | AR43: =VLOOKUP(AR40+AR41,LookupTab!$H$51:$J$90,3,FALSE) -> 301 | AS43: =VLOOKUP(AS40+AS41,LookupTab!$H$51:$J$90,3,FALSE) -> 301 | AT43: =VLOOKUP(AT40+AT41,LookupTab!$H$51:$J$90,3,FALSE) -> 301 | AU43: =VLOOKUP(AU40+AU41,LookupTab!$H$51:$J$90,3,FALSE) -> 301 | AV43: =VLOOKUP(AV40+AV41,LookupTab!$H$51:$J$90,3,FALSE) -> 301 | AW43: =VLOOKUP(AW40+AW41,LookupTab!$H$51:$J$90,3,FALSE) -> 301 | AX43: =VLOOKUP(AX40+AX41,LookupTab!$H$51:$J$90,3,FALSE) -> 301 | AY43: =VLOOKUP(AY40+AY41,LookupTab!$H$51:$J$90,3,FALSE) -> 301 | AZ43: =VLOOKUP(AZ40+AZ41,LookupTab!$H$51:$J$90,3,FALSE) -> 301 | BA43: =VLOOKUP(BA40+BA41,LookupTab!$H$51:$J$90,3,FALSE) -> 301 | BB43: =VLOOKUP(BB40+BB41,LookupTab!$H$51:$J$90,3,FALSE) -> 301 | BC43: =VLOOKUP(BC40+BC41,LookupTab!$H$51:$J$90,3,FALSE) -> 301 | BD43: =VLOOKUP(BD40+BD41,LookupTab!$H$51:$J$90,3,FALSE) -> 301 | BE43: =VLOOKUP(BE40+BE41,LookupTab!$H$51:$J$90,3,FALSE) -> 301 | BF43: =VLOOKUP(BF40+BF41,LookupTab!$H$51:$J$90,3,FALSE) -> 301 | BG43: =VLOOKUP(BG40+BG41,LookupTab!$H$51:$J$90,3,FALSE) -> 301 | BH43: =VLOOKUP(BH40+BH41,LookupTab!$H$51:$J$90,3,FALSE) -> 301 | BI43: =VLOOKUP(BI40+BI41,LookupTab!$H$51:$J$90,3,FALSE) -> 301 | BJ43: =VLOOKUP(BJ40+BJ41,LookupTab!$H$51:$J$90,3,FALSE) -> 301 | BK43: =VLOOKUP(BK40+BK41,LookupTab!$H$51:$J$90,3,FALSE) -> 301 | BL43: =VLOOKUP(BL40+BL41,LookupTab!$H$51:$J$90,3,FALSE) -> 301 | BM43: =VLOOKUP(BM40+BM41,LookupTab!$H$51:$J$90,3,FALSE) -> 301 | BN43: =VLOOKUP(BN40+BN41,LookupTab!$H$51:$J$90,3,FALSE) -> 301 | BO43: =VLOOKUP(BO40+BO41,LookupTab!$H$51:$J$90,3,FALSE) -> 301 | BP43: =VLOOKUP(BP40+BP41,LookupTab!$H$51:$J$90,3,FALSE) -> 301 | BQ43: =VLOOKUP(BQ40+BQ41,LookupTab!$H$51:$J$90,3,FALSE) -> 301 | BR43: =VLOOKUP(BR40+BR41,LookupTab!$H$51:$J$90,3,FALSE) -> 301 | BS43: =VLOOKUP(BS40+BS41,LookupTab!$H$51:$J$90,3,FALSE) -> 301 | BT43: =VLOOKUP(BT40+BT41,LookupTab!$H$51:$J$90,3,FALSE) -> 301 | BU43: =VLOOKUP(BU40+BU41,LookupTab!$H$51:$J$90,3,FALSE) -> 301 | BV43: =VLOOKUP(BV40+BV41,LookupTab!$H$51:$J$90,3,FALSE) -> 301 | BW43: =VLOOKUP(BW40+BW41,LookupTab!$H$51:$J$90,3,FALSE) -> 301 | BX43: =VLOOKUP(BX40+BX41,LookupTab!$H$51:$J$90,3,FALSE) -> 301 | BY43: =VLOOKUP(BY40+BY41,LookupTab!$H$51:$J$90,3,FALSE) -> 301 | BZ43: =VLOOKUP(BZ40+BZ41,LookupTab!$H$51:$J$90,3,FALSE) -> 301 | CA43: =VLOOKUP(CA40+CA41,LookupTab!$H$51:$J$90,3,FALSE) -> 301 | CB43: =VLOOKUP(CB40+CB41,LookupTab!$H$51:$J$90,3,FALSE) -> 301 | CC43: =VLOOKUP(CC40+CC41,LookupTab!$H$51:$J$90,3,FALSE) -> 301 | CD43: =VLOOKUP(CD40+CD41,LookupTab!$H$51:$J$90,3,FALSE) -> 301 | CE43: =VLOOKUP(CE40+CE41,LookupTab!$H$51:$J$90,3,FALSE) -> 301 | CF43: =VLOOKUP(CF40+CF41,LookupTab!$H$51:$J$90,3,FALSE) -> 301 | CG43: =VLOOKUP(CG40+CG41,LookupTab!$H$51:$J$90,3,FALSE) -> 301 | CH43: =VLOOKUP(CH40+CH41,LookupTab!$H$51:$J$90,3,FALSE) -> 301 | CI43: =VLOOKUP(CI40+CI41,LookupTab!$H$51:$J$90,3,FALSE) -> 301 | CJ43: =VLOOKUP(CJ40+CJ41,LookupTab!$H$51:$J$90,3,FALSE) -> 301 | CK43: =VLOOKUP(CK40+CK41,LookupTab!$H$51:$J$90,3,FALSE) -> 301 | CL43: =VLOOKUP(CL40+CL41,LookupTab!$H$51:$J$90,3,FALSE) -> 301 | CM43: =VLOOKUP(CM40+CM41,LookupTab!$H$51:$J$90,3,FALSE) -> 301 | CN43: =VLOOKUP(CN40+CN41,LookupTab!$H$51:$J$90,3,FALSE) -> 301 | CO43: =VLOOKUP(CO40+CO41,LookupTab!$H$51:$J$90,3,FALSE) -> 301 | CP43: =VLOOKUP(CP40+CP41,LookupTab!$H$51:$J$90,3,FALSE) -> 301 | CQ43: =VLOOKUP(CQ40+CQ41,LookupTab!$H$51:$J$90,3,FALSE) -> 301 | CR43: =VLOOKUP(CR40+CR41,LookupTab!$H$51:$J$90,3,FALSE) -> 301 | CS43: =VLOOKUP(CS40+CS41,LookupTab!$H$51:$J$90,3,FALSE) -> 301 | CT43: =VLOOKUP(CT40+CT41,LookupTab!$H$51:$J$90,3,FALSE) -> 301 | CU43: =VLOOKUP(CU40+CU41,LookupTab!$H$51:$J$90,3,FALSE) -> 301 | CV43: =VLOOKUP(CV40+CV41,LookupTab!$H$51:$J$90,3,FALSE) -> 301 | CW43: =VLOOKUP(CW40+CW41,LookupTab!$H$51:$J$90,3,FALSE) -> 301 | CX43: =VLOOKUP(CX40+CX41,LookupTab!$H$51:$J$90,3,FALSE) -> 301 | CY43: =VLOOKUP(CY40+CY41,LookupTab!$H$51:$J$90,3,FALSE) -> 301 | CZ43: =VLOOKUP(CZ40+CZ41,LookupTab!$H$51:$J$90,3,FALSE) -> 301 | DA43: =VLOOKUP(DA40+DA41,LookupTab!$H$51:$J$90,3,FALSE) -> 301 | DB43: =VLOOKUP(DB40+DB41,LookupTab!$H$51:$J$90,3,FALSE) -> 301 | DC43: =VLOOKUP(DC40+DC41,LookupTab!$H$51:$J$90,3,FALSE) -> 301 | DD43: =VLOOKUP(DD40+DD41,LookupTab!$H$51:$J$90,3,FALSE) -> 301 | DE43: =VLOOKUP(DE40+DE41,LookupTab!$H$51:$J$90,3,FALSE) -> 301 | DF43: =VLOOKUP(DF40+DF41,LookupTab!$H$51:$J$90,3,FALSE) -> 301 | DG43: =VLOOKUP(DG40+DG41,LookupTab!$H$51:$J$90,3,FALSE) -> 301 | DH43: =VLOOKUP(DH40+DH41,LookupTab!$H$51:$J$90,3,FALSE) -> 301 | DI43: =VLOOKUP(DI40+DI41,LookupTab!$H$51:$J$90,3,FALSE) -> 301 | DJ43: =VLOOKUP(DJ40+DJ41,LookupTab!$H$51:$J$90,3,FALSE) -> 301 | DK43: =VLOOKUP(DK40+DK41,LookupTab!$H$51:$J$90,3,FALSE) -> 301 | DL43: =VLOOKUP(DL40+DL41,LookupTab!$H$51:$J$90,3,FALSE) -> 301 | DM43: =VLOOKUP(DM40+DM41,LookupTab!$H$51:$J$90,3,FALSE) -> 301 | DN43: =VLOOKUP(DN40+DN41,LookupTab!$H$51:$J$90,3,FALSE) -> 301 | DO43: =VLOOKUP(DO40+DO41,LookupTab!$H$51:$J$90,3,FALSE) -> 301 | DP43: =VLOOKUP(DP40+DP41,LookupTab!$H$51:$J$90,3,FALSE) -> 301 | DQ43: =VLOOKUP(DQ40+DQ41,LookupTab!$H$51:$J$90,3,FALSE) -> 301
A45: Per STA Time in the DL (usec) | B45: =ROUNDDOWN((($B$24 - B43)-(($B$8+$B$20)*B40))/B40,0) -> 2340 | C45: =ROUNDDOWN((($B$24 - C43)-(($B$8+$B$20)*C40))/C40,0) -> 1133 | D45: =ROUNDDOWN((($B$24 - D43)-(($B$8+$B$20)*D40))/D40,0) -> 731 | E45: 529 | F45: 409 | G45: 328 | H45: 271 | I45: 228 | J45: 226 | K45: 226 | L45: 226 | M45: 226 | N45: 226 | O45: 226 | P45: 226 | Q45: 226 | R45: 226 | S45: 226 | T45: 226 | U45: 226 | V45: 226 | W45: 226 | X45: 226 | Y45: 226 | Z45: 226 | AA45: 226 | AB45: 226 | AC45: 226 | AD45: 226 | AE45: 226 | AF45: 226 | AG45: 226 | AH45: 226 | AI45: 226 | AJ45: 226 | AK45: 226 | AL45: 226 | AM45: 226 | AN45: 226 | AO45: 226 | AP45: 226 | AQ45: 226 | AR45: 226 | AS45: 226 | AT45: 226 | AU45: 226 | AV45: 226 | AW45: 226 | AX45: 226 | AY45: 226 | AZ45: 226 | BA45: 226 | BB45: 226 | BC45: 226 | BD45: 226 | BE45: 226 | BF45: 226 | BG45: 226 | BH45: 226 | BI45: 226 | BJ45: 226 | BK45: 226 | BL45: 226 | BM45: 226 | BN45: 226 | BO45: 226 | BP45: =ROUNDDOWN((($B$24 - BP43)-(($B$8+$B$20)*BP40))/BP40,0) -> 226 | BQ45: 226 | BR45: 226 | BS45: 226 | BT45: 226 | BU45: 226 | BV45: 226 | BW45: 226 | BX45: 226 | BY45: 226 | BZ45: 226 | CA45: 226 | CB45: 226 | CC45: 226 | CD45: 226 | CE45: 226 | CF45: 226 | CG45: 226 | CH45: 226 | CI45: 226 | CJ45: 226 | CK45: 226 | CL45: 226 | CM45: 226 | CN45: 226 | CO45: 226 | CP45: 226 | CQ45: 226 | CR45: 226 | CS45: 226 | CT45: 226 | CU45: 226 | CV45: 226 | CW45: 226 | CX45: 226 | CY45: 226 | CZ45: 226 | DA45: 226 | DB45: 226 | DC45: 226 | DD45: 226 | DE45: 226 | DF45: 226 | DG45: 226 | DH45: 226 | DI45: 226 | DJ45: 226 | DK45: 226 | DL45: 226 | DM45: 226 | DN45: 226 | DO45: 226 | DP45: 226 | DQ45: 226
A46: Per STA Time in the UL (usec) | B46: =ROUNDDOWN(($B$25-(($B$8+$B$21)*B41))/B41,0) -> 2363 | C46: =ROUNDDOWN(($B$25-(($B$8+$B$21)*C41))/C41,0) -> 1158 | D46: =ROUNDDOWN(($B$25-(($B$8+$B$21)*D41))/D41,0) -> 757 | E46: =ROUNDDOWN(($B$25-(($B$8+$B$21)*E41))/E41,0) -> 556 | F46: =ROUNDDOWN(($B$25-(($B$8+$B$21)*F41))/F41,0) -> 435 | G46: 355 | H46: 298 | I46: 255 | J46: 221 | K46: 221 | L46: 221 | M46: 221 | N46: 221 | O46: 221 | P46: 221 | Q46: 221 | R46: 221 | S46: 221 | T46: 221 | U46: 221 | V46: 221 | W46: 221 | X46: 221 | Y46: 221 | Z46: 221 | AA46: 221 | AB46: 221 | AC46: 221 | AD46: 221 | AE46: 221 | AF46: 221 | AG46: 221 | AH46: 221 | AI46: 221 | AJ46: 221 | AK46: 221 | AL46: 221 | AM46: 221 | AN46: 221 | AO46: 221 | AP46: 221 | AQ46: 221 | AR46: 221 | AS46: 221 | AT46: 221 | AU46: 221 | AV46: 221 | AW46: 221 | AX46: 221 | AY46: 221 | AZ46: 221 | BA46: 221 | BB46: 221 | BC46: 221 | BD46: 221 | BE46: 221 | BF46: 221 | BG46: 221 | BH46: 221 | BI46: 221 | BJ46: 221 | BK46: 221 | BL46: 221 | BM46: 221 | BN46: 221 | BO46: 221 | BP46: 221 | BQ46: =ROUNDDOWN(($B$25-(($B$8+$B$21)*BQ41))/BQ41,0) -> 221 | BR46: 221 | BS46: 221 | BT46: 221 | BU46: 221 | BV46: 221 | BW46: 221 | BX46: 221 | BY46: 221 | BZ46: 221 | CA46: 221 | CB46: 221 | CC46: 221 | CD46: 221 | CE46: 221 | CF46: 221 | CG46: 221 | CH46: 221 | CI46: 221 | CJ46: 221 | CK46: 221 | CL46: 221 | CM46: 221 | CN46: 221 | CO46: 221 | CP46: 221 | CQ46: 221 | CR46: 221 | CS46: 221 | CT46: 221 | CU46: 221 | CV46: 221 | CW46: 221 | CX46: 221 | CY46: 221 | CZ46: 221 | DA46: 221 | DB46: 221 | DC46: 221 | DD46: 221 | DE46: 221 | DF46: 221 | DG46: 221 | DH46: 221 | DI46: 221 | DJ46: 221 | DK46: 221 | DL46: 221 | DM46: 221 | DN46: 221 | DO46: 221 | DP46: 221 | DQ46: 221
A47: Per STA Time in the UL execluding ARQ ACK frame time (usec) | B47: =B46-$B$29 -> 2285 | C47: =C46-$B$29 -> 1080 | D47: 679 | E47: 478 | F47: 357 | G47: 277 | H47: 220 | I47: 177 | J47: 143 | K47: 143 | L47: 143 | M47: 143 | N47: 143 | O47: 143 | P47: 143 | Q47: 143 | R47: 143 | S47: 143 | T47: 143 | U47: 143 | V47: 143 | W47: 143 | X47: 143 | Y47: 143 | Z47: 143 | AA47: 143 | AB47: 143 | AC47: 143 | AD47: 143 | AE47: 143 | AF47: 143 | AG47: 143 | AH47: 143 | AI47: 143 | AJ47: 143 | AK47: 143 | AL47: 143 | AM47: 143 | AN47: 143 | AO47: 143 | AP47: 143 | AQ47: 143 | AR47: 143 | AS47: 143 | AT47: 143 | AU47: 143 | AV47: 143 | AW47: 143 | AX47: 143 | AY47: 143 | AZ47: 143 | BA47: 143 | BB47: 143 | BC47: 143 | BD47: 143 | BE47: 143 | BF47: 143 | BG47: 143 | BH47: 143 | BI47: 143 | BJ47: 143 | BK47: 143 | BL47: 143 | BM47: 143 | BN47: 143 | BO47: =BO46-$B$29 -> 143 | BP47: 143 | BQ47: 143 | BR47: 143 | BS47: 143 | BT47: 143 | BU47: 143 | BV47: 143 | BW47: 143 | BX47: 143 | BY47: 143 | BZ47: 143 | CA47: 143 | CB47: 143 | CC47: 143 | CD47: 143 | CE47: 143 | CF47: 143 | CG47: 143 | CH47: 143 | CI47: 143 | CJ47: 143 | CK47: 143 | CL47: 143 | CM47: 143 | CN47: 143 | CO47: 143 | CP47: 143 | CQ47: 143 | CR47: 143 | CS47: 143 | CT47: 143 | CU47: 143 | CV47: 143 | CW47: 143 | CX47: 143 | CY47: 143 | CZ47: 143 | DA47: 143 | DB47: 143 | DC47: 143 | DD47: 143 | DE47: 143 | DF47: 143 | DG47: 143 | DH47: 143 | DI47: 143 | DJ47: 143 | DK47: 143 | DL47: 143 | DM47: 143 | DN47: 143 | DO47: 143 | DP47: 143 | DQ47: 143
A49: DL Max Packets per STA per Frame based on CPU PPF limit | B49: =ROUNDDOWN($B$3/B40,0) -> 100 | C49: 50 | D49: 33 | E49: 25 | F49: 20 | G49: 16 | H49: 14 | I49: 12 | J49: 12 | K49: =ROUNDDOWN($B$3/K40,0) -> 12 | L49: 12 | M49: 12 | N49: 12 | O49: 12 | P49: 12 | Q49: 12 | R49: 12 | S49: 12 | T49: 12 | U49: 12 | V49: 12 | W49: 12 | X49: 12 | Y49: 12 | Z49: 12 | AA49: 12 | AB49: 12 | AC49: 12 | AD49: 12 | AE49: 12 | AF49: 12 | AG49: 12 | AH49: 12 | AI49: 12 | AJ49: 12 | AK49: 12 | AL49: 12 | AM49: 12 | AN49: 12 | AO49: 12 | AP49: 12 | AQ49: 12 | AR49: 12 | AS49: 12 | AT49: 12 | AU49: 12 | AV49: 12 | AW49: 12 | AX49: 12 | AY49: 12 | AZ49: 12 | BA49: 12 | BB49: 12 | BC49: 12 | BD49: 12 | BE49: 12 | BF49: 12 | BG49: 12 | BH49: 12 | BI49: 12 | BJ49: 12 | BK49: 12 | BL49: 12 | BM49: 12 | BN49: =ROUNDDOWN($B$3/BN40,0) -> 12 | BO49: 12 | BP49: 12 | BQ49: 12 | BR49: 12 | BS49: 12 | BT49: 12 | BU49: 12 | BV49: 12 | BW49: 12 | BX49: 12 | BY49: 12 | BZ49: 12 | CA49: 12 | CB49: 12 | CC49: 12 | CD49: 12 | CE49: 12 | CF49: 12 | CG49: 12 | CH49: 12 | CI49: 12 | CJ49: 12 | CK49: 12 | CL49: 12 | CM49: 12 | CN49: 12 | CO49: 12 | CP49: 12 | CQ49: 12 | CR49: 12 | CS49: 12 | CT49: 12 | CU49: 12 | CV49: 12 | CW49: 12 | CX49: 12 | CY49: 12 | CZ49: 12 | DA49: 12 | DB49: 12 | DC49: 12 | DD49: 12 | DE49: 12 | DF49: 12 | DG49: 12 | DH49: 12 | DI49: 12 | DJ49: 12 | DK49: 12 | DL49: 12 | DM49: 12 | DN49: 12 | DO49: 12 | DP49: 12 | DQ49: 12
A50: # of DL packets /Scheduled STA/frame | B50: =ROUND((B45)/($B$32+$B$18),1) -> 2.4 | C50: 1.2 | D50: 0.8 | E50: 0.6 | F50: 0.4 | G50: 0.3 | H50: 0.3 | I50: 0.2 | J50: 0.2 | K50: 0.2 | L50: 0.2 | M50: 0.2 | N50: 0.2 | O50: 0.2 | P50: 0.2 | Q50: 0.2 | R50: 0.2 | S50: 0.2 | T50: 0.2 | U50: 0.2 | V50: 0.2 | W50: 0.2 | X50: 0.2 | Y50: 0.2 | Z50: 0.2 | AA50: 0.2 | AB50: 0.2 | AC50: 0.2 | AD50: 0.2 | AE50: 0.2 | AF50: 0.2 | AG50: 0.2 | AH50: 0.2 | AI50: 0.2 | AJ50: 0.2 | AK50: 0.2 | AL50: 0.2 | AM50: 0.2 | AN50: 0.2 | AO50: 0.2 | AP50: 0.2 | AQ50: 0.2 | AR50: 0.2 | AS50: 0.2 | AT50: 0.2 | AU50: 0.2 | AV50: 0.2 | AW50: 0.2 | AX50: 0.2 | AY50: 0.2 | AZ50: 0.2 | BA50: 0.2 | BB50: 0.2 | BC50: 0.2 | BD50: 0.2 | BE50: 0.2 | BF50: 0.2 | BG50: 0.2 | BH50: 0.2 | BI50: 0.2 | BJ50: 0.2 | BK50: 0.2 | BL50: 0.2 | BM50: 0.2 | BN50: =ROUND((BN45)/($B$32+$B$18),1) -> 0.2 | BO50: 0.2 | BP50: 0.2 | BQ50: 0.2 | BR50: 0.2 | BS50: 0.2 | BT50: 0.2 | BU50: 0.2 | BV50: 0.2 | BW50: 0.2 | BX50: 0.2 | BY50: 0.2 | BZ50: 0.2 | CA50: 0.2 | CB50: 0.2 | CC50: 0.2 | CD50: 0.2 | CE50: 0.2 | CF50: 0.2 | CG50: 0.2 | CH50: 0.2 | CI50: 0.2 | CJ50: 0.2 | CK50: 0.2 | CL50: 0.2 | CM50: 0.2 | CN50: 0.2 | CO50: 0.2 | CP50: 0.2 | CQ50: 0.2 | CR50: 0.2 | CS50: 0.2 | CT50: 0.2 | CU50: 0.2 | CV50: 0.2 | CW50: 0.2 | CX50: 0.2 | CY50: 0.2 | CZ50: 0.2 | DA50: 0.2 | DB50: 0.2 | DC50: 0.2 | DD50: 0.2 | DE50: 0.2 | DF50: 0.2 | DG50: 0.2 | DH50: 0.2 | DI50: 0.2 | DJ50: 0.2 | DK50: 0.2 | DL50: 0.2 | DM50: 0.2 | DN50: 0.2 | DO50: 0.2 | DP50: 0.2 | DQ50: 0.2
A51: # of DL packets /Scheduled STA/frame (w/ CPU PPF Limit) | B51: =MIN(B49,B50) -> 2.4 | C51: =MIN(C49,C50) -> 1.2 | D51: 0.8 | E51: 0.6 | F51: 0.4 | G51: 0.3 | H51: 0.3 | I51: 0.2 | J51: 0.2 | K51: 0.2 | L51: 0.2 | M51: 0.2 | N51: 0.2 | O51: 0.2 | P51: 0.2 | Q51: 0.2 | R51: 0.2 | S51: 0.2 | T51: 0.2 | U51: 0.2 | V51: 0.2 | W51: 0.2 | X51: 0.2 | Y51: 0.2 | Z51: 0.2 | AA51: 0.2 | AB51: 0.2 | AC51: 0.2 | AD51: 0.2 | AE51: 0.2 | AF51: 0.2 | AG51: 0.2 | AH51: 0.2 | AI51: 0.2 | AJ51: 0.2 | AK51: 0.2 | AL51: 0.2 | AM51: 0.2 | AN51: 0.2 | AO51: 0.2 | AP51: 0.2 | AQ51: 0.2 | AR51: 0.2 | AS51: 0.2 | AT51: 0.2 | AU51: 0.2 | AV51: 0.2 | AW51: 0.2 | AX51: 0.2 | AY51: 0.2 | AZ51: 0.2 | BA51: 0.2 | BB51: 0.2 | BC51: 0.2 | BD51: 0.2 | BE51: 0.2 | BF51: 0.2 | BG51: 0.2 | BH51: 0.2 | BI51: 0.2 | BJ51: 0.2 | BK51: 0.2 | BL51: 0.2 | BM51: 0.2 | BN51: 0.2 | BO51: =MIN(BO49,BO50) -> 0.2 | BP51: 0.2 | BQ51: 0.2 | BR51: 0.2 | BS51: 0.2 | BT51: 0.2 | BU51: 0.2 | BV51: 0.2 | BW51: 0.2 | BX51: 0.2 | BY51: 0.2 | BZ51: 0.2 | CA51: 0.2 | CB51: 0.2 | CC51: 0.2 | CD51: 0.2 | CE51: 0.2 | CF51: 0.2 | CG51: 0.2 | CH51: 0.2 | CI51: 0.2 | CJ51: 0.2 | CK51: 0.2 | CL51: 0.2 | CM51: 0.2 | CN51: 0.2 | CO51: 0.2 | CP51: 0.2 | CQ51: 0.2 | CR51: 0.2 | CS51: 0.2 | CT51: 0.2 | CU51: 0.2 | CV51: 0.2 | CW51: 0.2 | CX51: 0.2 | CY51: 0.2 | CZ51: 0.2 | DA51: 0.2 | DB51: 0.2 | DC51: 0.2 | DD51: 0.2 | DE51: 0.2 | DF51: 0.2 | DG51: 0.2 | DH51: 0.2 | DI51: 0.2 | DJ51: 0.2 | DK51: 0.2 | DL51: 0.2 | DM51: 0.2 | DN51: 0.2 | DO51: 0.2 | DP51: 0.2 | DQ51: 0.2
A53: UL Max Packets per STA per Frame based on CPU PPF limit | B53: =ROUNDDOWN($B$4/B41,0) -> 100 | C53: =ROUNDDOWN($B$4/C41,0) -> 50 | D53: 33 | E53: 25 | F53: 20 | G53: 16 | H53: 14 | I53: 12 | J53: 11 | K53: 11 | L53: 11 | M53: 11 | N53: 11 | O53: 11 | P53: 11 | Q53: 11 | R53: 11 | S53: 11 | T53: 11 | U53: 11 | V53: 11 | W53: 11 | X53: 11 | Y53: 11 | Z53: 11 | AA53: 11 | AB53: 11 | AC53: 11 | AD53: 11 | AE53: 11 | AF53: 11 | AG53: 11 | AH53: 11 | AI53: 11 | AJ53: 11 | AK53: 11 | AL53: 11 | AM53: 11 | AN53: 11 | AO53: 11 | AP53: 11 | AQ53: 11 | AR53: 11 | AS53: 11 | AT53: 11 | AU53: 11 | AV53: 11 | AW53: 11 | AX53: 11 | AY53: 11 | AZ53: 11 | BA53: 11 | BB53: 11 | BC53: 11 | BD53: 11 | BE53: 11 | BF53: 11 | BG53: 11 | BH53: 11 | BI53: 11 | BJ53: 11 | BK53: 11 | BL53: 11 | BM53: 11 | BN53: 11 | BO53: =ROUNDDOWN($B$4/BO41,0) -> 11 | BP53: 11 | BQ53: 11 | BR53: 11 | BS53: 11 | BT53: 11 | BU53: 11 | BV53: 11 | BW53: 11 | BX53: 11 | BY53: 11 | BZ53: 11 | CA53: 11 | CB53: 11 | CC53: 11 | CD53: 11 | CE53: 11 | CF53: 11 | CG53: 11 | CH53: 11 | CI53: 11 | CJ53: 11 | CK53: 11 | CL53: 11 | CM53: 11 | CN53: 11 | CO53: 11 | CP53: 11 | CQ53: 11 | CR53: 11 | CS53: 11 | CT53: 11 | CU53: 11 | CV53: 11 | CW53: 11 | CX53: 11 | CY53: 11 | CZ53: 11 | DA53: 11 | DB53: 11 | DC53: 11 | DD53: 11 | DE53: 11 | DF53: 11 | DG53: 11 | DH53: 11 | DI53: 11 | DJ53: 11 | DK53: 11 | DL53: 11 | DM53: 11 | DN53: 11 | DO53: 11 | DP53: 11 | DQ53: 11
A54: # of UL packets /Scheduled STA/frame | B54: =ROUND((B47)/($B$32+$B$19),1) -> 2.4 | C54: 1.1 | D54: 0.7 | E54: 0.5 | F54: 0.4 | G54: 0.3 | H54: 0.2 | I54: 0.2 | J54: 0.1 | K54: 0.1 | L54: 0.1 | M54: 0.1 | N54: 0.1 | O54: 0.1 | P54: 0.1 | Q54: 0.1 | R54: 0.1 | S54: 0.1 | T54: 0.1 | U54: 0.1 | V54: 0.1 | W54: 0.1 | X54: 0.1 | Y54: 0.1 | Z54: 0.1 | AA54: 0.1 | AB54: 0.1 | AC54: 0.1 | AD54: 0.1 | AE54: 0.1 | AF54: 0.1 | AG54: 0.1 | AH54: 0.1 | AI54: 0.1 | AJ54: 0.1 | AK54: 0.1 | AL54: 0.1 | AM54: 0.1 | AN54: 0.1 | AO54: 0.1 | AP54: 0.1 | AQ54: 0.1 | AR54: 0.1 | AS54: 0.1 | AT54: 0.1 | AU54: 0.1 | AV54: 0.1 | AW54: 0.1 | AX54: 0.1 | AY54: 0.1 | AZ54: 0.1 | BA54: 0.1 | BB54: 0.1 | BC54: 0.1 | BD54: 0.1 | BE54: 0.1 | BF54: 0.1 | BG54: 0.1 | BH54: 0.1 | BI54: 0.1 | BJ54: 0.1 | BK54: 0.1 | BL54: 0.1 | BM54: 0.1 | BN54: =ROUND((BN47)/($B$32+$B$19),1) -> 0.1 | BO54: 0.1 | BP54: 0.1 | BQ54: 0.1 | BR54: 0.1 | BS54: 0.1 | BT54: 0.1 | BU54: 0.1 | BV54: 0.1 | BW54: 0.1 | BX54: 0.1 | BY54: 0.1 | BZ54: 0.1 | CA54: 0.1 | CB54: 0.1 | CC54: 0.1 | CD54: 0.1 | CE54: 0.1 | CF54: 0.1 | CG54: 0.1 | CH54: 0.1 | CI54: 0.1 | CJ54: 0.1 | CK54: 0.1 | CL54: 0.1 | CM54: 0.1 | CN54: 0.1 | CO54: 0.1 | CP54: 0.1 | CQ54: 0.1 | CR54: 0.1 | CS54: 0.1 | CT54: 0.1 | CU54: 0.1 | CV54: 0.1 | CW54: 0.1 | CX54: 0.1 | CY54: 0.1 | CZ54: 0.1 | DA54: 0.1 | DB54: 0.1 | DC54: 0.1 | DD54: 0.1 | DE54: 0.1 | DF54: 0.1 | DG54: 0.1 | DH54: 0.1 | DI54: 0.1 | DJ54: 0.1 | DK54: 0.1 | DL54: 0.1 | DM54: 0.1 | DN54: 0.1 | DO54: 0.1 | DP54: 0.1 | DQ54: 0.1
A55: # of UL packets /Scheduled STA/frame (w/ CPU PPF Limit) | B55: =MIN(B53,B54) -> 2.4 | C55: =MIN(C53,C54) -> 1.1 | D55: 0.7 | E55: 0.5 | F55: 0.4 | G55: 0.3 | H55: 0.2 | I55: 0.2 | J55: 0.1 | K55: 0.1 | L55: 0.1 | M55: 0.1 | N55: 0.1 | O55: 0.1 | P55: 0.1 | Q55: 0.1 | R55: 0.1 | S55: 0.1 | T55: 0.1 | U55: 0.1 | V55: 0.1 | W55: 0.1 | X55: 0.1 | Y55: 0.1 | Z55: 0.1 | AA55: 0.1 | AB55: 0.1 | AC55: 0.1 | AD55: 0.1 | AE55: 0.1 | AF55: 0.1 | AG55: 0.1 | AH55: 0.1 | AI55: 0.1 | AJ55: 0.1 | AK55: 0.1 | AL55: 0.1 | AM55: 0.1 | AN55: 0.1 | AO55: 0.1 | AP55: 0.1 | AQ55: 0.1 | AR55: 0.1 | AS55: 0.1 | AT55: 0.1 | AU55: 0.1 | AV55: 0.1 | AW55: 0.1 | AX55: 0.1 | AY55: 0.1 | AZ55: 0.1 | BA55: 0.1 | BB55: 0.1 | BC55: 0.1 | BD55: 0.1 | BE55: 0.1 | BF55: 0.1 | BG55: 0.1 | BH55: 0.1 | BI55: 0.1 | BJ55: 0.1 | BK55: 0.1 | BL55: 0.1 | BM55: 0.1 | BN55: 0.1 | BO55: =MIN(BO53,BO54) -> 0.1 | BP55: 0.1 | BQ55: 0.1 | BR55: 0.1 | BS55: 0.1 | BT55: 0.1 | BU55: 0.1 | BV55: 0.1 | BW55: 0.1 | BX55: 0.1 | BY55: 0.1 | BZ55: 0.1 | CA55: 0.1 | CB55: 0.1 | CC55: 0.1 | CD55: 0.1 | CE55: 0.1 | CF55: 0.1 | CG55: 0.1 | CH55: 0.1 | CI55: 0.1 | CJ55: 0.1 | CK55: 0.1 | CL55: 0.1 | CM55: 0.1 | CN55: 0.1 | CO55: 0.1 | CP55: 0.1 | CQ55: 0.1 | CR55: 0.1 | CS55: 0.1 | CT55: 0.1 | CU55: 0.1 | CV55: 0.1 | CW55: 0.1 | CX55: 0.1 | CY55: 0.1 | CZ55: 0.1 | DA55: 0.1 | DB55: 0.1 | DC55: 0.1 | DD55: 0.1 | DE55: 0.1 | DF55: 0.1 | DG55: 0.1 | DH55: 0.1 | DI55: 0.1 | DJ55: 0.1 | DK55: 0.1 | DL55: 0.1 | DM55: 0.1 | DN55: 0.1 | DO55: 0.1 | DP55: 0.1 | DQ55: 0.1
A57: PPS Calculation
A58: DL PPS (KPPS) | B58: =ROUNDUP(B51*B40,0)*$B$9/1000 -> 0.6 | C58: =ROUNDUP(C51*C40,0)*$B$9/1000 -> 0.6 | D58: 0.6 | E58: 0.6 | F58: 0.4 | G58: 0.4 | H58: 0.6 | I58: 0.4 | J58: 0.4 | K58: 0.4 | L58: 0.4 | M58: 0.4 | N58: 0.4 | O58: 0.4 | P58: 0.4 | Q58: 0.4 | R58: 0.4 | S58: 0.4 | T58: 0.4 | U58: 0.4 | V58: 0.4 | W58: 0.4 | X58: 0.4 | Y58: 0.4 | Z58: 0.4 | AA58: 0.4 | AB58: 0.4 | AC58: 0.4 | AD58: 0.4 | AE58: 0.4 | AF58: 0.4 | AG58: 0.4 | AH58: 0.4 | AI58: 0.4 | AJ58: 0.4 | AK58: 0.4 | AL58: 0.4 | AM58: 0.4 | AN58: 0.4 | AO58: 0.4 | AP58: 0.4 | AQ58: 0.4 | AR58: 0.4 | AS58: 0.4 | AT58: 0.4 | AU58: 0.4 | AV58: 0.4 | AW58: 0.4 | AX58: 0.4 | AY58: 0.4 | AZ58: 0.4 | BA58: 0.4 | BB58: 0.4 | BC58: 0.4 | BD58: 0.4 | BE58: 0.4 | BF58: 0.4 | BG58: 0.4 | BH58: 0.4 | BI58: 0.4 | BJ58: 0.4 | BK58: 0.4 | BL58: 0.4 | BM58: 0.4 | BN58: 0.4 | BO58: =ROUNDUP(BO51*BO40,0)*$B$9/1000 -> 0.4 | BP58: 0.4 | BQ58: 0.4 | BR58: 0.4 | BS58: 0.4 | BT58: 0.4 | BU58: 0.4 | BV58: 0.4 | BW58: 0.4 | BX58: 0.4 | BY58: 0.4 | BZ58: 0.4 | CA58: 0.4 | CB58: 0.4 | CC58: 0.4 | CD58: 0.4 | CE58: 0.4 | CF58: 0.4 | CG58: 0.4 | CH58: 0.4 | CI58: 0.4 | CJ58: 0.4 | CK58: 0.4 | CL58: 0.4 | CM58: 0.4 | CN58: 0.4 | CO58: 0.4 | CP58: 0.4 | CQ58: 0.4 | CR58: 0.4 | CS58: 0.4 | CT58: 0.4 | CU58: 0.4 | CV58: 0.4 | CW58: 0.4 | CX58: 0.4 | CY58: 0.4 | CZ58: 0.4 | DA58: 0.4 | DB58: 0.4 | DC58: 0.4 | DD58: 0.4 | DE58: 0.4 | DF58: 0.4 | DG58: 0.4 | DH58: 0.4 | DI58: 0.4 | DJ58: 0.4 | DK58: 0.4 | DL58: 0.4 | DM58: 0.4 | DN58: 0.4 | DO58: 0.4 | DP58: 0.4 | DQ58: 0.4
A59: UL PPS (KPPS) | B59: =ROUNDUP(B55*B41,0)*$B$9/1000 -> 0.6 | C59: =ROUNDUP(C55*C41,0)*$B$9/1000 -> 0.6 | D59: 0.6 | E59: 0.4 | F59: 0.4 | G59: 0.4 | H59: 0.4 | I59: 0.4 | J59: 0.2 | K59: 0.2 | L59: 0.2 | M59: 0.2 | N59: 0.2 | O59: 0.2 | P59: 0.2 | Q59: 0.2 | R59: 0.2 | S59: 0.2 | T59: 0.2 | U59: 0.2 | V59: 0.2 | W59: 0.2 | X59: 0.2 | Y59: 0.2 | Z59: 0.2 | AA59: 0.2 | AB59: 0.2 | AC59: 0.2 | AD59: 0.2 | AE59: 0.2 | AF59: 0.2 | AG59: 0.2 | AH59: 0.2 | AI59: 0.2 | AJ59: 0.2 | AK59: 0.2 | AL59: 0.2 | AM59: 0.2 | AN59: 0.2 | AO59: 0.2 | AP59: 0.2 | AQ59: 0.2 | AR59: 0.2 | AS59: 0.2 | AT59: 0.2 | AU59: 0.2 | AV59: 0.2 | AW59: 0.2 | AX59: 0.2 | AY59: 0.2 | AZ59: 0.2 | BA59: 0.2 | BB59: 0.2 | BC59: 0.2 | BD59: 0.2 | BE59: 0.2 | BF59: 0.2 | BG59: 0.2 | BH59: 0.2 | BI59: 0.2 | BJ59: 0.2 | BK59: 0.2 | BL59: 0.2 | BM59: 0.2 | BN59: 0.2 | BO59: =ROUNDUP(BO55*BO41,0)*$B$9/1000 -> 0.2 | BP59: 0.2 | BQ59: 0.2 | BR59: 0.2 | BS59: 0.2 | BT59: 0.2 | BU59: 0.2 | BV59: 0.2 | BW59: 0.2 | BX59: 0.2 | BY59: 0.2 | BZ59: 0.2 | CA59: 0.2 | CB59: 0.2 | CC59: 0.2 | CD59: 0.2 | CE59: 0.2 | CF59: 0.2 | CG59: 0.2 | CH59: 0.2 | CI59: 0.2 | CJ59: 0.2 | CK59: 0.2 | CL59: 0.2 | CM59: 0.2 | CN59: 0.2 | CO59: 0.2 | CP59: 0.2 | CQ59: 0.2 | CR59: 0.2 | CS59: 0.2 | CT59: 0.2 | CU59: 0.2 | CV59: 0.2 | CW59: 0.2 | CX59: 0.2 | CY59: 0.2 | CZ59: 0.2 | DA59: 0.2 | DB59: 0.2 | DC59: 0.2 | DD59: 0.2 | DE59: 0.2 | DF59: 0.2 | DG59: 0.2 | DH59: 0.2 | DI59: 0.2 | DJ59: 0.2 | DK59: 0.2 | DL59: 0.2 | DM59: 0.2 | DN59: 0.2 | DO59: 0.2 | DP59: 0.2 | DQ59: 0.2
A60: Total PPS (KPPS) | B60: =SUM(B58:B59) -> 1.2 | C60: =SUM(C58:C59) -> 1.2 | D60: 1.2 | E60: 1 | F60: 0.8 | G60: 0.8 | H60: 1 | I60: 0.8 | J60: 0.6 | K60: 0.6 | L60: 0.6 | M60: 0.6 | N60: 0.6 | O60: 0.6 | P60: 0.6 | Q60: 0.6 | R60: 0.6 | S60: 0.6 | T60: 0.6 | U60: 0.6 | V60: 0.6 | W60: 0.6 | X60: 0.6 | Y60: 0.6 | Z60: 0.6 | AA60: 0.6 | AB60: 0.6 | AC60: 0.6 | AD60: 0.6 | AE60: 0.6 | AF60: 0.6 | AG60: 0.6 | AH60: 0.6 | AI60: 0.6 | AJ60: 0.6 | AK60: 0.6 | AL60: 0.6 | AM60: 0.6 | AN60: 0.6 | AO60: 0.6 | AP60: 0.6 | AQ60: 0.6 | AR60: 0.6 | AS60: 0.6 | AT60: 0.6 | AU60: 0.6 | AV60: 0.6 | AW60: 0.6 | AX60: 0.6 | AY60: 0.6 | AZ60: 0.6 | BA60: 0.6 | BB60: 0.6 | BC60: 0.6 | BD60: 0.6 | BE60: 0.6 | BF60: 0.6 | BG60: 0.6 | BH60: 0.6 | BI60: 0.6 | BJ60: 0.6 | BK60: 0.6 | BL60: 0.6 | BM60: 0.6 | BN60: 0.6 | BO60: =SUM(BO58:BO59) -> 0.6 | BP60: 0.6 | BQ60: 0.6 | BR60: 0.6 | BS60: 0.6 | BT60: 0.6 | BU60: 0.6 | BV60: 0.6 | BW60: 0.6 | BX60: 0.6 | BY60: 0.6 | BZ60: 0.6 | CA60: 0.6 | CB60: 0.6 | CC60: 0.6 | CD60: 0.6 | CE60: 0.6 | CF60: 0.6 | CG60: 0.6 | CH60: 0.6 | CI60: 0.6 | CJ60: 0.6 | CK60: 0.6 | CL60: 0.6 | CM60: 0.6 | CN60: 0.6 | CO60: 0.6 | CP60: 0.6 | CQ60: 0.6 | CR60: 0.6 | CS60: 0.6 | CT60: 0.6 | CU60: 0.6 | CV60: 0.6 | CW60: 0.6 | CX60: 0.6 | CY60: 0.6 | CZ60: 0.6 | DA60: 0.6 | DB60: 0.6 | DC60: 0.6 | DD60: 0.6 | DE60: 0.6 | DF60: 0.6 | DG60: 0.6 | DH60: 0.6 | DI60: 0.6 | DJ60: 0.6 | DK60: 0.6 | DL60: 0.6 | DM60: 0.6 | DN60: 0.6 | DO60: 0.6 | DP60: 0.6 | DQ60: 0.6
A62: Throughput Calculation
A63: DL STA is scheduled every (frame) | B63: =IF(B36<= $B$5, 1, B36/$B$5) -> 1 | C63: 1 | D63: 1 | E63: 1 | F63: 1 | G63: 1 | H63: 1 | I63: 1 | J63: 1.125 | K63: 1.25 | L63: 1.375 | M63: 1.5 | N63: 1.625 | O63: 1.75 | P63: 1.875 | Q63: 2 | R63: 2.125 | S63: 2.25 | T63: 2.375 | U63: 2.5 | V63: 2.625 | W63: 2.75 | X63: 2.875 | Y63: 3 | Z63: 3.125 | AA63: 3.25 | AB63: 3.375 | AC63: 3.5 | AD63: 3.625 | AE63: 3.75 | AF63: 3.875 | AG63: 4 | AH63: 4.125 | AI63: 4.25 | AJ63: 4.375 | AK63: 4.5 | AL63: 4.625 | AM63: 4.75 | AN63: 4.875 | AO63: 5 | AP63: 5.125 | AQ63: 5.25 | AR63: 5.375 | AS63: 5.5 | AT63: 5.625 | AU63: 5.75 | AV63: 5.875 | AW63: 6 | AX63: 6.125 | AY63: 6.25 | AZ63: 6.375 | BA63: 6.5 | BB63: 6.625 | BC63: 6.75 | BD63: 6.875 | BE63: 7 | BF63: 7.125 | BG63: 7.25 | BH63: 7.375 | BI63: 7.5 | BJ63: 7.625 | BK63: 7.75 | BL63: 7.875 | BM63: 8 | BN63: =IF(BN36<= $B$5, 1, BN36/$B$5) -> 8.125 | BO63: 8.25 | BP63: 8.375 | BQ63: 8.5 | BR63: 8.625 | BS63: 8.75 | BT63: 8.875 | BU63: 9 | BV63: 9.125 | BW63: 9.25 | BX63: 9.375 | BY63: 9.5 | BZ63: 9.625 | CA63: 9.75 | CB63: 9.875 | CC63: 10 | CD63: 10.125 | CE63: 10.25 | CF63: 10.375 | CG63: 10.5 | CH63: 10.625 | CI63: 10.75 | CJ63: 10.875 | CK63: 11 | CL63: 11.125 | CM63: 11.25 | CN63: 11.375 | CO63: 11.5 | CP63: 11.625 | CQ63: 11.75 | CR63: 11.875 | CS63: 12 | CT63: 12.125 | CU63: 12.25 | CV63: 12.375 | CW63: 12.5 | CX63: 12.625 | CY63: 12.75 | CZ63: 12.875 | DA63: 13 | DB63: 13.125 | DC63: 13.25 | DD63: 13.375 | DE63: 13.5 | DF63: 13.625 | DG63: 13.75 | DH63: 13.875 | DI63: 14 | DJ63: 14.125 | DK63: 14.25 | DL63: 14.375 | DM63: 14.5 | DN63: 14.625 | DO63: 14.75 | DP63: 14.875 | DQ63: 15
A64: STA's DL UDP Throughput (Mbps) | B64: =ROUND(B51*$B$14*8*$B$9/1024/1024/B63,2) -> 5.39 | C64: 2.7 | D64: 1.8 | E64: 1.35 | F64: 0.9 | G64: 0.67 | H64: 0.67 | I64: 0.45 | J64: 0.4 | K64: 0.36 | L64: 0.33 | M64: 0.3 | N64: 0.28 | O64: 0.26 | P64: 0.24 | Q64: 0.22 | R64: 0.21 | S64: 0.2 | T64: 0.19 | U64: 0.18 | V64: 0.17 | W64: 0.16 | X64: 0.16 | Y64: 0.15 | Z64: 0.14 | AA64: 0.14 | AB64: 0.13 | AC64: 0.13 | AD64: 0.12 | AE64: 0.12 | AF64: 0.12 | AG64: 0.11 | AH64: 0.11 | AI64: 0.11 | AJ64: 0.1 | AK64: 0.1 | AL64: 0.1 | AM64: 0.09 | AN64: 0.09 | AO64: 0.09 | AP64: 0.09 | AQ64: 0.09 | AR64: 0.08 | AS64: 0.08 | AT64: 0.08 | AU64: 0.08 | AV64: 0.08 | AW64: 0.07 | AX64: 0.07 | AY64: 0.07 | AZ64: 0.07 | BA64: 0.07 | BB64: 0.07 | BC64: 0.07 | BD64: 0.07 | BE64: 0.06 | BF64: 0.06 | BG64: 0.06 | BH64: 0.06 | BI64: 0.06 | BJ64: 0.06 | BK64: 0.06 | BL64: 0.06 | BM64: 0.06 | BN64: =ROUND(BN51*$B$14*8*$B$9/1024/1024/BN63,2) -> 0.06 | BO64: 0.05 | BP64: 0.05 | BQ64: 0.05 | BR64: 0.05 | BS64: 0.05 | BT64: 0.05 | BU64: 0.05 | BV64: 0.05 | BW64: 0.05 | BX64: 0.05 | BY64: 0.05 | BZ64: 0.05 | CA64: 0.05 | CB64: 0.05 | CC64: 0.04 | CD64: 0.04 | CE64: 0.04 | CF64: 0.04 | CG64: 0.04 | CH64: 0.04 | CI64: 0.04 | CJ64: 0.04 | CK64: 0.04 | CL64: 0.04 | CM64: 0.04 | CN64: 0.04 | CO64: 0.04 | CP64: 0.04 | CQ64: 0.04 | CR64: 0.04 | CS64: 0.04 | CT64: 0.04 | CU64: 0.04 | CV64: 0.04 | CW64: 0.04 | CX64: 0.04 | CY64: 0.04 | CZ64: 0.03 | DA64: 0.03 | DB64: 0.03 | DC64: 0.03 | DD64: 0.03 | DE64: 0.03 | DF64: 0.03 | DG64: 0.03 | DH64: 0.03 | DI64: 0.03 | DJ64: 0.03 | DK64: 0.03 | DL64: 0.03 | DM64: 0.03 | DN64: 0.03 | DO64: 0.03 | DP64: 0.03 | DQ64: 0.03
A65: Sector DL UDP Throughput (Mbps) | B65: =B64*B36 -> 5.39 | C65: 5.4 | D65: 5.4 | E65: 5.4 | F65: 4.5 | G65: 4.02 | H65: 4.69 | I65: 3.6 | J65: 3.6 | K65: 3.6 | L65: 3.63 | M65: 3.6 | N65: 3.64 | O65: 3.64 | P65: 3.6 | Q65: 3.52 | R65: 3.57 | S65: 3.6 | T65: 3.61 | U65: 3.6 | V65: 3.57 | W65: 3.52 | X65: 3.68 | Y65: 3.6 | Z65: 3.5 | AA65: 3.64 | AB65: 3.51 | AC65: 3.64 | AD65: 3.48 | AE65: 3.6 | AF65: 3.72 | AG65: 3.52 | AH65: 3.63 | AI65: 3.74 | AJ65: 3.5 | AK65: 3.6 | AL65: 3.7 | AM65: 3.42 | AN65: 3.51 | AO65: 3.6 | AP65: 3.69 | AQ65: 3.78 | AR65: 3.44 | AS65: 3.52 | AT65: 3.6 | AU65: 3.68 | AV65: 3.76 | AW65: 3.36 | AX65: 3.43 | AY65: 3.5 | AZ65: 3.57 | BA65: 3.64 | BB65: 3.71 | BC65: 3.78 | BD65: 3.85 | BE65: 3.36 | BF65: 3.42 | BG65: 3.48 | BH65: 3.54 | BI65: 3.6 | BJ65: 3.66 | BK65: 3.72 | BL65: 3.78 | BM65: 3.84 | BN65: =BN64*BN36 -> 3.9 | BO65: 3.3 | BP65: 3.35 | BQ65: 3.4 | BR65: 3.45 | BS65: 3.5 | BT65: 3.55 | BU65: 3.6 | BV65: 3.65 | BW65: 3.7 | BX65: 3.75 | BY65: 3.8 | BZ65: 3.85 | CA65: 3.9 | CB65: 3.95 | CC65: 3.2 | CD65: 3.24 | CE65: 3.28 | CF65: 3.32 | CG65: 3.36 | CH65: 3.4 | CI65: 3.44 | CJ65: 3.48 | CK65: 3.52 | CL65: 3.56 | CM65: 3.6 | CN65: 3.64 | CO65: 3.68 | CP65: 3.72 | CQ65: 3.76 | CR65: 3.8 | CS65: 3.84 | CT65: 3.88 | CU65: 3.92 | CV65: 3.96 | CW65: 4 | CX65: 4.04 | CY65: 4.08 | CZ65: 3.09 | DA65: 3.12 | DB65: 3.15 | DC65: 3.18 | DD65: 3.21 | DE65: 3.24 | DF65: 3.27 | DG65: 3.3 | DH65: 3.33 | DI65: 3.36 | DJ65: 3.39 | DK65: 3.42 | DL65: 3.45 | DM65: 3.48 | DN65: 3.51 | DO65: 3.54 | DP65: 3.57 | DQ65: 3.6
A67: UL STA is scheduled every (frame) | B67: =IF(B37<= $B$6, 1, B37/$B$6) -> 1 | C67: =IF(C37<= $B$6, 1, C37/$B$6) -> 1 | D67: 1 | E67: 1 | F67: 1 | G67: 1 | H67: 1 | I67: 1 | J67: 1 | K67: 1.111111111 | L67: 1.222222222 | M67: 1.333333333 | N67: 1.444444444 | O67: 1.555555556 | P67: 1.666666667 | Q67: 1.777777778 | R67: 1.888888889 | S67: 2 | T67: 2.111111111 | U67: 2.222222222 | V67: 2.333333333 | W67: 2.444444444 | X67: 2.555555556 | Y67: 2.666666667 | Z67: 2.777777778 | AA67: 2.888888889 | AB67: 3 | AC67: 3.111111111 | AD67: 3.222222222 | AE67: 3.333333333 | AF67: 3.444444444 | AG67: 3.555555556 | AH67: 3.666666667 | AI67: 3.777777778 | AJ67: 3.888888889 | AK67: 4 | AL67: 4.111111111 | AM67: 4.222222222 | AN67: 4.333333333 | AO67: 4.444444444 | AP67: 4.555555556 | AQ67: 4.666666667 | AR67: 4.777777778 | AS67: 4.888888889 | AT67: 5 | AU67: 5.111111111 | AV67: 5.222222222 | AW67: 5.333333333 | AX67: 5.444444444 | AY67: 5.555555556 | AZ67: 5.666666667 | BA67: 5.777777778 | BB67: 5.888888889 | BC67: 6 | BD67: 6.111111111 | BE67: 6.222222222 | BF67: 6.333333333 | BG67: 6.444444444 | BH67: 6.555555556 | BI67: 6.666666667 | BJ67: 6.777777778 | BK67: 6.888888889 | BL67: 7 | BM67: 7.111111111 | BN67: 7.222222222 | BO67: =IF(BO37<= $B$6, 1, BO37/$B$6) -> 7.333333333 | BP67: 7.444444444 | BQ67: 7.555555556 | BR67: 7.666666667 | BS67: 7.777777778 | BT67: 7.888888889 | BU67: 8 | BV67: 8.111111111 | BW67: 8.222222222 | BX67: 8.333333333 | BY67: 8.444444444 | BZ67: 8.555555556 | CA67: 8.666666667 | CB67: 8.777777778 | CC67: 8.888888889 | CD67: 9 | CE67: 9.111111111 | CF67: 9.222222222 | CG67: 9.333333333 | CH67: 9.444444444 | CI67: 9.555555556 | CJ67: 9.666666667 | CK67: 9.777777778 | CL67: 9.888888889 | CM67: 10 | CN67: 10.11111111 | CO67: 10.22222222 | CP67: 10.33333333 | CQ67: 10.44444444 | CR67: 10.55555556 | CS67: 10.66666667 | CT67: 10.77777778 | CU67: 10.88888889 | CV67: 11 | CW67: 11.11111111 | CX67: 11.22222222 | CY67: 11.33333333 | CZ67: 11.44444444 | DA67: 11.55555556 | DB67: 11.66666667 | DC67: 11.77777778 | DD67: 11.88888889 | DE67: 12 | DF67: 12.11111111 | DG67: 12.22222222 | DH67: 12.33333333 | DI67: 12.44444444 | DJ67: 12.55555556 | DK67: 12.66666667 | DL67: 12.77777778 | DM67: 12.88888889 | DN67: 13 | DO67: 13.11111111 | DP67: 13.22222222 | DQ67: 13.33333333
A68: STA's UL UDP Throughput (Mbps) | B68: =ROUND(B55*$B$14*8*$B$9/1024/1024/B67,2) -> 5.39 | C68: =ROUND(C55*$B$14*8*$B$9/1024/1024/C67,2) -> 2.47 | D68: 1.57 | E68: 1.12 | F68: 0.9 | G68: 0.67 | H68: 0.45 | I68: 0.45 | J68: 0.22 | K68: 0.2 | L68: 0.18 | M68: 0.17 | N68: 0.16 | O68: 0.14 | P68: 0.13 | Q68: 0.13 | R68: 0.12 | S68: 0.11 | T68: 0.11 | U68: 0.1 | V68: 0.1 | W68: 0.09 | X68: 0.09 | Y68: 0.08 | Z68: 0.08 | AA68: 0.08 | AB68: 0.07 | AC68: 0.07 | AD68: 0.07 | AE68: 0.07 | AF68: 0.07 | AG68: 0.06 | AH68: 0.06 | AI68: 0.06 | AJ68: 0.06 | AK68: 0.06 | AL68: 0.05 | AM68: 0.05 | AN68: 0.05 | AO68: 0.05 | AP68: 0.05 | AQ68: 0.05 | AR68: 0.05 | AS68: 0.05 | AT68: 0.04 | AU68: 0.04 | AV68: 0.04 | AW68: 0.04 | AX68: 0.04 | AY68: 0.04 | AZ68: 0.04 | BA68: 0.04 | BB68: 0.04 | BC68: 0.04 | BD68: 0.04 | BE68: 0.04 | BF68: 0.04 | BG68: 0.03 | BH68: 0.03 | BI68: 0.03 | BJ68: 0.03 | BK68: 0.03 | BL68: 0.03 | BM68: 0.03 | BN68: 0.03 | BO68: =ROUND(BO55*$B$14*8*$B$9/1024/1024/BO67,2) -> 0.03 | BP68: 0.03 | BQ68: 0.03 | BR68: 0.03 | BS68: 0.03 | BT68: 0.03 | BU68: 0.03 | BV68: 0.03 | BW68: 0.03 | BX68: 0.03 | BY68: 0.03 | BZ68: 0.03 | CA68: 0.03 | CB68: 0.03 | CC68: 0.03 | CD68: 0.02 | CE68: 0.02 | CF68: 0.02 | CG68: 0.02 | CH68: 0.02 | CI68: 0.02 | CJ68: 0.02 | CK68: 0.02 | CL68: 0.02 | CM68: 0.02 | CN68: 0.02 | CO68: 0.02 | CP68: 0.02 | CQ68: 0.02 | CR68: 0.02 | CS68: 0.02 | CT68: 0.02 | CU68: 0.02 | CV68: 0.02 | CW68: 0.02 | CX68: 0.02 | CY68: 0.02 | CZ68: 0.02 | DA68: 0.02 | DB68: 0.02 | DC68: 0.02 | DD68: 0.02 | DE68: 0.02 | DF68: 0.02 | DG68: 0.02 | DH68: 0.02 | DI68: 0.02 | DJ68: 0.02 | DK68: 0.02 | DL68: 0.02 | DM68: 0.02 | DN68: 0.02 | DO68: 0.02 | DP68: 0.02 | DQ68: 0.02
A69: Sector UL UDP Throughput (Mbps) | B69: =B68*B37 -> 5.39 | C69: 4.94 | D69: 4.71 | E69: 4.48 | F69: 4.5 | G69: 4.02 | H69: 3.15 | I69: 3.6 | J69: 1.98 | K69: 2 | L69: 1.98 | M69: 2.04 | N69: 2.08 | O69: 1.96 | P69: 1.95 | Q69: 2.08 | R69: 2.04 | S69: 1.98 | T69: 2.09 | U69: 2 | V69: 2.1 | W69: 1.98 | X69: 2.07 | Y69: 1.92 | Z69: 2 | AA69: 2.08 | AB69: 1.89 | AC69: 1.96 | AD69: 2.03 | AE69: 2.1 | AF69: 2.17 | AG69: 1.92 | AH69: 1.98 | AI69: 2.04 | AJ69: 2.1 | AK69: 2.16 | AL69: 1.85 | AM69: 1.9 | AN69: 1.95 | AO69: 2 | AP69: 2.05 | AQ69: 2.1 | AR69: 2.15 | AS69: 2.2 | AT69: 1.8 | AU69: 1.84 | AV69: 1.88 | AW69: 1.92 | AX69: 1.96 | AY69: 2 | AZ69: 2.04 | BA69: 2.08 | BB69: 2.12 | BC69: 2.16 | BD69: 2.2 | BE69: 2.24 | BF69: 2.28 | BG69: 1.74 | BH69: 1.77 | BI69: 1.8 | BJ69: 1.83 | BK69: 1.86 | BL69: 1.89 | BM69: 1.92 | BN69: =BN68*BN37 -> 1.95 | BO69: 1.98 | BP69: 2.01 | BQ69: 2.04 | BR69: 2.07 | BS69: 2.1 | BT69: 2.13 | BU69: 2.16 | BV69: 2.19 | BW69: 2.22 | BX69: 2.25 | BY69: 2.28 | BZ69: 2.31 | CA69: 2.34 | CB69: 2.37 | CC69: 2.4 | CD69: 1.62 | CE69: 1.64 | CF69: 1.66 | CG69: 1.68 | CH69: 1.7 | CI69: 1.72 | CJ69: 1.74 | CK69: 1.76 | CL69: 1.78 | CM69: 1.8 | CN69: 1.82 | CO69: 1.84 | CP69: 1.86 | CQ69: 1.88 | CR69: 1.9 | CS69: 1.92 | CT69: 1.94 | CU69: 1.96 | CV69: 1.98 | CW69: 2 | CX69: 2.02 | CY69: 2.04 | CZ69: 2.06 | DA69: 2.08 | DB69: 2.1 | DC69: 2.12 | DD69: 2.14 | DE69: 2.16 | DF69: 2.18 | DG69: 2.2 | DH69: 2.22 | DI69: 2.24 | DJ69: 2.26 | DK69: 2.28 | DL69: 2.3 | DM69: 2.32 | DN69: 2.34 | DO69: 2.36 | DP69: 2.38 | DQ69: 2.4
A71: Total Sector Throughput (DL+UL) (Mbps) | B71: =B69+B65 -> 10.78 | C71: 10.34 | D71: 10.11 | E71: 9.88 | F71: 9 | G71: 8.04 | H71: 7.84 | I71: 7.2 | J71: 5.58 | K71: 5.6 | L71: 5.61 | M71: 5.64 | N71: 5.72 | O71: 5.6 | P71: 5.55 | Q71: 5.6 | R71: 5.61 | S71: 5.58 | T71: 5.7 | U71: 5.6 | V71: 5.67 | W71: 5.5 | X71: 5.75 | Y71: 5.52 | Z71: 5.5 | AA71: 5.72 | AB71: 5.4 | AC71: 5.6 | AD71: 5.51 | AE71: 5.7 | AF71: 5.89 | AG71: 5.44 | AH71: 5.61 | AI71: 5.78 | AJ71: 5.6 | AK71: 5.76 | AL71: 5.55 | AM71: 5.32 | AN71: 5.46 | AO71: 5.6 | AP71: 5.74 | AQ71: 5.88 | AR71: 5.59 | AS71: 5.72 | AT71: 5.4 | AU71: 5.52 | AV71: 5.64 | AW71: 5.28 | AX71: 5.39 | AY71: 5.5 | AZ71: 5.61 | BA71: 5.72 | BB71: 5.83 | BC71: 5.94 | BD71: 6.05 | BE71: 5.6 | BF71: 5.7 | BG71: 5.22 | BH71: 5.31 | BI71: 5.4 | BJ71: 5.49 | BK71: 5.58 | BL71: 5.67 | BM71: 5.76 | BN71: =BN69+BN65 -> 5.85 | BO71: 5.28 | BP71: 5.36 | BQ71: 5.44 | BR71: 5.52 | BS71: 5.6 | BT71: 5.68 | BU71: 5.76 | BV71: 5.84 | BW71: 5.92 | BX71: 6 | BY71: 6.08 | BZ71: 6.16 | CA71: 6.24 | CB71: 6.32 | CC71: 5.6 | CD71: 4.86 | CE71: 4.92 | CF71: 4.98 | CG71: 5.04 | CH71: 5.1 | CI71: 5.16 | CJ71: 5.22 | CK71: 5.28 | CL71: 5.34 | CM71: 5.4 | CN71: 5.46 | CO71: 5.52 | CP71: 5.58 | CQ71: 5.64 | CR71: 5.7 | CS71: 5.76 | CT71: 5.82 | CU71: 5.88 | CV71: 5.94 | CW71: 6 | CX71: 6.06 | CY71: 6.12 | CZ71: 5.15 | DA71: 5.2 | DB71: 5.25 | DC71: 5.3 | DD71: 5.35 | DE71: 5.4 | DF71: 5.45 | DG71: 5.5 | DH71: 5.55 | DI71: 5.6 | DJ71: 5.65 | DK71: 5.7 | DL71: 5.75 | DM71: 5.8 | DN71: 5.85 | DO71: 5.9 | DP71: 5.95 | DQ71: 6
A73: Latency Calculation
A74: AP Scheduling Delay (msec) | B74: =B1 -> 5
A75: DL Scheduling Latency (msec) | B75: =B63*$B$1+$B$74 -> 10 | C75: 10 | D75: 10 | E75: 10 | F75: 10 | G75: 10 | H75: 10 | I75: 10 | J75: 10.625 | K75: 11.25 | L75: 11.875 | M75: 12.5 | N75: 13.125 | O75: 13.75 | P75: 14.375 | Q75: 15 | R75: 15.625 | S75: 16.25 | T75: 16.875 | U75: 17.5 | V75: 18.125 | W75: 18.75 | X75: 19.375 | Y75: 20 | Z75: 20.625 | AA75: 21.25 | AB75: 21.875 | AC75: 22.5 | AD75: 23.125 | AE75: 23.75 | AF75: 24.375 | AG75: 25 | AH75: 25.625 | AI75: 26.25 | AJ75: 26.875 | AK75: 27.5 | AL75: 28.125 | AM75: 28.75 | AN75: 29.375 | AO75: 30 | AP75: 30.625 | AQ75: 31.25 | AR75: 31.875 | AS75: 32.5 | AT75: 33.125 | AU75: 33.75 | AV75: 34.375 | AW75: 35 | AX75: 35.625 | AY75: 36.25 | AZ75: 36.875 | BA75: 37.5 | BB75: 38.125 | BC75: 38.75 | BD75: 39.375 | BE75: 40 | BF75: 40.625 | BG75: 41.25 | BH75: 41.875 | BI75: 42.5 | BJ75: 43.125 | BK75: 43.75 | BL75: 44.375 | BM75: 45 | BN75: =BN63*$B$1+$B$74 -> 45.625 | BO75: 46.25 | BP75: 46.875 | BQ75: 47.5 | BR75: 48.125 | BS75: 48.75 | BT75: 49.375 | BU75: 50 | BV75: 50.625 | BW75: 51.25 | BX75: 51.875 | BY75: 52.5 | BZ75: 53.125 | CA75: 53.75 | CB75: 54.375 | CC75: 55 | CD75: 55.625 | CE75: 56.25 | CF75: 56.875 | CG75: 57.5 | CH75: 58.125 | CI75: 58.75 | CJ75: 59.375 | CK75: 60 | CL75: 60.625 | CM75: 61.25 | CN75: 61.875 | CO75: 62.5 | CP75: 63.125 | CQ75: 63.75 | CR75: 64.375 | CS75: 65 | CT75: 65.625 | CU75: 66.25 | CV75: 66.875 | CW75: 67.5 | CX75: 68.125 | CY75: 68.75 | CZ75: 69.375 | DA75: 70 | DB75: 70.625 | DC75: 71.25 | DD75: 71.875 | DE75: 72.5 | DF75: 73.125 | DG75: 73.75 | DH75: 74.375 | DI75: 75 | DJ75: 75.625 | DK75: 76.25 | DL75: 76.875 | DM75: 77.5 | DN75: 78.125 | DO75: 78.75 | DP75: 79.375 | DQ75: 80
A76: UL Scheduling Latency (msec) | B76: =B67*$B$1+$B$74 -> 10 | C76: 10 | D76: 10 | E76: 10 | F76: 10 | G76: 10 | H76: 10 | I76: 10 | J76: 10 | K76: 10.55555556 | L76: 11.11111111 | M76: 11.66666667 | N76: 12.22222222 | O76: 12.77777778 | P76: 13.33333333 | Q76: 13.88888889 | R76: 14.44444444 | S76: 15 | T76: 15.55555556 | U76: 16.11111111 | V76: 16.66666667 | W76: 17.22222222 | X76: 17.77777778 | Y76: 18.33333333 | Z76: 18.88888889 | AA76: 19.44444444 | AB76: 20 | AC76: 20.55555556 | AD76: 21.11111111 | AE76: 21.66666667 | AF76: 22.22222222 | AG76: 22.77777778 | AH76: 23.33333333 | AI76: 23.88888889 | AJ76: 24.44444444 | AK76: 25 | AL76: 25.55555556 | AM76: 26.11111111 | AN76: 26.66666667 | AO76: 27.22222222 | AP76: 27.77777778 | AQ76: 28.33333333 | AR76: 28.88888889 | AS76: 29.44444444 | AT76: 30 | AU76: 30.55555556 | AV76: 31.11111111 | AW76: 31.66666667 | AX76: 32.22222222 | AY76: 32.77777778 | AZ76: 33.33333333 | BA76: 33.88888889 | BB76: 34.44444444 | BC76: 35 | BD76: 35.55555556 | BE76: 36.11111111 | BF76: 36.66666667 | BG76: 37.22222222 | BH76: 37.77777778 | BI76: 38.33333333 | BJ76: 38.88888889 | BK76: 39.44444444 | BL76: 40 | BM76: 40.55555556 | BN76: =BN67*$B$1+$B$74 -> 41.11111111 | BO76: 41.66666667 | BP76: 42.22222222 | BQ76: 42.77777778 | BR76: 43.33333333 | BS76: 43.88888889 | BT76: 44.44444444 | BU76: 45 | BV76: 45.55555556 | BW76: 46.11111111 | BX76: 46.66666667 | BY76: 47.22222222 | BZ76: 47.77777778 | CA76: 48.33333333 | CB76: 48.88888889 | CC76: 49.44444444 | CD76: 50 | CE76: 50.55555556 | CF76: 51.11111111 | CG76: 51.66666667 | CH76: 52.22222222 | CI76: 52.77777778 | CJ76: 53.33333333 | CK76: 53.88888889 | CL76: 54.44444444 | CM76: 55 | CN76: 55.55555556 | CO76: 56.11111111 | CP76: 56.66666667 | CQ76: 57.22222222 | CR76: 57.77777778 | CS76: 58.33333333 | CT76: 58.88888889 | CU76: 59.44444444 | CV76: 60 | CW76: 60.55555556 | CX76: 61.11111111 | CY76: 61.66666667 | CZ76: 62.22222222 | DA76: 62.77777778 | DB76: 63.33333333 | DC76: 63.88888889 | DD76: 64.44444444 | DE76: 65 | DF76: 65.55555556 | DG76: 66.11111111 | DH76: 66.66666667 | DI76: 67.22222222 | DJ76: 67.77777778 | DK76: 68.33333333 | DL76: 68.88888889 | DM76: 69.44444444 | DN76: 70 | DO76: 70.55555556 | DP76: 71.11111111 | DQ76: 71.66666667
A77: Total Scheduling Latency DL+UL (msec) | B77: =B76+B75 -> 20 | C77: 20 | D77: 20 | E77: 20 | F77: 20 | G77: 20 | H77: 20 | I77: 20 | J77: 20.625 | K77: 21.80555556 | L77: 22.98611111 | M77: 24.16666667 | N77: 25.34722222 | O77: 26.52777778 | P77: 27.70833333 | Q77: 28.88888889 | R77: 30.06944444 | S77: 31.25 | T77: 32.43055556 | U77: 33.61111111 | V77: 34.79166667 | W77: 35.97222222 | X77: 37.15277778 | Y77: 38.33333333 | Z77: 39.51388889 | AA77: 40.69444444 | AB77: 41.875 | AC77: 43.05555556 | AD77: 44.23611111 | AE77: 45.41666667 | AF77: 46.59722222 | AG77: 47.77777778 | AH77: 48.95833333 | AI77: 50.13888889 | AJ77: 51.31944444 | AK77: 52.5 | AL77: 53.68055556 | AM77: 54.86111111 | AN77: 56.04166667 | AO77: 57.22222222 | AP77: 58.40277778 | AQ77: 59.58333333 | AR77: 60.76388889 | AS77: 61.94444444 | AT77: 63.125 | AU77: 64.30555556 | AV77: 65.48611111 | AW77: 66.66666667 | AX77: 67.84722222 | AY77: 69.02777778 | AZ77: 70.20833333 | BA77: 71.38888889 | BB77: 72.56944444 | BC77: 73.75 | BD77: 74.93055556 | BE77: 76.11111111 | BF77: 77.29166667 | BG77: 78.47222222 | BH77: 79.65277778 | BI77: 80.83333333 | BJ77: 82.01388889 | BK77: 83.19444444 | BL77: 84.375 | BM77: 85.55555556 | BN77: =BN76+BN75 -> 86.73611111 | BO77: 87.91666667 | BP77: 89.09722222 | BQ77: 90.27777778 | BR77: 91.45833333 | BS77: 92.63888889 | BT77: 93.81944444 | BU77: 95 | BV77: 96.18055556 | BW77: 97.36111111 | BX77: 98.54166667 | BY77: 99.72222222 | BZ77: 100.9027778 | CA77: 102.0833333 | CB77: 103.2638889 | CC77: 104.4444444 | CD77: 105.625 | CE77: 106.8055556 | CF77: 107.9861111 | CG77: 109.1666667 | CH77: 110.3472222 | CI77: 111.5277778 | CJ77: 112.7083333 | CK77: 113.8888889 | CL77: 115.0694444 | CM77: 116.25 | CN77: 117.4305556 | CO77: 118.6111111 | CP77: 119.7916667 | CQ77: 120.9722222 | CR77: 122.1527778 | CS77: 123.3333333 | CT77: 124.5138889 | CU77: 125.6944444 | CV77: 126.875 | CW77: 128.0555556 | CX77: 129.2361111 | CY77: 130.4166667 | CZ77: 131.5972222 | DA77: 132.7777778 | DB77: 133.9583333 | DC77: 135.1388889 | DD77: 136.3194444 | DE77: 137.5 | DF77: 138.6805556 | DG77: 139.8611111 | DH77: 141.0416667 | DI77: 142.2222222 | DJ77: 143.4027778 | DK77: 144.5833333 | DL77: 145.7638889 | DM77: 146.9444444 | DN77: 148.125 | DO77: 149.3055556 | DP77: 150.4861111 | DQ77: 151.6666667
A80: Overhead Detail Calculation
A81: DL Preamable Overhead time / frame (usec) | B81: =B40*$B$8 -> 36 | C81: =C40*$B$8 -> 72 | D81: 108 | E81: 144 | F81: 180 | G81: 216 | H81: 252 | I81: 288 | J81: 288 | K81: 288 | L81: 288 | M81: 288 | N81: 288 | O81: 288 | P81: 288 | Q81: 288 | R81: 288 | S81: 288 | T81: 288 | U81: 288 | V81: 288 | W81: 288 | X81: 288 | Y81: 288 | Z81: 288 | AA81: 288 | AB81: 288 | AC81: 288 | AD81: 288 | AE81: 288 | AF81: 288 | AG81: 288 | AH81: 288 | AI81: 288 | AJ81: 288 | AK81: 288 | AL81: 288 | AM81: 288 | AN81: 288 | AO81: 288 | AP81: 288 | AQ81: 288 | AR81: 288 | AS81: 288 | AT81: 288 | AU81: 288 | AV81: 288 | AW81: 288 | AX81: 288 | AY81: 288 | AZ81: 288 | BA81: 288 | BB81: 288 | BC81: 288 | BD81: 288 | BE81: 288 | BF81: 288 | BG81: 288 | BH81: 288 | BI81: 288 | BJ81: 288 | BK81: 288 | BL81: 288 | BM81: 288 | BN81: 288 | BO81: =BO40*$B$8 -> 288 | BP81: 288 | BQ81: 288 | BR81: 288 | BS81: 288 | BT81: 288 | BU81: 288 | BV81: 288 | BW81: 288 | BX81: 288 | BY81: 288 | BZ81: 288 | CA81: 288 | CB81: 288 | CC81: 288 | CD81: 288 | CE81: 288 | CF81: 288 | CG81: 288 | CH81: 288 | CI81: 288 | CJ81: 288 | CK81: 288 | CL81: 288 | CM81: 288 | CN81: 288 | CO81: 288 | CP81: 288 | CQ81: 288 | CR81: 288 | CS81: 288 | CT81: 288 | CU81: 288 | CV81: 288 | CW81: 288 | CX81: 288 | CY81: 288 | CZ81: 288 | DA81: 288 | DB81: 288 | DC81: 288 | DD81: 288 | DE81: 288 | DF81: 288 | DG81: 288 | DH81: 288 | DI81: 288 | DJ81: 288 | DK81: 288 | DL81: 288 | DM81: 288 | DN81: 288 | DO81: 288 | DP81: 288 | DQ81: 288
A82: DL GPF Overhead time /frame (usec) | B82: =B43 -> 79 | C82: =C43 -> 109 | D82: 138 | E82: 168 | F82: 197 | G82: 227 | H82: 256 | I82: 286 | J82: 301 | K82: 301 | L82: 301 | M82: 301 | N82: 301 | O82: 301 | P82: 301 | Q82: 301 | R82: 301 | S82: 301 | T82: 301 | U82: 301 | V82: 301 | W82: 301 | X82: 301 | Y82: 301 | Z82: 301 | AA82: 301 | AB82: 301 | AC82: 301 | AD82: 301 | AE82: 301 | AF82: 301 | AG82: 301 | AH82: 301 | AI82: 301 | AJ82: 301 | AK82: 301 | AL82: 301 | AM82: 301 | AN82: 301 | AO82: 301 | AP82: 301 | AQ82: 301 | AR82: 301 | AS82: 301 | AT82: 301 | AU82: 301 | AV82: 301 | AW82: 301 | AX82: 301 | AY82: 301 | AZ82: 301 | BA82: 301 | BB82: 301 | BC82: 301 | BD82: 301 | BE82: 301 | BF82: 301 | BG82: 301 | BH82: 301 | BI82: 301 | BJ82: 301 | BK82: 301 | BL82: 301 | BM82: 301 | BN82: 301 | BO82: =BO43 -> 301 | BP82: 301 | BQ82: 301 | BR82: 301 | BS82: 301 | BT82: 301 | BU82: 301 | BV82: 301 | BW82: 301 | BX82: 301 | BY82: 301 | BZ82: 301 | CA82: 301 | CB82: 301 | CC82: 301 | CD82: 301 | CE82: 301 | CF82: 301 | CG82: 301 | CH82: 301 | CI82: 301 | CJ82: 301 | CK82: 301 | CL82: 301 | CM82: 301 | CN82: 301 | CO82: 301 | CP82: 301 | CQ82: 301 | CR82: 301 | CS82: 301 | CT82: 301 | CU82: 301 | CV82: 301 | CW82: 301 | CX82: 301 | CY82: 301 | CZ82: 301 | DA82: 301 | DB82: 301 | DC82: 301 | DD82: 301 | DE82: 301 | DF82: 301 | DG82: 301 | DH82: 301 | DI82: 301 | DJ82: 301 | DK82: 301 | DL82: 301 | DM82: 301 | DN82: 301 | DO82: 301 | DP82: 301 | DQ82: 301
A83: DL Inter-MPDU Spacing Overhead Time/ frame (usec) | B83: =B40*$B$19*ROUNDUP(B51,0) -> 0 | C83: =C40*$B$19*ROUNDUP(C51,0) -> 0 | D83: 0 | E83: 0 | F83: 0 | G83: 0 | H83: 0 | I83: 0 | J83: 0 | K83: 0 | L83: 0 | M83: 0 | N83: 0 | O83: 0 | P83: 0 | Q83: 0 | R83: 0 | S83: 0 | T83: 0 | U83: 0 | V83: 0 | W83: 0 | X83: 0 | Y83: 0 | Z83: 0 | AA83: 0 | AB83: 0 | AC83: 0 | AD83: 0 | AE83: 0 | AF83: 0 | AG83: 0 | AH83: 0 | AI83: 0 | AJ83: 0 | AK83: 0 | AL83: 0 | AM83: 0 | AN83: 0 | AO83: 0 | AP83: 0 | AQ83: 0 | AR83: 0 | AS83: 0 | AT83: 0 | AU83: 0 | AV83: 0 | AW83: 0 | AX83: 0 | AY83: 0 | AZ83: 0 | BA83: 0 | BB83: 0 | BC83: 0 | BD83: 0 | BE83: 0 | BF83: 0 | BG83: 0 | BH83: 0 | BI83: 0 | BJ83: 0 | BK83: 0 | BL83: 0 | BM83: 0 | BN83: 0 | BO83: =BO40*$B$19*ROUNDUP(BO51,0) -> 0 | BP83: 0 | BQ83: 0 | BR83: 0 | BS83: 0 | BT83: 0 | BU83: 0 | BV83: 0 | BW83: 0 | BX83: 0 | BY83: 0 | BZ83: 0 | CA83: 0 | CB83: 0 | CC83: 0 | CD83: 0 | CE83: 0 | CF83: 0 | CG83: 0 | CH83: 0 | CI83: 0 | CJ83: 0 | CK83: 0 | CL83: 0 | CM83: 0 | CN83: 0 | CO83: 0 | CP83: 0 | CQ83: 0 | CR83: 0 | CS83: 0 | CT83: 0 | CU83: 0 | CV83: 0 | CW83: 0 | CX83: 0 | CY83: 0 | CZ83: 0 | DA83: 0 | DB83: 0 | DC83: 0 | DD83: 0 | DE83: 0 | DF83: 0 | DG83: 0 | DH83: 0 | DI83: 0 | DJ83: 0 | DK83: 0 | DL83: 0 | DM83: 0 | DN83: 0 | DO83: 0 | DP83: 0 | DQ83: 0
A84: DL Inter STA Transmission Overhead Time / frame (usec) | B84: =(B40-1)*$B$20 -> 0 | C84: =(C40-1)*$B$20 -> 8 | D84: 16 | E84: 24 | F84: 32 | G84: 40 | H84: 48 | I84: 56 | J84: 56 | K84: 56 | L84: 56 | M84: 56 | N84: 56 | O84: 56 | P84: 56 | Q84: 56 | R84: 56 | S84: 56 | T84: 56 | U84: 56 | V84: 56 | W84: 56 | X84: 56 | Y84: 56 | Z84: 56 | AA84: 56 | AB84: 56 | AC84: 56 | AD84: 56 | AE84: 56 | AF84: 56 | AG84: 56 | AH84: 56 | AI84: 56 | AJ84: 56 | AK84: 56 | AL84: 56 | AM84: 56 | AN84: 56 | AO84: 56 | AP84: 56 | AQ84: 56 | AR84: 56 | AS84: 56 | AT84: 56 | AU84: 56 | AV84: 56 | AW84: 56 | AX84: 56 | AY84: 56 | AZ84: 56 | BA84: 56 | BB84: 56 | BC84: 56 | BD84: 56 | BE84: 56 | BF84: 56 | BG84: 56 | BH84: 56 | BI84: 56 | BJ84: 56 | BK84: 56 | BL84: 56 | BM84: 56 | BN84: 56 | BO84: =(BO40-1)*$B$20 -> 56 | BP84: 56 | BQ84: 56 | BR84: 56 | BS84: 56 | BT84: 56 | BU84: 56 | BV84: 56 | BW84: 56 | BX84: 56 | BY84: 56 | BZ84: 56 | CA84: 56 | CB84: 56 | CC84: 56 | CD84: 56 | CE84: 56 | CF84: 56 | CG84: 56 | CH84: 56 | CI84: 56 | CJ84: 56 | CK84: 56 | CL84: 56 | CM84: 56 | CN84: 56 | CO84: 56 | CP84: 56 | CQ84: 56 | CR84: 56 | CS84: 56 | CT84: 56 | CU84: 56 | CV84: 56 | CW84: 56 | CX84: 56 | CY84: 56 | CZ84: 56 | DA84: 56 | DB84: 56 | DC84: 56 | DD84: 56 | DE84: 56 | DF84: 56 | DG84: 56 | DH84: 56 | DI84: 56 | DJ84: 56 | DK84: 56 | DL84: 56 | DM84: 56 | DN84: 56 | DO84: 56 | DP84: 56 | DQ84: 56
A85: DL MAC Management Overhead Time / frame (usec) | B85: =ROUND(B54*B41*$B$33,1) -> 59 | C85: =ROUND(C55*C41*$B$33,1) -> 54.1 | D85: 51.7 | E85: 49.2 | F85: 49.2 | G85: 44.3 | H85: 34.4 | I85: 39.4 | J85: 22.1 | K85: 22.1 | L85: 22.1 | M85: 22.1 | N85: 22.1 | O85: 22.1 | P85: 22.1 | Q85: 22.1 | R85: 22.1 | S85: 22.1 | T85: 22.1 | U85: 22.1 | V85: 22.1 | W85: 22.1 | X85: 22.1 | Y85: 22.1 | Z85: 22.1 | AA85: 22.1 | AB85: 22.1 | AC85: 22.1 | AD85: 22.1 | AE85: 22.1 | AF85: 22.1 | AG85: 22.1 | AH85: 22.1 | AI85: 22.1 | AJ85: 22.1 | AK85: 22.1 | AL85: 22.1 | AM85: 22.1 | AN85: 22.1 | AO85: 22.1 | AP85: 22.1 | AQ85: 22.1 | AR85: 22.1 | AS85: 22.1 | AT85: 22.1 | AU85: 22.1 | AV85: 22.1 | AW85: 22.1 | AX85: 22.1 | AY85: 22.1 | AZ85: 22.1 | BA85: 22.1 | BB85: 22.1 | BC85: 22.1 | BD85: 22.1 | BE85: 22.1 | BF85: 22.1 | BG85: 22.1 | BH85: 22.1 | BI85: 22.1 | BJ85: 22.1 | BK85: 22.1 | BL85: 22.1 | BM85: 22.1 | BN85: 22.1 | BO85: =ROUND(BO55*BO41*$B$33,1) -> 22.1 | BP85: 22.1 | BQ85: 22.1 | BR85: 22.1 | BS85: 22.1 | BT85: 22.1 | BU85: 22.1 | BV85: 22.1 | BW85: 22.1 | BX85: 22.1 | BY85: 22.1 | BZ85: 22.1 | CA85: 22.1 | CB85: 22.1 | CC85: 22.1 | CD85: 22.1 | CE85: 22.1 | CF85: 22.1 | CG85: 22.1 | CH85: 22.1 | CI85: 22.1 | CJ85: 22.1 | CK85: 22.1 | CL85: 22.1 | CM85: 22.1 | CN85: 22.1 | CO85: 22.1 | CP85: 22.1 | CQ85: 22.1 | CR85: 22.1 | CS85: 22.1 | CT85: 22.1 | CU85: 22.1 | CV85: 22.1 | CW85: 22.1 | CX85: 22.1 | CY85: 22.1 | CZ85: 22.1 | DA85: 22.1 | DB85: 22.1 | DC85: 22.1 | DD85: 22.1 | DE85: 22.1 | DF85: 22.1 | DG85: 22.1 | DH85: 22.1 | DI85: 22.1 | DJ85: 22.1 | DK85: 22.1 | DL85: 22.1 | DM85: 22.1 | DN85: 22.1 | DO85: 22.1 | DP85: 22.1 | DQ85: 22.1
A87: Total DL Overhead time / frame (usec) (w/o MAC OH) | B87: =Input!$B$54+SUM(B81:B84) -> 152 | C87: =Input!$B$54+SUM(C81:C84) -> 226 | D87: =Input!$B$54+SUM(D81:D84) -> 299 | E87: =Input!$B$54+SUM(E81:E84) -> 373 | F87: =Input!$B$54+SUM(F81:F84) -> 446 | G87: =Input!$B$54+SUM(G81:G84) -> 520 | H87: =Input!$B$54+SUM(H81:H84) -> 593 | I87: =Input!$B$54+SUM(I81:I84) -> 667 | J87: =Input!$B$54+SUM(J81:J84) -> 682 | K87: =Input!$B$54+SUM(K81:K84) -> 682 | L87: =Input!$B$54+SUM(L81:L84) -> 682 | M87: =Input!$B$54+SUM(M81:M84) -> 682 | N87: =Input!$B$54+SUM(N81:N84) -> 682 | O87: =Input!$B$54+SUM(O81:O84) -> 682 | P87: =Input!$B$54+SUM(P81:P84) -> 682 | Q87: =Input!$B$54+SUM(Q81:Q84) -> 682 | R87: =Input!$B$54+SUM(R81:R84) -> 682 | S87: =Input!$B$54+SUM(S81:S84) -> 682 | T87: =Input!$B$54+SUM(T81:T84) -> 682 | U87: =Input!$B$54+SUM(U81:U84) -> 682 | V87: =Input!$B$54+SUM(V81:V84) -> 682 | W87: =Input!$B$54+SUM(W81:W84) -> 682 | X87: =Input!$B$54+SUM(X81:X84) -> 682 | Y87: =Input!$B$54+SUM(Y81:Y84) -> 682 | Z87: =Input!$B$54+SUM(Z81:Z84) -> 682 | AA87: =Input!$B$54+SUM(AA81:AA84) -> 682 | AB87: =Input!$B$54+SUM(AB81:AB84) -> 682 | AC87: =Input!$B$54+SUM(AC81:AC84) -> 682 | AD87: =Input!$B$54+SUM(AD81:AD84) -> 682 | AE87: =Input!$B$54+SUM(AE81:AE84) -> 682 | AF87: =Input!$B$54+SUM(AF81:AF84) -> 682 | AG87: =Input!$B$54+SUM(AG81:AG84) -> 682 | AH87: =Input!$B$54+SUM(AH81:AH84) -> 682 | AI87: =Input!$B$54+SUM(AI81:AI84) -> 682 | AJ87: =Input!$B$54+SUM(AJ81:AJ84) -> 682 | AK87: =Input!$B$54+SUM(AK81:AK84) -> 682 | AL87: =Input!$B$54+SUM(AL81:AL84) -> 682 | AM87: =Input!$B$54+SUM(AM81:AM84) -> 682 | AN87: =Input!$B$54+SUM(AN81:AN84) -> 682 | AO87: =Input!$B$54+SUM(AO81:AO84) -> 682 | AP87: =Input!$B$54+SUM(AP81:AP84) -> 682 | AQ87: =Input!$B$54+SUM(AQ81:AQ84) -> 682 | AR87: =Input!$B$54+SUM(AR81:AR84) -> 682 | AS87: =Input!$B$54+SUM(AS81:AS84) -> 682 | AT87: =Input!$B$54+SUM(AT81:AT84) -> 682 | AU87: =Input!$B$54+SUM(AU81:AU84) -> 682 | AV87: =Input!$B$54+SUM(AV81:AV84) -> 682 | AW87: =Input!$B$54+SUM(AW81:AW84) -> 682 | AX87: =Input!$B$54+SUM(AX81:AX84) -> 682 | AY87: =Input!$B$54+SUM(AY81:AY84) -> 682 | AZ87: =Input!$B$54+SUM(AZ81:AZ84) -> 682 | BA87: =Input!$B$54+SUM(BA81:BA84) -> 682 | BB87: =Input!$B$54+SUM(BB81:BB84) -> 682 | BC87: =Input!$B$54+SUM(BC81:BC84) -> 682 | BD87: =Input!$B$54+SUM(BD81:BD84) -> 682 | BE87: =Input!$B$54+SUM(BE81:BE84) -> 682 | BF87: =Input!$B$54+SUM(BF81:BF84) -> 682 | BG87: =Input!$B$54+SUM(BG81:BG84) -> 682 | BH87: =Input!$B$54+SUM(BH81:BH84) -> 682 | BI87: =Input!$B$54+SUM(BI81:BI84) -> 682 | BJ87: =Input!$B$54+SUM(BJ81:BJ84) -> 682 | BK87: =Input!$B$54+SUM(BK81:BK84) -> 682 | BL87: =Input!$B$54+SUM(BL81:BL84) -> 682 | BM87: =Input!$B$54+SUM(BM81:BM84) -> 682 | BN87: =Input!$B$54+SUM(BN81:BN84) -> 682 | BO87: =Input!$B$54+SUM(BO81:BO84) -> 682 | BP87: =Input!$B$54+SUM(BP81:BP84) -> 682 | BQ87: =Input!$B$54+SUM(BQ81:BQ84) -> 682 | BR87: =Input!$B$54+SUM(BR81:BR84) -> 682 | BS87: =Input!$B$54+SUM(BS81:BS84) -> 682 | BT87: =Input!$B$54+SUM(BT81:BT84) -> 682 | BU87: =Input!$B$54+SUM(BU81:BU84) -> 682 | BV87: =Input!$B$54+SUM(BV81:BV84) -> 682 | BW87: =Input!$B$54+SUM(BW81:BW84) -> 682 | BX87: =Input!$B$54+SUM(BX81:BX84) -> 682 | BY87: =Input!$B$54+SUM(BY81:BY84) -> 682 | BZ87: =Input!$B$54+SUM(BZ81:BZ84) -> 682 | CA87: =Input!$B$54+SUM(CA81:CA84) -> 682 | CB87: =Input!$B$54+SUM(CB81:CB84) -> 682 | CC87: =Input!$B$54+SUM(CC81:CC84) -> 682 | CD87: =Input!$B$54+SUM(CD81:CD84) -> 682 | CE87: =Input!$B$54+SUM(CE81:CE84) -> 682 | CF87: =Input!$B$54+SUM(CF81:CF84) -> 682 | CG87: =Input!$B$54+SUM(CG81:CG84) -> 682 | CH87: =Input!$B$54+SUM(CH81:CH84) -> 682 | CI87: =Input!$B$54+SUM(CI81:CI84) -> 682 | CJ87: =Input!$B$54+SUM(CJ81:CJ84) -> 682 | CK87: =Input!$B$54+SUM(CK81:CK84) -> 682 | CL87: =Input!$B$54+SUM(CL81:CL84) -> 682 | CM87: =Input!$B$54+SUM(CM81:CM84) -> 682 | CN87: =Input!$B$54+SUM(CN81:CN84) -> 682 | CO87: =Input!$B$54+SUM(CO81:CO84) -> 682 | CP87: =Input!$B$54+SUM(CP81:CP84) -> 682 | CQ87: =Input!$B$54+SUM(CQ81:CQ84) -> 682 | CR87: =Input!$B$54+SUM(CR81:CR84) -> 682 | CS87: =Input!$B$54+SUM(CS81:CS84) -> 682 | CT87: =Input!$B$54+SUM(CT81:CT84) -> 682 | CU87: =Input!$B$54+SUM(CU81:CU84) -> 682 | CV87: =Input!$B$54+SUM(CV81:CV84) -> 682 | CW87: =Input!$B$54+SUM(CW81:CW84) -> 682 | CX87: =Input!$B$54+SUM(CX81:CX84) -> 682 | CY87: =Input!$B$54+SUM(CY81:CY84) -> 682 | CZ87: =Input!$B$54+SUM(CZ81:CZ84) -> 682 | DA87: =Input!$B$54+SUM(DA81:DA84) -> 682 | DB87: =Input!$B$54+SUM(DB81:DB84) -> 682 | DC87: =Input!$B$54+SUM(DC81:DC84) -> 682 | DD87: =Input!$B$54+SUM(DD81:DD84) -> 682 | DE87: =Input!$B$54+SUM(DE81:DE84) -> 682 | DF87: =Input!$B$54+SUM(DF81:DF84) -> 682 | DG87: =Input!$B$54+SUM(DG81:DG84) -> 682 | DH87: =Input!$B$54+SUM(DH81:DH84) -> 682 | DI87: =Input!$B$54+SUM(DI81:DI84) -> 682 | DJ87: =Input!$B$54+SUM(DJ81:DJ84) -> 682 | DK87: =Input!$B$54+SUM(DK81:DK84) -> 682 | DL87: =Input!$B$54+SUM(DL81:DL84) -> 682 | DM87: =Input!$B$54+SUM(DM81:DM84) -> 682 | DN87: =Input!$B$54+SUM(DN81:DN84) -> 682 | DO87: =Input!$B$54+SUM(DO81:DO84) -> 682 | DP87: =Input!$B$54+SUM(DP81:DP84) -> 682 | DQ87: =Input!$B$54+SUM(DQ81:DQ84) -> 682
A89: UL Preamble Overhead time / frame (usec) | B89: =B41*$B$8 -> 36 | C89: =C41*$B$8 -> 72 | D89: 108 | E89: 144 | F89: 180 | G89: 216 | H89: 252 | I89: 288 | J89: 324 | K89: 324 | L89: 324 | M89: 324 | N89: 324 | O89: 324 | P89: 324 | Q89: 324 | R89: 324 | S89: 324 | T89: 324 | U89: 324 | V89: 324 | W89: 324 | X89: 324 | Y89: 324 | Z89: 324 | AA89: 324 | AB89: 324 | AC89: 324 | AD89: 324 | AE89: 324 | AF89: 324 | AG89: 324 | AH89: 324 | AI89: 324 | AJ89: 324 | AK89: 324 | AL89: 324 | AM89: 324 | AN89: 324 | AO89: 324 | AP89: 324 | AQ89: 324 | AR89: 324 | AS89: 324 | AT89: 324 | AU89: 324 | AV89: 324 | AW89: 324 | AX89: 324 | AY89: 324 | AZ89: 324 | BA89: 324 | BB89: 324 | BC89: 324 | BD89: 324 | BE89: 324 | BF89: 324 | BG89: 324 | BH89: 324 | BI89: 324 | BJ89: 324 | BK89: 324 | BL89: 324 | BM89: 324 | BN89: 324 | BO89: =BO41*$B$8 -> 324 | BP89: 324 | BQ89: 324 | BR89: 324 | BS89: 324 | BT89: 324 | BU89: 324 | BV89: 324 | BW89: 324 | BX89: 324 | BY89: 324 | BZ89: 324 | CA89: 324 | CB89: 324 | CC89: 324 | CD89: 324 | CE89: 324 | CF89: 324 | CG89: 324 | CH89: 324 | CI89: 324 | CJ89: 324 | CK89: 324 | CL89: 324 | CM89: 324 | CN89: 324 | CO89: 324 | CP89: 324 | CQ89: 324 | CR89: 324 | CS89: 324 | CT89: 324 | CU89: 324 | CV89: 324 | CW89: 324 | CX89: 324 | CY89: 324 | CZ89: 324 | DA89: 324 | DB89: 324 | DC89: 324 | DD89: 324 | DE89: 324 | DF89: 324 | DG89: 324 | DH89: 324 | DI89: 324 | DJ89: 324 | DK89: 324 | DL89: 324 | DM89: 324 | DN89: 324 | DO89: 324 | DP89: 324 | DQ89: 324
A90: UL Inter-STA Transmission Overhead Time / frame (usec) | B90: =(B41-1)*$B$21 -> 0 | C90: =(C41-1)*$B$21 -> 10 | D90: 20 | E90: 30 | F90: 40 | G90: 50 | H90: 60 | I90: 70 | J90: 80 | K90: 80 | L90: 80 | M90: 80 | N90: 80 | O90: 80 | P90: 80 | Q90: 80 | R90: 80 | S90: 80 | T90: 80 | U90: 80 | V90: 80 | W90: 80 | X90: 80 | Y90: 80 | Z90: 80 | AA90: 80 | AB90: 80 | AC90: 80 | AD90: 80 | AE90: 80 | AF90: 80 | AG90: 80 | AH90: 80 | AI90: 80 | AJ90: 80 | AK90: 80 | AL90: 80 | AM90: 80 | AN90: 80 | AO90: 80 | AP90: 80 | AQ90: 80 | AR90: 80 | AS90: 80 | AT90: 80 | AU90: 80 | AV90: 80 | AW90: 80 | AX90: 80 | AY90: 80 | AZ90: 80 | BA90: 80 | BB90: 80 | BC90: 80 | BD90: 80 | BE90: 80 | BF90: 80 | BG90: 80 | BH90: 80 | BI90: 80 | BJ90: 80 | BK90: 80 | BL90: 80 | BM90: 80 | BN90: 80 | BO90: =(BO41-1)*$B$21 -> 80 | BP90: 80 | BQ90: 80 | BR90: 80 | BS90: 80 | BT90: 80 | BU90: 80 | BV90: 80 | BW90: 80 | BX90: 80 | BY90: 80 | BZ90: 80 | CA90: 80 | CB90: 80 | CC90: 80 | CD90: 80 | CE90: 80 | CF90: 80 | CG90: 80 | CH90: 80 | CI90: 80 | CJ90: 80 | CK90: 80 | CL90: 80 | CM90: 80 | CN90: 80 | CO90: 80 | CP90: 80 | CQ90: 80 | CR90: 80 | CS90: 80 | CT90: 80 | CU90: 80 | CV90: 80 | CW90: 80 | CX90: 80 | CY90: 80 | CZ90: 80 | DA90: 80 | DB90: 80 | DC90: 80 | DD90: 80 | DE90: 80 | DF90: 80 | DG90: 80 | DH90: 80 | DI90: 80 | DJ90: 80 | DK90: 80 | DL90: 80 | DM90: 80 | DN90: 80 | DO90: 80 | DP90: 80 | DQ90: 80
A91: UL Inter-MPDU Spacing Overhead Time/ frame (usec) | B91: =B41*ROUNDUP(B54,0)*$B$18 -> 0 | C91: =C41*ROUNDUP(C55,0)*$B$18 -> 0 | D91: 0 | E91: 0 | F91: 0 | G91: 0 | H91: 0 | I91: 0 | J91: 0 | K91: 0 | L91: 0 | M91: 0 | N91: 0 | O91: 0 | P91: 0 | Q91: 0 | R91: 0 | S91: 0 | T91: 0 | U91: 0 | V91: 0 | W91: 0 | X91: 0 | Y91: 0 | Z91: 0 | AA91: 0 | AB91: 0 | AC91: 0 | AD91: 0 | AE91: 0 | AF91: 0 | AG91: 0 | AH91: 0 | AI91: 0 | AJ91: 0 | AK91: 0 | AL91: 0 | AM91: 0 | AN91: 0 | AO91: 0 | AP91: 0 | AQ91: 0 | AR91: 0 | AS91: 0 | AT91: 0 | AU91: 0 | AV91: 0 | AW91: 0 | AX91: 0 | AY91: 0 | AZ91: 0 | BA91: 0 | BB91: 0 | BC91: 0 | BD91: 0 | BE91: 0 | BF91: 0 | BG91: 0 | BH91: 0 | BI91: 0 | BJ91: 0 | BK91: 0 | BL91: 0 | BM91: 0 | BN91: 0 | BO91: =BO41*ROUNDUP(BO55,0)*$B$18 -> 0 | BP91: 0 | BQ91: 0 | BR91: 0 | BS91: 0 | BT91: 0 | BU91: 0 | BV91: 0 | BW91: 0 | BX91: 0 | BY91: 0 | BZ91: 0 | CA91: 0 | CB91: 0 | CC91: 0 | CD91: 0 | CE91: 0 | CF91: 0 | CG91: 0 | CH91: 0 | CI91: 0 | CJ91: 0 | CK91: 0 | CL91: 0 | CM91: 0 | CN91: 0 | CO91: 0 | CP91: 0 | CQ91: 0 | CR91: 0 | CS91: 0 | CT91: 0 | CU91: 0 | CV91: 0 | CW91: 0 | CX91: 0 | CY91: 0 | CZ91: 0 | DA91: 0 | DB91: 0 | DC91: 0 | DD91: 0 | DE91: 0 | DF91: 0 | DG91: 0 | DH91: 0 | DI91: 0 | DJ91: 0 | DK91: 0 | DL91: 0 | DM91: 0 | DN91: 0 | DO91: 0 | DP91: 0 | DQ91: 0
A92: UL MAC Management Overhead Time / frame (usec) | B92: =ROUND(B41*B54*$B$33,1) -> 59 | C92: =ROUND(C41*C55*$B$33,1) -> 54.1 | D92: 51.7 | E92: 49.2 | F92: 49.2 | G92: 44.3 | H92: 34.4 | I92: 39.4 | J92: 22.1 | K92: 22.1 | L92: 22.1 | M92: 22.1 | N92: 22.1 | O92: 22.1 | P92: 22.1 | Q92: 22.1 | R92: 22.1 | S92: 22.1 | T92: 22.1 | U92: 22.1 | V92: 22.1 | W92: 22.1 | X92: 22.1 | Y92: 22.1 | Z92: 22.1 | AA92: 22.1 | AB92: 22.1 | AC92: 22.1 | AD92: 22.1 | AE92: 22.1 | AF92: 22.1 | AG92: 22.1 | AH92: 22.1 | AI92: 22.1 | AJ92: 22.1 | AK92: 22.1 | AL92: 22.1 | AM92: 22.1 | AN92: 22.1 | AO92: 22.1 | AP92: 22.1 | AQ92: 22.1 | AR92: 22.1 | AS92: 22.1 | AT92: 22.1 | AU92: 22.1 | AV92: 22.1 | AW92: 22.1 | AX92: 22.1 | AY92: 22.1 | AZ92: 22.1 | BA92: 22.1 | BB92: 22.1 | BC92: 22.1 | BD92: 22.1 | BE92: 22.1 | BF92: 22.1 | BG92: 22.1 | BH92: 22.1 | BI92: 22.1 | BJ92: 22.1 | BK92: 22.1 | BL92: 22.1 | BM92: 22.1 | BN92: 22.1 | BO92: =ROUND(BO41*BO55*$B$33,1) -> 22.1 | BP92: 22.1 | BQ92: 22.1 | BR92: 22.1 | BS92: 22.1 | BT92: 22.1 | BU92: 22.1 | BV92: 22.1 | BW92: 22.1 | BX92: 22.1 | BY92: 22.1 | BZ92: 22.1 | CA92: 22.1 | CB92: 22.1 | CC92: 22.1 | CD92: 22.1 | CE92: 22.1 | CF92: 22.1 | CG92: 22.1 | CH92: 22.1 | CI92: 22.1 | CJ92: 22.1 | CK92: 22.1 | CL92: 22.1 | CM92: 22.1 | CN92: 22.1 | CO92: 22.1 | CP92: 22.1 | CQ92: 22.1 | CR92: 22.1 | CS92: 22.1 | CT92: 22.1 | CU92: 22.1 | CV92: 22.1 | CW92: 22.1 | CX92: 22.1 | CY92: 22.1 | CZ92: 22.1 | DA92: 22.1 | DB92: 22.1 | DC92: 22.1 | DD92: 22.1 | DE92: 22.1 | DF92: 22.1 | DG92: 22.1 | DH92: 22.1 | DI92: 22.1 | DJ92: 22.1 | DK92: 22.1 | DL92: 22.1 | DM92: 22.1 | DN92: 22.1 | DO92: 22.1 | DP92: 22.1 | DQ92: 22.1
A94: UL Overhead time / frame (usec) (w/o MAC OH) | B94: =Input!$B$53+SUM(B89:B91) -> 127 | C94: =Input!$B$53+SUM(C89:C91) -> 173 | D94: =Input!$B$53+SUM(D89:D91) -> 219 | E94: =Input!$B$53+SUM(E89:E91) -> 265 | F94: =Input!$B$53+SUM(F89:F91) -> 311 | G94: =Input!$B$53+SUM(G89:G91) -> 357 | H94: =Input!$B$53+SUM(H89:H91) -> 403 | I94: =Input!$B$53+SUM(I89:I91) -> 449 | J94: =Input!$B$53+SUM(J89:J91) -> 495 | K94: =Input!$B$53+SUM(K89:K91) -> 495 | L94: =Input!$B$53+SUM(L89:L91) -> 495 | M94: =Input!$B$53+SUM(M89:M91) -> 495 | N94: =Input!$B$53+SUM(N89:N91) -> 495 | O94: =Input!$B$53+SUM(O89:O91) -> 495 | P94: =Input!$B$53+SUM(P89:P91) -> 495 | Q94: =Input!$B$53+SUM(Q89:Q91) -> 495 | R94: =Input!$B$53+SUM(R89:R91) -> 495 | S94: =Input!$B$53+SUM(S89:S91) -> 495 | T94: =Input!$B$53+SUM(T89:T91) -> 495 | U94: =Input!$B$53+SUM(U89:U91) -> 495 | V94: =Input!$B$53+SUM(V89:V91) -> 495 | W94: =Input!$B$53+SUM(W89:W91) -> 495 | X94: =Input!$B$53+SUM(X89:X91) -> 495 | Y94: =Input!$B$53+SUM(Y89:Y91) -> 495 | Z94: =Input!$B$53+SUM(Z89:Z91) -> 495 | AA94: =Input!$B$53+SUM(AA89:AA91) -> 495 | AB94: =Input!$B$53+SUM(AB89:AB91) -> 495 | AC94: =Input!$B$53+SUM(AC89:AC91) -> 495 | AD94: =Input!$B$53+SUM(AD89:AD91) -> 495 | AE94: =Input!$B$53+SUM(AE89:AE91) -> 495 | AF94: =Input!$B$53+SUM(AF89:AF91) -> 495 | AG94: =Input!$B$53+SUM(AG89:AG91) -> 495 | AH94: =Input!$B$53+SUM(AH89:AH91) -> 495 | AI94: =Input!$B$53+SUM(AI89:AI91) -> 495 | AJ94: =Input!$B$53+SUM(AJ89:AJ91) -> 495 | AK94: =Input!$B$53+SUM(AK89:AK91) -> 495 | AL94: =Input!$B$53+SUM(AL89:AL91) -> 495 | AM94: =Input!$B$53+SUM(AM89:AM91) -> 495 | AN94: =Input!$B$53+SUM(AN89:AN91) -> 495 | AO94: =Input!$B$53+SUM(AO89:AO91) -> 495 | AP94: =Input!$B$53+SUM(AP89:AP91) -> 495 | AQ94: =Input!$B$53+SUM(AQ89:AQ91) -> 495 | AR94: =Input!$B$53+SUM(AR89:AR91) -> 495 | AS94: =Input!$B$53+SUM(AS89:AS91) -> 495 | AT94: =Input!$B$53+SUM(AT89:AT91) -> 495 | AU94: =Input!$B$53+SUM(AU89:AU91) -> 495 | AV94: =Input!$B$53+SUM(AV89:AV91) -> 495 | AW94: =Input!$B$53+SUM(AW89:AW91) -> 495 | AX94: =Input!$B$53+SUM(AX89:AX91) -> 495 | AY94: =Input!$B$53+SUM(AY89:AY91) -> 495 | AZ94: =Input!$B$53+SUM(AZ89:AZ91) -> 495 | BA94: =Input!$B$53+SUM(BA89:BA91) -> 495 | BB94: =Input!$B$53+SUM(BB89:BB91) -> 495 | BC94: =Input!$B$53+SUM(BC89:BC91) -> 495 | BD94: =Input!$B$53+SUM(BD89:BD91) -> 495 | BE94: =Input!$B$53+SUM(BE89:BE91) -> 495 | BF94: =Input!$B$53+SUM(BF89:BF91) -> 495 | BG94: =Input!$B$53+SUM(BG89:BG91) -> 495 | BH94: =Input!$B$53+SUM(BH89:BH91) -> 495 | BI94: =Input!$B$53+SUM(BI89:BI91) -> 495 | BJ94: =Input!$B$53+SUM(BJ89:BJ91) -> 495 | BK94: =Input!$B$53+SUM(BK89:BK91) -> 495 | BL94: =Input!$B$53+SUM(BL89:BL91) -> 495 | BM94: =Input!$B$53+SUM(BM89:BM91) -> 495 | BN94: =Input!$B$53+SUM(BN89:BN91) -> 495 | BO94: =Input!$B$53+SUM(BO89:BO91) -> 495 | BP94: =Input!$B$53+SUM(BP89:BP91) -> 495 | BQ94: =Input!$B$53+SUM(BQ89:BQ91) -> 495 | BR94: =Input!$B$53+SUM(BR89:BR91) -> 495 | BS94: =Input!$B$53+SUM(BS89:BS91) -> 495 | BT94: =Input!$B$53+SUM(BT89:BT91) -> 495 | BU94: =Input!$B$53+SUM(BU89:BU91) -> 495 | BV94: =Input!$B$53+SUM(BV89:BV91) -> 495 | BW94: =Input!$B$53+SUM(BW89:BW91) -> 495 | BX94: =Input!$B$53+SUM(BX89:BX91) -> 495 | BY94: =Input!$B$53+SUM(BY89:BY91) -> 495 | BZ94: =Input!$B$53+SUM(BZ89:BZ91) -> 495 | CA94: =Input!$B$53+SUM(CA89:CA91) -> 495 | CB94: =Input!$B$53+SUM(CB89:CB91) -> 495 | CC94: =Input!$B$53+SUM(CC89:CC91) -> 495 | CD94: =Input!$B$53+SUM(CD89:CD91) -> 495 | CE94: =Input!$B$53+SUM(CE89:CE91) -> 495 | CF94: =Input!$B$53+SUM(CF89:CF91) -> 495 | CG94: =Input!$B$53+SUM(CG89:CG91) -> 495 | CH94: =Input!$B$53+SUM(CH89:CH91) -> 495 | CI94: =Input!$B$53+SUM(CI89:CI91) -> 495 | CJ94: =Input!$B$53+SUM(CJ89:CJ91) -> 495 | CK94: =Input!$B$53+SUM(CK89:CK91) -> 495 | CL94: =Input!$B$53+SUM(CL89:CL91) -> 495 | CM94: =Input!$B$53+SUM(CM89:CM91) -> 495 | CN94: =Input!$B$53+SUM(CN89:CN91) -> 495 | CO94: =Input!$B$53+SUM(CO89:CO91) -> 495 | CP94: =Input!$B$53+SUM(CP89:CP91) -> 495 | CQ94: =Input!$B$53+SUM(CQ89:CQ91) -> 495 | CR94: =Input!$B$53+SUM(CR89:CR91) -> 495 | CS94: =Input!$B$53+SUM(CS89:CS91) -> 495 | CT94: =Input!$B$53+SUM(CT89:CT91) -> 495 | CU94: =Input!$B$53+SUM(CU89:CU91) -> 495 | CV94: =Input!$B$53+SUM(CV89:CV91) -> 495 | CW94: =Input!$B$53+SUM(CW89:CW91) -> 495 | CX94: =Input!$B$53+SUM(CX89:CX91) -> 495 | CY94: =Input!$B$53+SUM(CY89:CY91) -> 495 | CZ94: =Input!$B$53+SUM(CZ89:CZ91) -> 495 | DA94: =Input!$B$53+SUM(DA89:DA91) -> 495 | DB94: =Input!$B$53+SUM(DB89:DB91) -> 495 | DC94: =Input!$B$53+SUM(DC89:DC91) -> 495 | DD94: =Input!$B$53+SUM(DD89:DD91) -> 495 | DE94: =Input!$B$53+SUM(DE89:DE91) -> 495 | DF94: =Input!$B$53+SUM(DF89:DF91) -> 495 | DG94: =Input!$B$53+SUM(DG89:DG91) -> 495 | DH94: =Input!$B$53+SUM(DH89:DH91) -> 495 | DI94: =Input!$B$53+SUM(DI89:DI91) -> 495 | DJ94: =Input!$B$53+SUM(DJ89:DJ91) -> 495 | DK94: =Input!$B$53+SUM(DK89:DK91) -> 495 | DL94: =Input!$B$53+SUM(DL89:DL91) -> 495 | DM94: =Input!$B$53+SUM(DM89:DM91) -> 495 | DN94: =Input!$B$53+SUM(DN89:DN91) -> 495 | DO94: =Input!$B$53+SUM(DO89:DO91) -> 495 | DP94: =Input!$B$53+SUM(DP89:DP91) -> 495 | DQ94: =Input!$B$53+SUM(DQ89:DQ91) -> 495
A96: Total Overhead time / frame (usec) | B96: =B87+B94 -> 279 | C96: =C87+C94 -> 399 | D96: 518 | E96: 638 | F96: 757 | G96: 877 | H96: 996 | I96: 1116 | J96: 1177 | K96: 1177 | L96: 1177 | M96: 1177 | N96: 1177 | O96: 1177 | P96: 1177 | Q96: 1177 | R96: 1177 | S96: 1177 | T96: 1177 | U96: 1177 | V96: 1177 | W96: 1177 | X96: 1177 | Y96: 1177 | Z96: 1177 | AA96: 1177 | AB96: 1177 | AC96: 1177 | AD96: 1177 | AE96: 1177 | AF96: 1177 | AG96: 1177 | AH96: 1177 | AI96: 1177 | AJ96: 1177 | AK96: 1177 | AL96: 1177 | AM96: 1177 | AN96: 1177 | AO96: 1177 | AP96: 1177 | AQ96: 1177 | AR96: 1177 | AS96: 1177 | AT96: 1177 | AU96: 1177 | AV96: 1177 | AW96: 1177 | AX96: 1177 | AY96: 1177 | AZ96: 1177 | BA96: 1177 | BB96: 1177 | BC96: 1177 | BD96: 1177 | BE96: 1177 | BF96: 1177 | BG96: 1177 | BH96: 1177 | BI96: 1177 | BJ96: 1177 | BK96: 1177 | BL96: 1177 | BM96: 1177 | BN96: 1177 | BO96: =BO87+BO94 -> 1177 | BP96: 1177 | BQ96: 1177 | BR96: 1177 | BS96: 1177 | BT96: 1177 | BU96: 1177 | BV96: 1177 | BW96: 1177 | BX96: 1177 | BY96: 1177 | BZ96: 1177 | CA96: 1177 | CB96: 1177 | CC96: 1177 | CD96: 1177 | CE96: 1177 | CF96: 1177 | CG96: 1177 | CH96: 1177 | CI96: 1177 | CJ96: 1177 | CK96: 1177 | CL96: 1177 | CM96: 1177 | CN96: 1177 | CO96: 1177 | CP96: 1177 | CQ96: 1177 | CR96: 1177 | CS96: 1177 | CT96: 1177 | CU96: 1177 | CV96: 1177 | CW96: 1177 | CX96: 1177 | CY96: 1177 | CZ96: 1177 | DA96: 1177 | DB96: 1177 | DC96: 1177 | DD96: 1177 | DE96: 1177 | DF96: 1177 | DG96: 1177 | DH96: 1177 | DI96: 1177 | DJ96: 1177 | DK96: 1177 | DL96: 1177 | DM96: 1177 | DN96: 1177 | DO96: 1177 | DP96: 1177 | DQ96: 1177
A97: % Overhead Time | B97: =B96/1000/$B$1 -> 0.0558 | C97: =C96/1000/$B$1 -> 0.0798 | D97: 0.1036 | E97: 0.1276 | F97: 0.1514 | G97: 0.1754 | H97: 0.1992 | I97: 0.2232 | J97: 0.2354 | K97: 0.2354 | L97: 0.2354 | M97: 0.2354 | N97: 0.2354 | O97: 0.2354 | P97: 0.2354 | Q97: 0.2354 | R97: 0.2354 | S97: 0.2354 | T97: 0.2354 | U97: 0.2354 | V97: 0.2354 | W97: 0.2354 | X97: 0.2354 | Y97: 0.2354 | Z97: 0.2354 | AA97: 0.2354 | AB97: 0.2354 | AC97: 0.2354 | AD97: 0.2354 | AE97: 0.2354 | AF97: 0.2354 | AG97: 0.2354 | AH97: 0.2354 | AI97: 0.2354 | AJ97: 0.2354 | AK97: 0.2354 | AL97: 0.2354 | AM97: 0.2354 | AN97: 0.2354 | AO97: 0.2354 | AP97: 0.2354 | AQ97: 0.2354 | AR97: 0.2354 | AS97: 0.2354 | AT97: 0.2354 | AU97: 0.2354 | AV97: 0.2354 | AW97: 0.2354 | AX97: 0.2354 | AY97: 0.2354 | AZ97: 0.2354 | BA97: 0.2354 | BB97: 0.2354 | BC97: 0.2354 | BD97: 0.2354 | BE97: 0.2354 | BF97: 0.2354 | BG97: 0.2354 | BH97: 0.2354 | BI97: 0.2354 | BJ97: 0.2354 | BK97: 0.2354 | BL97: 0.2354 | BM97: 0.2354 | BN97: 0.2354 | BO97: =BO96/1000/$B$1 -> 0.2354 | BP97: 0.2354 | BQ97: 0.2354 | BR97: 0.2354 | BS97: 0.2354 | BT97: 0.2354 | BU97: 0.2354 | BV97: 0.2354 | BW97: 0.2354 | BX97: 0.2354 | BY97: 0.2354 | BZ97: 0.2354 | CA97: 0.2354 | CB97: 0.2354 | CC97: 0.2354 | CD97: 0.2354 | CE97: 0.2354 | CF97: 0.2354 | CG97: 0.2354 | CH97: 0.2354 | CI97: 0.2354 | CJ97: 0.2354 | CK97: 0.2354 | CL97: 0.2354 | CM97: 0.2354 | CN97: 0.2354 | CO97: 0.2354 | CP97: 0.2354 | CQ97: 0.2354 | CR97: 0.2354 | CS97: 0.2354 | CT97: 0.2354 | CU97: 0.2354 | CV97: 0.2354 | CW97: 0.2354 | CX97: 0.2354 | CY97: 0.2354 | CZ97: 0.2354 | DA97: 0.2354 | DB97: 0.2354 | DC97: 0.2354 | DD97: 0.2354 | DE97: 0.2354 | DF97: 0.2354 | DG97: 0.2354 | DH97: 0.2354 | DI97: 0.2354 | DJ97: 0.2354 | DK97: 0.2354 | DL97: 0.2354 | DM97: 0.2354 | DN97: 0.2354 | DO97: 0.2354 | DP97: 0.2354 | DQ97: 0.2354
A99: DL Overhead Time / Sec (msec) | B99: =B87*$B$9/1000 -> 30.4 | C99: =C87*$B$9/1000 -> 45.2 | D99: 59.8 | E99: 74.6 | F99: 89.2 | G99: 104 | H99: 118.6 | I99: 133.4 | J99: 136.4 | K99: 136.4 | L99: 136.4 | M99: 136.4 | N99: 136.4 | O99: 136.4 | P99: 136.4 | Q99: 136.4 | R99: 136.4 | S99: 136.4 | T99: 136.4 | U99: 136.4 | V99: 136.4 | W99: 136.4 | X99: 136.4 | Y99: 136.4 | Z99: 136.4 | AA99: 136.4 | AB99: 136.4 | AC99: 136.4 | AD99: 136.4 | AE99: 136.4 | AF99: 136.4 | AG99: 136.4 | AH99: 136.4 | AI99: 136.4 | AJ99: 136.4 | AK99: 136.4 | AL99: 136.4 | AM99: 136.4 | AN99: 136.4 | AO99: 136.4 | AP99: 136.4 | AQ99: 136.4 | AR99: 136.4 | AS99: 136.4 | AT99: 136.4 | AU99: 136.4 | AV99: 136.4 | AW99: 136.4 | AX99: 136.4 | AY99: 136.4 | AZ99: 136.4 | BA99: 136.4 | BB99: 136.4 | BC99: 136.4 | BD99: 136.4 | BE99: 136.4 | BF99: 136.4 | BG99: 136.4 | BH99: 136.4 | BI99: 136.4 | BJ99: 136.4 | BK99: 136.4 | BL99: 136.4 | BM99: 136.4 | BN99: 136.4 | BO99: =BO87*$B$9/1000 -> 136.4 | BP99: 136.4 | BQ99: 136.4 | BR99: 136.4 | BS99: 136.4 | BT99: 136.4 | BU99: 136.4 | BV99: 136.4 | BW99: 136.4 | BX99: 136.4 | BY99: 136.4 | BZ99: 136.4 | CA99: 136.4 | CB99: 136.4 | CC99: 136.4 | CD99: 136.4 | CE99: 136.4 | CF99: 136.4 | CG99: 136.4 | CH99: 136.4 | CI99: 136.4 | CJ99: 136.4 | CK99: 136.4 | CL99: 136.4 | CM99: 136.4 | CN99: 136.4 | CO99: 136.4 | CP99: 136.4 | CQ99: 136.4 | CR99: 136.4 | CS99: 136.4 | CT99: 136.4 | CU99: 136.4 | CV99: 136.4 | CW99: 136.4 | CX99: 136.4 | CY99: 136.4 | CZ99: 136.4 | DA99: 136.4 | DB99: 136.4 | DC99: 136.4 | DD99: 136.4 | DE99: 136.4 | DF99: 136.4 | DG99: 136.4 | DH99: 136.4 | DI99: 136.4 | DJ99: 136.4 | DK99: 136.4 | DL99: 136.4 | DM99: 136.4 | DN99: 136.4 | DO99: 136.4 | DP99: 136.4 | DQ99: 136.4
A100: UL Overhead Time / Sec (msec) | B100: =B94*$B$9/1000 -> 25.4 | C100: =C94*$B$9/1000 -> 34.6 | D100: 43.8 | E100: 53 | F100: 62.2 | G100: 71.4 | H100: 80.6 | I100: 89.8 | J100: 99 | K100: 99 | L100: 99 | M100: 99 | N100: 99 | O100: 99 | P100: 99 | Q100: 99 | R100: 99 | S100: 99 | T100: 99 | U100: 99 | V100: 99 | W100: 99 | X100: 99 | Y100: 99 | Z100: 99 | AA100: 99 | AB100: 99 | AC100: 99 | AD100: 99 | AE100: 99 | AF100: 99 | AG100: 99 | AH100: 99 | AI100: 99 | AJ100: 99 | AK100: 99 | AL100: 99 | AM100: 99 | AN100: 99 | AO100: 99 | AP100: 99 | AQ100: 99 | AR100: 99 | AS100: 99 | AT100: 99 | AU100: 99 | AV100: 99 | AW100: 99 | AX100: 99 | AY100: 99 | AZ100: 99 | BA100: 99 | BB100: 99 | BC100: 99 | BD100: 99 | BE100: 99 | BF100: 99 | BG100: 99 | BH100: 99 | BI100: 99 | BJ100: 99 | BK100: 99 | BL100: 99 | BM100: 99 | BN100: 99 | BO100: =BO94*$B$9/1000 -> 99 | BP100: 99 | BQ100: 99 | BR100: 99 | BS100: 99 | BT100: 99 | BU100: 99 | BV100: 99 | BW100: 99 | BX100: 99 | BY100: 99 | BZ100: 99 | CA100: 99 | CB100: 99 | CC100: 99 | CD100: 99 | CE100: 99 | CF100: 99 | CG100: 99 | CH100: 99 | CI100: 99 | CJ100: 99 | CK100: 99 | CL100: 99 | CM100: 99 | CN100: 99 | CO100: 99 | CP100: 99 | CQ100: 99 | CR100: 99 | CS100: 99 | CT100: 99 | CU100: 99 | CV100: 99 | CW100: 99 | CX100: 99 | CY100: 99 | CZ100: 99 | DA100: 99 | DB100: 99 | DC100: 99 | DD100: 99 | DE100: 99 | DF100: 99 | DG100: 99 | DH100: 99 | DI100: 99 | DJ100: 99 | DK100: 99 | DL100: 99 | DM100: 99 | DN100: 99 | DO100: 99 | DP100: 99 | DQ100: 99
A101: Total Overhead time / Sec (msec) | B101: =B99+B100 -> 55.8 | C101: =C99+C100 -> 79.8 | D101: 103.6 | E101: 127.6 | F101: 151.4 | G101: 175.4 | H101: 199.2 | I101: 223.2 | J101: 235.4 | K101: 235.4 | L101: 235.4 | M101: 235.4 | N101: 235.4 | O101: 235.4 | P101: 235.4 | Q101: 235.4 | R101: 235.4 | S101: 235.4 | T101: 235.4 | U101: 235.4 | V101: 235.4 | W101: 235.4 | X101: 235.4 | Y101: 235.4 | Z101: 235.4 | AA101: 235.4 | AB101: 235.4 | AC101: 235.4 | AD101: 235.4 | AE101: 235.4 | AF101: 235.4 | AG101: 235.4 | AH101: 235.4 | AI101: 235.4 | AJ101: 235.4 | AK101: 235.4 | AL101: 235.4 | AM101: 235.4 | AN101: 235.4 | AO101: 235.4 | AP101: 235.4 | AQ101: 235.4 | AR101: 235.4 | AS101: 235.4 | AT101: 235.4 | AU101: 235.4 | AV101: 235.4 | AW101: 235.4 | AX101: 235.4 | AY101: 235.4 | AZ101: 235.4 | BA101: 235.4 | BB101: 235.4 | BC101: 235.4 | BD101: 235.4 | BE101: 235.4 | BF101: 235.4 | BG101: 235.4 | BH101: 235.4 | BI101: 235.4 | BJ101: 235.4 | BK101: 235.4 | BL101: 235.4 | BM101: 235.4 | BN101: 235.4 | BO101: =BO99+BO100 -> 235.4 | BP101: 235.4 | BQ101: 235.4 | BR101: 235.4 | BS101: 235.4 | BT101: 235.4 | BU101: 235.4 | BV101: 235.4 | BW101: 235.4 | BX101: 235.4 | BY101: 235.4 | BZ101: 235.4 | CA101: 235.4 | CB101: 235.4 | CC101: 235.4 | CD101: 235.4 | CE101: 235.4 | CF101: 235.4 | CG101: 235.4 | CH101: 235.4 | CI101: 235.4 | CJ101: 235.4 | CK101: 235.4 | CL101: 235.4 | CM101: 235.4 | CN101: 235.4 | CO101: 235.4 | CP101: 235.4 | CQ101: 235.4 | CR101: 235.4 | CS101: 235.4 | CT101: 235.4 | CU101: 235.4 | CV101: 235.4 | CW101: 235.4 | CX101: 235.4 | CY101: 235.4 | CZ101: 235.4 | DA101: 235.4 | DB101: 235.4 | DC101: 235.4 | DD101: 235.4 | DE101: 235.4 | DF101: 235.4 | DG101: 235.4 | DH101: 235.4 | DI101: 235.4 | DJ101: 235.4 | DK101: 235.4 | DL101: 235.4 | DM101: 235.4 | DN101: 235.4 | DO101: 235.4 | DP101: 235.4 | DQ101: 235.4
A102: % Overhead Time/Sec | B102: =B101/1000 -> 0.0558 | C102: =C101/1000 -> 0.0798 | D102: 0.1036 | E102: 0.1276 | F102: 0.1514 | G102: 0.1754 | H102: 0.1992 | I102: 0.2232 | J102: 0.2354 | K102: 0.2354 | L102: 0.2354 | M102: 0.2354 | N102: 0.2354 | O102: 0.2354 | P102: 0.2354 | Q102: 0.2354 | R102: 0.2354 | S102: 0.2354 | T102: 0.2354 | U102: 0.2354 | V102: 0.2354 | W102: 0.2354 | X102: 0.2354 | Y102: 0.2354 | Z102: 0.2354 | AA102: 0.2354 | AB102: 0.2354 | AC102: 0.2354 | AD102: 0.2354 | AE102: 0.2354 | AF102: 0.2354 | AG102: 0.2354 | AH102: 0.2354 | AI102: 0.2354 | AJ102: 0.2354 | AK102: 0.2354 | AL102: 0.2354 | AM102: 0.2354 | AN102: 0.2354 | AO102: 0.2354 | AP102: 0.2354 | AQ102: 0.2354 | AR102: 0.2354 | AS102: 0.2354 | AT102: 0.2354 | AU102: 0.2354 | AV102: 0.2354 | AW102: 0.2354 | AX102: 0.2354 | AY102: 0.2354 | AZ102: 0.2354 | BA102: 0.2354 | BB102: 0.2354 | BC102: 0.2354 | BD102: 0.2354 | BE102: 0.2354 | BF102: 0.2354 | BG102: 0.2354 | BH102: 0.2354 | BI102: 0.2354 | BJ102: 0.2354 | BK102: 0.2354 | BL102: 0.2354 | BM102: 0.2354 | BN102: 0.2354 | BO102: =BO101/1000 -> 0.2354 | BP102: 0.2354 | BQ102: 0.2354 | BR102: 0.2354 | BS102: 0.2354 | BT102: 0.2354 | BU102: 0.2354 | BV102: 0.2354 | BW102: 0.2354 | BX102: 0.2354 | BY102: 0.2354 | BZ102: 0.2354 | CA102: 0.2354 | CB102: 0.2354 | CC102: 0.2354 | CD102: 0.2354 | CE102: 0.2354 | CF102: 0.2354 | CG102: 0.2354 | CH102: 0.2354 | CI102: 0.2354 | CJ102: 0.2354 | CK102: 0.2354 | CL102: 0.2354 | CM102: 0.2354 | CN102: 0.2354 | CO102: 0.2354 | CP102: 0.2354 | CQ102: 0.2354 | CR102: 0.2354 | CS102: 0.2354 | CT102: 0.2354 | CU102: 0.2354 | CV102: 0.2354 | CW102: 0.2354 | CX102: 0.2354 | CY102: 0.2354 | CZ102: 0.2354 | DA102: 0.2354 | DB102: 0.2354 | DC102: 0.2354 | DD102: 0.2354 | DE102: 0.2354 | DF102: 0.2354 | DG102: 0.2354 | DH102: 0.2354 | DI102: 0.2354 | DJ102: 0.2354 | DK102: 0.2354 | DL102: 0.2354 | DM102: 0.2354 | DN102: 0.2354 | DO102: 0.2354 | DP102: 0.2354 | DQ102: 0.2354

Sheet LookupTab (hidden)
E2: Time (usec)
D3: RTTG | E3: =Input!B54 -> 37
D4: TTRG | E4: =Input!B53 -> 91
D5: PD(cs) | E5: =ROUNDUP(Input!B52,0) -> 54
D8: 2.5 msec | I8: MCS | J8: 20 MHz (b/s) | K8: 40 MHz (b/s) | M8: Num STAs Scheduled for Traffic in UL
D9: TDD Ratio | F9: DL Useable Time | G9: UL Useable Time | I9: MCS1 | J9: 52 | K9: 108 | M9: TDd Ratio | N9: UL STAs (2.5 msec) | O9: UL STAs (5 msec) | P9: UL STAs (10 msec)
D10: 95/5 | E10: 0.95 | F10: =$E10*2500 - $E$4 + $E$5 -> 2338 | G10: =(1-$E10)*2500 - $E$3 - $E$5 -> 34 | I10: MCS2 | J10: 78 | K10: 162 | M10: 95/5 | N10: 1 | O10: 1 | P10: 2
D11: 90/10 | E11: 0.9 | F11: =$E11*2500 - $E$4 + $E$5 -> 2213 | G11: =(1-$E11)*2500 - $E$3 - $E$5 -> 159 | I11: MCS3 | J11: 104 | K11: 216 | M11: 90/10 | N11: 1 | O11: 1 | P11: 2
D12: 85/15 | E12: 0.85 | F12: 2088 | G12: 284 | I12: MCS4 | J12: 156 | K12: 324 | M12: 85/15 | N12: 1 | O12: 1 | P12: 3
D13: 80/20 | E13: 0.8 | F13: 1963 | G13: 409 | I13: MCS5 | J13: 208 | K13: 432 | M13: 80/20 | N13: 1 | O13: 2 | P13: 5
D14: 75/25 | E14: 0.75 | F14: 1838 | G14: 534 | I14: MCS6 | J14: 234 | K14: 486 | M14: 75/25 | N14: 1 | O14: 3 | P14: 6
D15: 50/50 | E15: 0.5 | F15: 1213 | G15: 1159 | I15: MCS7 | J15: 260 | K15: 540 | M15: 50/50 | N15: 4 | O15: 9 | P15: 18
D16: 30/70 | E16: 0.3 | F16: 713 | G16: 1659 | I16: MCS9 | J16: 104 | K16: 216 | M16: 30/70 | N16: 7 | O16: 15 | P16: 30
D17: 10/90 | E17: 0.1 | F17: 213 | G17: 2159 | I17: MCS10 | J17: 156 | K17: 324 | M17: 10/90 | N17: 8 | O17: 17 | P17: 34
D18: 5/95 | E18: 0.05 | F18: 88 | G18: 2284 | I18: MCS11 | J18: 208 | K18: 432 | M18: 5/95 | N18: 9 | O18: 18 | P18: 36
I19: MCS12 | J19: 312 | K19: 648
I20: MCS13 | J20: 416 | K20: 864
I21: MCS14 | J21: 468 | K21: 972
I22: MCS15 | J22: 520 | K22: 1080
D23: 5 msec
D24: TDD Ratio | F24: DL Useable Time | G24: UL Useable Time
D25: 95/5 | E25: 0.95 | F25: =$E25*5000 - $E$4 + $E$5 -> 4713 | G25: =(1-$E25)*5000 - $E$3 - $E$5 -> 159 | I25: CPU PPF (DL ONLY)
D26: 90/10 | E26: 0.9 | F26: =$E26*5000 - $E$4 + $E$5 -> 4463 | G26: =(1-$E26)*5000 - $E$3 - $E$5 -> 409 | I26: Frame Duration | J26: TDd Ratio | K26: PPF
D27: 85/15 | E27: 0.85 | F27: 4213 | G27: 659 | I27: 2.5 | J27: 50/50 | K27: 100
D28: 80/20 | E28: 0.8 | F28: 3963 | G28: 909 | I28: 5 | J28: 50/50 | K28: 200
D29: 75/25 | E29: 0.75 | F29: 3713 | G29: 1159 | I29: 10 | J29: 50/50 | K29: 400
D30: 50/50 | E30: 0.5 | F30: 2463 | G30: 2409
D31: 30/70 | E31: 0.3 | F31: 1463 | G31: 3409
D32: 10/90 | E32: 0.1 | F32: 463 | G32: 4409
D33: 5/95 | E33: 0.05 | F33: 213 | G33: 4659
D37: 10 msec
D38: TDD Ratio | F38: DL Useable Time | G38: UL Useable Time
D39: 95/5 | E39: 0.95 | F39: =$E39*10000 - $E$4 + $E$5 -> 9463 | G39: =(1-$E39)*10000 - $E$3 - $E$5 -> 409
D40: 90/10 | E40: 0.9 | F40: =$E40*10000 - $E$4 + $E$5 -> 8963 | G40: =(1-$E40)*10000 - $E$3 - $E$5 -> 909
D41: 85/15 | E41: 0.85 | F41: 8463 | G41: 1409
D42: 80/20 | E42: 0.8 | F42: 7963 | G42: 1909
D43: 75/25 | E43: 0.75 | F43: 7463 | G43: 2409
D44: 50/50 | E44: 0.5 | F44: 4963 | G44: 4909
D45: 30/70 | E45: 0.3 | F45: 2963 | G45: 6909
D46: 10/90 | E46: 0.1 | F46: 963 | G46: 8909
D47: 5/95 | E47: 0.05 | F47: 463 | G47: 9409
H50: TLVs (STAs) in GPF | I50: GPF Length (Bytes) | J50: GPF Time(usec)
H51: 1 | I51: =Input!$B$40+H51*$E$56 -> 52 | J51: =ROUNDUP(Input!$B$15+(I51*8/(IF(Input!$B$3=20,52,108)))*4,0) -> 64
H52: 2 | I52: =Input!$B$40+H52*$E$56 -> 76 | J52: =ROUNDUP(Input!$B$15+(I52*8/(IF(Input!$B$3=20,52,108)))*4,0) -> 79
H53: 3 | I53: =Input!$B$40+H53*$E$56 -> 100 | J53: =ROUNDUP(Input!$B$15+(I53*8/(IF(Input!$B$3=20,52,108)))*4,0) -> 94
D54: UL TXOP/ACK IE (Bytes) w/o ACK BITMAP | E54: 11 | H54: 4 | I54: =Input!$B$40+H54*$E$56 -> 124 | J54: =ROUNDUP(Input!$B$15+(I54*8/(IF(Input!$B$3=20,52,108)))*4,0) -> 109
D55: ACK BITMAP Length (Bytes) | E55: =ROUNDUP(Input!B7/8,0) -> 13 | H55: 5 | I55: =Input!$B$40+H55*$E$56 -> 148 | J55: =ROUNDUP(Input!$B$15+(I55*8/(IF(Input!$B$3=20,52,108)))*4,0) -> 124
D56: Total ULTXOP/ACK IE Length (Bytes) | E56: =SUM(E54:E55) -> 24 | H56: 6 | I56: =Input!$B$40+H56*$E$56 -> 172 | J56: =ROUNDUP(Input!$B$15+(I56*8/(IF(Input!$B$3=20,52,108)))*4,0) -> 138
H57: 7 | I57: =Input!$B$40+H57*$E$56 -> 196 | J57: =ROUNDUP(Input!$B$15+(I57*8/(IF(Input!$B$3=20,52,108)))*4,0) -> 153
H58: 8 | I58: =Input!$B$40+H58*$E$56 -> 220 | J58: =ROUNDUP(Input!$B$15+(I58*8/(IF(Input!$B$3=20,52,108)))*4,0) -> 168
H59: 9 | I59: =Input!$B$40+H59*$E$56 -> 244 | J59: =ROUNDUP(Input!$B$15+(I59*8/(IF(Input!$B$3=20,52,108)))*4,0) -> 183
H60: 10 | I60: =Input!$B$40+H60*$E$56 -> 268 | J60: =ROUNDUP(Input!$B$15+(I60*8/(IF(Input!$B$3=20,52,108)))*4,0) -> 197
H61: 11 | I61: =Input!$B$40+H61*$E$56 -> 292 | J61: =ROUNDUP(Input!$B$15+(I61*8/(IF(Input!$B$3=20,52,108)))*4,0) -> 212
H62: 12 | I62: =Input!$B$40+H62*$E$56 -> 316 | J62: =ROUNDUP(Input!$B$15+(I62*8/(IF(Input!$B$3=20,52,108)))*4,0) -> 227
H63: 13 | I63: =Input!$B$40+H63*$E$56 -> 340 | J63: =ROUNDUP(Input!$B$15+(I63*8/(IF(Input!$B$3=20,52,108)))*4,0) -> 242
H64: 14 | I64: =Input!$B$40+H64*$E$56 -> 364 | J64: =ROUNDUP(Input!$B$15+(I64*8/(IF(Input!$B$3=20,52,108)))*4,0) -> 256
H65: 15 | I65: =Input!$B$40+H65*$E$56 -> 388 | J65: =ROUNDUP(Input!$B$15+(I65*8/(IF(Input!$B$3=20,52,108)))*4,0) -> 271
H66: 16 | I66: =Input!$B$40+H66*$E$56 -> 412 | J66: =ROUNDUP(Input!$B$15+(I66*8/(IF(Input!$B$3=20,52,108)))*4,0) -> 286
H67: 17 | I67: =Input!$B$40+H67*$E$56 -> 436 | J67: =ROUNDUP(Input!$B$15+(I67*8/(IF(Input!$B$3=20,52,108)))*4,0) -> 301
H68: 18 | I68: =Input!$B$40+H68*$E$56 -> 460 | J68: =ROUNDUP(Input!$B$15+(I68*8/(IF(Input!$B$3=20,52,108)))*4,0) -> 316
H69: 19 | I69: =Input!$B$40+H69*$E$56 -> 484 | J69: =ROUNDUP(Input!$B$15+(I69*8/(IF(Input!$B$3=20,52,108)))*4,0) -> 330
H70: 20 | I70: =Input!$B$40+H70*$E$56 -> 508 | J70: =ROUNDUP(Input!$B$15+(I70*8/(IF(Input!$B$3=20,52,108)))*4,0) -> 345
H71: 21 | I71: =Input!$B$40+H71*$E$56 -> 532 | J71: =ROUNDUP(Input!$B$15+(I71*8/(IF(Input!$B$3=20,52,108)))*4,0) -> 360
H72: 22 | I72: =Input!$B$40+H72*$E$56 -> 556 | J72: =ROUNDUP(Input!$B$15+(I72*8/(IF(Input!$B$3=20,52,108)))*4,0) -> 375
H73: 23 | I73: =Input!$B$40+H73*$E$56 -> 580 | J73: =ROUNDUP(Input!$B$15+(I73*8/(IF(Input!$B$3=20,52,108)))*4,0) -> 389
H74: 24 | I74: =Input!$B$40+H74*$E$56 -> 604 | J74: =ROUNDUP(Input!$B$15+(I74*8/(IF(Input!$B$3=20,52,108)))*4,0) -> 404
H75: 25 | I75: =Input!$B$40+H75*$E$56 -> 628 | J75: =ROUNDUP(Input!$B$15+(I75*8/(IF(Input!$B$3=20,52,108)))*4,0) -> 419
H76: 26 | I76: =Input!$B$40+H76*$E$56 -> 652 | J76: =ROUNDUP(Input!$B$15+(I76*8/(IF(Input!$B$3=20,52,108)))*4,0) -> 434
H77: 27 | I77: =Input!$B$40+H77*$E$56 -> 676 | J77: =ROUNDUP(Input!$B$15+(I77*8/(IF(Input!$B$3=20,52,108)))*4,0) -> 448
H78: 28 | I78: =Input!$B$40+H78*$E$56 -> 700 | J78: =ROUNDUP(Input!$B$15+(I78*8/(IF(Input!$B$3=20,52,108)))*4,0) -> 463
H79: 29 | I79: =Input!$B$40+H79*$E$56 -> 724 | J79: =ROUNDUP(Input!$B$15+(I79*8/(IF(Input!$B$3=20,52,108)))*4,0) -> 478
H80: 30 | I80: =Input!$B$40+H80*$E$56 -> 748 | J80: =ROUNDUP(Input!$B$15+(I80*8/(IF(Input!$B$3=20,52,108)))*4,0) -> 493
H81: 31 | I81: =Input!$B$40+H81*$E$56 -> 772 | J81: =ROUNDUP(Input!$B$15+(I81*8/(IF(Input!$B$3=20,52,108)))*4,0) -> 508
H82: 32 | I82: =Input!$B$40+H82*$E$56 -> 796 | J82: =ROUNDUP(Input!$B$15+(I82*8/(IF(Input!$B$3=20,52,108)))*4,0) -> 522
H83: 33 | I83: =Input!$B$40+H83*$E$56 -> 820 | J83: =ROUNDUP(Input!$B$15+(I83*8/(IF(Input!$B$3=20,52,108)))*4,0) -> 537
H84: 34 | I84: =Input!$B$40+H84*$E$56 -> 844 | J84: =ROUNDUP(Input!$B$15+(I84*8/(IF(Input!$B$3=20,52,108)))*4,0) -> 552
H85: 35 | I85: =Input!$B$40+H85*$E$56 -> 868 | J85: =ROUNDUP(Input!$B$15+(I85*8/(IF(Input!$B$3=20,52,108)))*4,0) -> 567
H86: 36 | I86: =Input!$B$40+H86*$E$56 -> 892 | J86: =ROUNDUP(Input!$B$15+(I86*8/(IF(Input!$B$3=20,52,108)))*4,0) -> 581
H87: 37 | I87: =Input!$B$40+H87*$E$56 -> 916 | J87: =ROUNDUP(Input!$B$15+(I87*8/(IF(Input!$B$3=20,52,108)))*4,0) -> 596
H88: 38 | I88: =Input!$B$40+H88*$E$56 -> 940 | J88: =ROUNDUP(Input!$B$15+(I88*8/(IF(Input!$B$3=20,52,108)))*4,0) -> 611
H89: 39 | I89: =Input!$B$40+H89*$E$56 -> 964 | J89: =ROUNDUP(Input!$B$15+(I89*8/(IF(Input!$B$3=20,52,108)))*4,0) -> 626
H90: 40 | I90: =Input!$B$40+H90*$E$56 -> 988 | J90: =ROUNDUP(Input!$B$15+(I90*8/(IF(Input!$B$3=20,52,108)))*4,0) -> 640

Sheet User Traffic Profile 1 (hidden)
B1: % Active STAs Per Frame | C1: Packet Size (Bytes) | D1: Data Rate / STA (Mbps) | E1: PPS / STA | F1: Packet Interarrival Time (msec)
A2: Downlink | B2: 1 | C2: 1500 | D2: 10 | E2: =D2*1024*1024/(8*C2) -> 873.8133333 | F2: =(1/E2)*1000 -> 1.14440918
A3: Uplink | B3: 1 | C3: 400 | D3: 2 | E3: =D3*1024*1024/(8*C3) -> 655.36 | F3: =(1/E3)*1000 -> 1.525878906
A8: Connected STAs | B8: Active DL STAs/Frame | C8: DL STAs Ready For Scheduling /Frame | D8: Active UL STAs/Frame | E8: UL STAs Ready For Scheduling /Frame | F8: Idle UL STAs / Frame
A9: 1 | B9: =$B$2*A9 -> 1 | C9: =ROUNDUP(B9,0) -> 1 | D9: =$B$3*A9 -> 1 | E9: =ROUNDUP(D9,0) -> 1 | F9: =A9-E9 -> 0
A10: 2 | B10: 2 | C10: =ROUNDUP(B10,0) -> 2 | D10: 2 | E10: 2 | F10: =A10-E10 -> 0
A11: 3 | B11: 3 | C11: 3 | D11: 3 | E11: 3 | F11: 0
A12: 4 | B12: 4 | C12: 4 | D12: 4 | E12: 4 | F12: 0
A13: 5 | B13: 5 | C13: 5 | D13: 5 | E13: 5 | F13: 0
A14: 6 | B14: 6 | C14: 6 | D14: 6 | E14: 6 | F14: 0
A15: 7 | B15: 7 | C15: 7 | D15: 7 | E15: 7 | F15: 0
A16: 8 | B16: 8 | C16: 8 | D16: 8 | E16: 8 | F16: 0
A17: 9 | B17: 9 | C17: 9 | D17: 9 | E17: 9 | F17: 0
A18: 10 | B18: 10 | C18: 10 | D18: 10 | E18: 10 | F18: 0
A19: 11 | B19: 11 | C19: 11 | D19: 11 | E19: 11 | F19: 0
A20: 12 | B20: 12 | C20: 12 | D20: 12 | E20: 12 | F20: 0
A21: 13 | B21: 13 | C21: 13 | D21: 13 | E21: 13 | F21: 0
A22: 14 | B22: 14 | C22: 14 | D22: 14 | E22: 14 | F22: 0
A23: 15 | B23: 15 | C23: 15 | D23: 15 | E23: 15 | F23: 0
A24: 16 | B24: 16 | C24: 16 | D24: 16 | E24: 16 | F24: 0
A25: 17 | B25: 17 | C25: 17 | D25: 17 | E25: 17 | F25: 0
A26: 18 | B26: 18 | C26: 18 | D26: 18 | E26: 18 | F26: 0
A27: 19 | B27: 19 | C27: 19 | D27: 19 | E27: 19 | F27: 0
A28: 20 | B28: 20 | C28: 20 | D28: 20 | E28: 20 | F28: 0
A29: 21 | B29: 21 | C29: 21 | D29: 21 | E29: 21 | F29: 0
A30: 22 | B30: 22 | C30: 22 | D30: 22 | E30: 22 | F30: 0
A31: 23 | B31: 23 | C31: 23 | D31: 23 | E31: 23 | F31: 0
A32: 24 | B32: 24 | C32: 24 | D32: 24 | E32: 24 | F32: 0
A33: 25 | B33: 25 | C33: 25 | D33: 25 | E33: 25 | F33: 0
A34: 26 | B34: 26 | C34: 26 | D34: 26 | E34: 26 | F34: 0
A35: 27 | B35: 27 | C35: 27 | D35: 27 | E35: 27 | F35: 0
A36: 28 | B36: 28 | C36: 28 | D36: 28 | E36: 28 | F36: 0
A37: 29 | B37: 29 | C37: 29 | D37: 29 | E37: 29 | F37: 0
A38: 30 | B38: 30 | C38: 30 | D38: 30 | E38: 30 | F38: 0
A39: 31 | B39: 31 | C39: 31 | D39: 31 | E39: 31 | F39: 0
A40: 32 | B40: 32 | C40: 32 | D40: 32 | E40: 32 | F40: 0
A41: 33 | B41: 33 | C41: 33 | D41: 33 | E41: 33 | F41: 0
A42: 34 | B42: 34 | C42: 34 | D42: 34 | E42: 34 | F42: 0
A43: 35 | B43: 35 | C43: 35 | D43: 35 | E43: 35 | F43: 0
A44: 36 | B44: 36 | C44: 36 | D44: 36 | E44: 36 | F44: 0
A45: 37 | B45: 37 | C45: 37 | D45: 37 | E45: 37 | F45: 0
A46: 38 | B46: 38 | C46: 38 | D46: 38 | E46: 38 | F46: 0
A47: 39 | B47: 39 | C47: 39 | D47: 39 | E47: 39 | F47: 0
A48: 40 | B48: 40 | C48: 40 | D48: 40 | E48: 40 | F48: 0
A49: 41 | B49: 41 | C49: 41 | D49: 41 | E49: 41 | F49: 0
A50: 42 | B50: 42 | C50: 42 | D50: 42 | E50: 42 | F50: 0
A51: 43 | B51: 43 | C51: 43 | D51: 43 | E51: 43 | F51: 0
A52: 44 | B52: 44 | C52: 44 | D52: 44 | E52: 44 | F52: 0
A53: 45 | B53: 45 | C53: 45 | D53: 45 | E53: 45 | F53: 0
A54: 46 | B54: 46 | C54: 46 | D54: 46 | E54: 46 | F54: 0
A55: 47 | B55: 47 | C55: 47 | D55: 47 | E55: 47 | F55: 0
A56: 48 | B56: 48 | C56: 48 | D56: 48 | E56: 48 | F56: 0
A57: 49 | B57: 49 | C57: 49 | D57: 49 | E57: 49 | F57: 0
A58: 50 | B58: 50 | C58: 50 | D58: 50 | E58: 50 | F58: 0
A59: 51 | B59: 51 | C59: 51 | D59: 51 | E59: 51 | F59: 0
A60: 52 | B60: 52 | C60: 52 | D60: 52 | E60: 52 | F60: 0
A61: 53 | B61: 53 | C61: 53 | D61: 53 | E61: 53 | F61: 0
A62: 54 | B62: 54 | C62: 54 | D62: 54 | E62: 54 | F62: 0
A63: 55 | B63: 55 | C63: 55 | D63: 55 | E63: 55 | F63: 0
A64: 56 | B64: 56 | C64: 56 | D64: 56 | E64: 56 | F64: 0
A65: 57 | B65: 57 | C65: 57 | D65: 57 | E65: 57 | F65: 0
A66: 58 | B66: 58 | C66: 58 | D66: 58 | E66: 58 | F66: 0
A67: 59 | B67: 59 | C67: 59 | D67: 59 | E67: 59 | F67: 0
A68: 60 | B68: 60 | C68: 60 | D68: 60 | E68: 60 | F68: 0
A69: 61 | B69: 61 | C69: =ROUNDUP(B69,0) -> 61 | D69: 61 | E69: =ROUNDUP(D69,0) -> 61 | F69: 0
A70: 62 | B70: 62 | C70: 62 | D70: 62 | E70: 62 | F70: 0
A71: 63 | B71: 63 | C71: 63 | D71: 63 | E71: 63 | F71: 0
A72: 64 | B72: 64 | C72: 64 | D72: 64 | E72: 64 | F72: 0
A73: 65 | B73: =$B$2*A73 -> 65 | C73: 65 | D73: =$B$3*A73 -> 65 | E73: 65 | F73: 0
A74: 66 | B74: 66 | C74: 66 | D74: 66 | E74: 66 | F74: =A74-E74 -> 0
A75: 67 | B75: 67 | C75: 67 | D75: 67 | E75: 67 | F75: 0
A76: 68 | B76: 68 | C76: 68 | D76: 68 | E76: 68 | F76: 0
A77: 69 | B77: 69 | C77: 69 | D77: 69 | E77: 69 | F77: 0
A78: 70 | B78: 70 | C78: 70 | D78: 70 | E78: 70 | F78: 0
A79: 71 | B79: 71 | C79: 71 | D79: 71 | E79: 71 | F79: 0
A80: 72 | B80: 72 | C80: 72 | D80: 72 | E80: 72 | F80: 0
A81: 73 | B81: 73 | C81: 73 | D81: 73 | E81: 73 | F81: 0
A82: 74 | B82: 74 | C82: 74 | D82: 74 | E82: 74 | F82: 0
A83: 75 | B83: 75 | C83: 75 | D83: 75 | E83: 75 | F83: 0
A84: 76 | B84: 76 | C84: 76 | D84: 76 | E84: 76 | F84: 0
A85: 77 | B85: 77 | C85: 77 | D85: 77 | E85: 77 | F85: 0
A86: 78 | B86: 78 | C86: 78 | D86: 78 | E86: 78 | F86: 0
A87: 79 | B87: 79 | C87: 79 | D87: 79 | E87: 79 | F87: 0
A88: 80 | B88: 80 | C88: 80 | D88: 80 | E88: 80 | F88: 0
A89: 81 | B89: 81 | C89: 81 | D89: 81 | E89: 81 | F89: 0
A90: 82 | B90: 82 | C90: 82 | D90: 82 | E90: 82 | F90: 0
A91: 83 | B91: 83 | C91: 83 | D91: 83 | E91: 83 | F91: 0
A92: 84 | B92: 84 | C92: 84 | D92: 84 | E92: 84 | F92: 0
A93: 85 | B93: 85 | C93: 85 | D93: 85 | E93: 85 | F93: 0
A94: 86 | B94: 86 | C94: 86 | D94: 86 | E94: 86 | F94: 0
A95: 87 | B95: 87 | C95: 87 | D95: 87 | E95: 87 | F95: 0
A96: 88 | B96: 88 | C96: 88 | D96: 88 | E96: 88 | F96: 0
A97: 89 | B97: 89 | C97: 89 | D97: 89 | E97: 89 | F97: 0
A98: 90 | B98: 90 | C98: 90 | D98: 90 | E98: 90 | F98: 0
A99: 91 | B99: 91 | C99: 91 | D99: 91 | E99: 91 | F99: 0
A100: 92 | B100: 92 | C100: 92 | D100: 92 | E100: 92 | F100: 0
A101: 93 | B101: 93 | C101: 93 | D101: 93 | E101: 93 | F101: 0
A102: 94 | B102: 94 | C102: 94 | D102: 94 | E102: 94 | F102: 0
A103: 95 | B103: 95 | C103: 95 | D103: 95 | E103: 95 | F103: 0
A104: 96 | B104: 96 | C104: 96 | D104: 96 | E104: 96 | F104: 0
A105: 97 | B105: 97 | C105: 97 | D105: 97 | E105: 97 | F105: 0
A106: 98 | B106: 98 | C106: 98 | D106: 98 | E106: 98 | F106: 0
A107: 99 | B107: 99 | C107: 99 | D107: 99 | E107: 99 | F107: 0
A108: 100 | B108: 100 | C108: 100 | D108: 100 | E108: 100 | F108: 0
A109: 101 | B109: 101 | C109: 101 | D109: 101 | E109: 101 | F109: 0
A110: 102 | B110: 102 | C110: 102 | D110: 102 | E110: 102 | F110: 0
A111: 103 | B111: 103 | C111: 103 | D111: 103 | E111: 103 | F111: 0
A112: 104 | B112: 104 | C112: 104 | D112: 104 | E112: 104 | F112: 0
A113: 105 | B113: 105 | C113: 105 | D113: 105 | E113: 105 | F113: 0
A114: 106 | B114: 106 | C114: 106 | D114: 106 | E114: 106 | F114: 0
A115: 107 | B115: 107 | C115: 107 | D115: 107 | E115: 107 | F115: 0
A116: 108 | B116: 108 | C116: 108 | D116: 108 | E116: 108 | F116: 0
A117: 109 | B117: 109 | C117: 109 | D117: 109 | E117: 109 | F117: 0
A118: 110 | B118: 110 | C118: 110 | D118: 110 | E118: 110 | F118: 0
A119: 111 | B119: 111 | C119: 111 | D119: 111 | E119: 111 | F119: 0
A120: 112 | B120: 112 | C120: 112 | D120: 112 | E120: 112 | F120: 0
A121: 113 | B121: 113 | C121: 113 | D121: 113 | E121: 113 | F121: 0
A122: 114 | B122: 114 | C122: 114 | D122: 114 | E122: 114 | F122: 0
A123: 115 | B123: 115 | C123: 115 | D123: 115 | E123: 115 | F123: 0
A124: 116 | B124: 116 | C124: 116 | D124: 116 | E124: 116 | F124: 0
A125: 117 | B125: 117 | C125: 117 | D125: 117 | E125: 117 | F125: 0
A126: 118 | B126: 118 | C126: 118 | D126: 118 | E126: 118 | F126: 0
A127: 119 | B127: 119 | C127: 119 | D127: 119 | E127: 119 | F127: 0
A128: 120 | B128: 120 | C128: 120 | D128: 120 | E128: 120 | F128: 0
